Workbook

Sheet Tabella Articolo 3
A1: AMBITI DI INTERVENTO | B1: Assegnazione FSC 21-27 | E1: Fondo di Rotazione ex legge 183/1987 | F1: Cofinanziamento nuovi interventi | I1: Ammontare complessivo investimenti | J1: Numero interventi/ linee di azione
B2: Risorse FSC 21-27 (ass. ordinaria) | C2: (1) Risorse FSC 21-27 (Anticipazione Del.CIPESS 79/21) | D2: Totale Assegnazione FSC 21-27 | F2: Altre Risorse Regionali e Locali | G2: Altre Risorse Nazionali | H2: Totale Co-finanziamento con altre risorse
A4: Ricerca e Innovazione | B4: 63,220,000.00 | D4: =SUM(B4:C4) -> 63,220,000.00 | H4: =SUM(F4:G4) -> 0 | I4: =H4+E4+D4 -> 63,220,000.00 | J4: 6
A5: Digitalizzazione | B5: 85,671,000.00 | D5: 85,671,000.00 | H5: =SUM(F5:G5) -> 0 | I5: =H5+E5+D5 -> 85,671,000.00 | J5: 12
A6: Competitività imprese | B6: =37940000-12000000 -> 25,940,000.00 | C6: 11,715,000.00 | D6: 37,655,000.00 | H6: 0 | I6: 37,655,000.00 | J6: 11
A7: Energia | B7: 16,165,691.28 | C7: 447,500.00 | D7: 16,613,191.28 | I7: 16,613,191.28 | J7: 4
A8: Ambiente e risorse naturali | B8: 735,136,271.77 | C8: 24,182,310.52 | D8: 759,318,582.29 | E8: =103000000-10000000 -> 93,000,000.00 | F8: =78472407.06+2476000+320000+504942.49+4000000 -> 85,773,349.55 | G8: =107943052.62+24871072.76 -> 132,814,125.38 | H8: =SUM(F8:G8) -> 218,587,474.93 | I8: =H8+E8+D8 -> 1,070,906,057.22 | J8: =122-1 -> 121
A9: Cultura | B9: 74,327,988.00 | D9: 74,327,988.00 | H9: =SUM(F9:G9) -> 0 | I9: 74,327,988.00 | J9: 4
A10: Trasporti e mobilità | B10: 449,746,588.31 | C10: 96,971,177.28 | D10: 546,717,765.59 | E10: =92850000+10000000 -> 102,850,000.00 | F10: =22179943.31+500000+13580000+5430000+106000+88500 -> 41,884,443.31 | G10: =3190243.22+1000000+10000000+49622512.36+5500000+295000+206500+30085000+192405360 -> 292,304,615.58 | H10: =SUM(F10:G10) -> 334,189,058.89 | I10: 983,756,824.48 | J10: =71+1 -> 72
A11: Riqualificazione urbana | B11: =230441551.24+12000000 -> 242,441,551.24 | C11: 1,384,638.95 | D11: 243,826,190.19 | E11: 230,000,000.00 | H11: =SUM(F11:G11) -> 0 | I11: 473,826,190.19 | J11: 16
A12: Sociale e Salute | B12: 369,323,000.00 | C12: 1,100,000.00 | D12: 370,423,000.00 | F12: =13050000+40000000 -> 53,050,000.00 | G12: =21000000+25000000 -> 46,000,000.00 | H12: =SUM(F12:G12) -> 99,050,000.00 | I12: 469,473,000.00 | J12: 28
A13: Istruzione e formazione | B13: 228,973,192.01 | C13: 16,987,230.99 | D13: 245,960,423.00 | G13: 1,200,000.00 | H13: 1,200,000.00 | I13: 247,160,423.00 | J13: 18
A14: Capacità amministrativa | B14: 22,600,000.00 | C14: 4,000,000.00 | D14: 26,600,000.00 | H14: 0 | I14: =H14+E14+D14 -> 26,600,000.00 | J14: 2
A15: Totale Aree Tematiche | B15: =SUM(B4:B14) -> 2,313,545,282.61 | C15: 156,787,857.74 | D15: 2,470,333,140.35 | E15: 425,850,000.00 | F15: 180,707,792.86 | G15: 472,318,740.96 | H15: 653,026,533.82 | I15: 3,549,209,674.17 | J15: =SUM(J4:J14) -> 294
A16: Cofinanziamento Fondi UE | B16: 0 | C16: 0 | D16: 0
A17: Totale Assegnazione FSC 21-27 | B17: =B15 -> 2,313,545,282.61 | C17: =C15 -> 156,787,857.74 | D17: 2,470,333,140.35
A20: (1) Risorse già assegnate: anticipazioni disposte con delibere CIPESS; assegnate con provvedimenti di legge; ecc. - Include anche le risorse definanziate ex Delibera 16/2023 e riprogrammate

Sheet Allegato A1_Elenco interventi
A1: Accordo per la Coesione Governo - Regione Autonoma della Sardegna Allegato A1 Programma di interventi e le linee di azione con cronoprogramma procedurale
A2: ID | B2: AMMINISTRAZIONE | C2: AREATEMATICA | D2: LINEA DI INTERVENTO | E2: CUP | F2: TITOLO | G2: COSTO TOTALE | H2: IMPORTO RICHIESTO FSC 21-27 | I2: FDR LEGGE 183/87 | J2: COFINANZIAMENTO CON ALTRE RISORSE | K2: PROGRAMMAZIONE | M2: PROGETTAZIONE | O2: ESECUZIONE
K3: PREVISIONE INIZIO | L3: PREVISIONE FINE | M3: PREVISIONE INIZIO | N3: PREVISIONE FINE | O3: PREVISIONE INIZIO | P3: PREVISIONE FINE
A4: FSCRI_RI_4138 | B4: ISTITUTO NAZIONALE DI ASTROFISICA - OSSERVATORIO ASTRONOMICO DI CAGLIARI | C4: 01.RICERCA E INNOVAZIONE | D4: 01.02 STRUTTURE DL RICERCA | E4: C24D24001830001 | F4: PIANO DI SVILUPPO DEL SITO DEL SARDINIA RADIO TELESCOPE PER ATTIVITÀ TECNICO/SCIENTIFICHE | G4: 6,000,000.00 | H4: 6,000,000.00 | I4: 0 | J4: 0 | K4: 2_SEMESTRE_2025 | L4: 1_SEMESTRE_2026 | M4: 1_SEMESTRE_2026 | N4: 1_SEMESTRE_2027 | O4: 1_SEMESTRE_2027 | P4: 2_SEMESTRE_2029
A5: FSCRI_RI_4141 | B5: ISTITUTO NAZIONALE DI ASTROFISICA - OSSERVATORIO ASTRONOMICO DI CAGLIARI | C5: 01.RICERCA E INNOVAZIONE | D5: 01.02 STRUTTURE DL RICERCA | E5: C74D24001790001 | F5: PIANO DI AMPLIAMENTO DELL'INAF - OSSERVATORIO ASTRONOMICO DI CAGLIARI | G5: 250,000.00 | H5: 250,000.00 | I5: 0 | J5: 0 | K5: 2_SEMESTRE_2025 | L5: 1_SEMESTRE_2026 | M5: 1_SEMESTRE_2026 | N5: 2_SEMESTRE_2026 | O5: 2_SEMESTRE_2026 | P5: 2_SEMESTRE_2028
A6: FSCRI_RI_4173 | B6: ENTI LOCALI DA INDIVIDUARE | C6: 08.RIQUALIFICAZIONE URBANA | D6: 08.01 EDILIZIA E SPAZI PUBBLICI | E6: E74H24000710001 | F6: ATTIVAZIONE DI NODI DI SERVIZI ESSENZIALI VICINI AL CITTADINO NELLE AREE INTERNE | G6: 20,000,000.00 | H6: 20,000,000.00 | I6: 0 | J6: 0 | K6: 2_SEMESTRE_2025 | L6: 2_SEMESTRE_2026 | M6: 2_SEMESTRE_2026 | N6: 1_SEMESTRE_2028 | O6: 1_SEMESTRE_2028 | P6: 2_SEMESTRE_2031
A7: FSCRI_RI_4174 | B7: REGIONE AUTONOMA DELLA SARDEGNA | C7: 08.RIQUALIFICAZIONE URBANA | D7: 08.02 EDILIZIA PRIVATA | E7: E22H21000110003 | F7: LAVORI RISTRUTT. MESSA NORMA EDIFICI 3, 4, 5, 8 EX SALINE LA PALMA CAGLIARI ARCHIVIO STORICO REG.LE | G7: 6,100,000.00 | H7: 6,100,000.00 | I7: 0 | J7: 0 | K7: 1_SEMESTRE_2025 | L7: 1_SEMESTRE_2025 | M7: 2_SEMESTRE_2025 | N7: 1_SEMESTRE_2026 | O7: 2_SEMESTRE_2026 | P7: 2_SEMESTRE_2028
A8: FSCRI_RI_4175 | B8: ENTI LOCALI, AZIENDE DEL SERVIZO SANITARIO REGIONALE, SOGGETTI PRIVATI GESTORI DI STRUTTURE SOCIALI E SOCIO-SANITARIE | C8: 10.SOCIALE E SALUTE | D8: 10.03 SERVIZI SOCIO-ASSISTENZIALI | E8: LINEA DI AZIONE | F8: IN.DO.M.A.U.S. INTERVENTI DI DOMOTICA PER MINORI E ANZIANI DI UTILITA' SOCIALE | G8: 50,000,000.00 | H8: 50,000,000.00 | I8: 0 | J8: 0 | K8: 2_SEMESTRE_2024 | L8: 1_SEMESTRE_2025 | M8: 1_SEMESTRE_2025 | N8: 2_SEMESTRE_2025 | O8: 2_SEMESTRE_2025 | P8: 2_SEMESTRE_2028
A9: FSCRI_RI_4176 | B9: ENTI LOCALI E AMMINISTRAZIONI PUBBLICHE DA INDIVIDUARE A SEGUITO DI AVVISO PUBBLICO | C9: 06.CULTURA | D9: 06.01 PATRIMONIO E PAESAGGIO | E9: LINEA DI AZIONE | F9: REALIZZAZIONE INTERVENTI DI TUTELA, CONSERVAZIONE E VALORIZZAZIONE DEL PATRIMONIO CULTURALE | G9: 30,000,000.00 | H9: 30,000,000.00 | I9: 0 | J9: 0 | K9: 1_SEMESTRE_2025 | L9: 2_SEMESTRE_2026 | M9: 1_SEMESTRE_2025 | N9: 2_SEMESTRE_2027 | O9: 1_SEMESTRE_2026 | P9: 2_SEMESTRE_2030
A10: FSCRI_RI_4178 | B10: ENTI LOCALI NEI QUALI RICADONO I BENI CULTURALI OGGETTO DELLA CANDIDATURA UNESCO "ARTE E ARCHITETTURA DELLA SARDEGNA PREISTORICA. LE DOMUS DE JANAS" | C10: 06.CULTURA | D10: 06.01 PATRIMONIO E PAESAGGIO | E10: LINEA DI AZIONE | F10: ARTE E ARCHITETTURA DELLA SARDEGNA PREISTORICA. LE DOMUS DE JANAS. INTERVENTI PER CANDIDATURA UNESCO | G10: 15,000,000.00 | H10: 15,000,000.00 | I10: 0 | J10: 0 | K10: 1_SEMESTRE_2025 | L10: 2_SEMESTRE_2026 | M10: 1_SEMESTRE_2025 | N10: 2_SEMESTRE_2027 | O10: 1_SEMESTRE_2026 | P10: 2_SEMESTRE_2030
A11: FSCRI_RI_4179 | B11: COMUNE DI PULA | C11: 06.CULTURA | D11: 06.01 PATRIMONIO E PAESAGGIO | E11: B77B24000140005 | F11: RECUPERO EX CASERMETTE DELL’EX STAZIONE NELL’AMBITO DEL NUOVO PARCO ARCHEOLOGICO REGIONALE DI NORA | G11: 5,000,000.00 | H11: 5,000,000.00 | I11: 0 | J11: 0 | M11: 1_SEMESTRE_2026 | N11: 2_SEMESTRE_2026 | O11: 1_SEMESTRE_2027 | P11: 2_SEMESTRE_2028
A12: FSCRI_RI_4180 | B12: UNIVERSITÀ DEGLI STUDI DI CAGLIARI | C12: 01.RICERCA E INNOVAZIONE | D12: 01.02 STRUTTURE DL RICERCA | E12: F35E23000220002 | F12: NUOVO EDIFICIO BLOCCO F BIS - ASSE DIDATTICO | G12: 15,000,000.00 | H12: 15,000,000.00 | I12: 0 | J12: 0 | K12: 2_SEMESTRE_2024 | L12: 2_SEMESTRE_2025 | M12: 1_SEMESTRE_2026 | N12: 1_SEMESTRE_2028 | O12: 1_SEMESTRE_2027 | P12: 2_SEMESTRE_2031
A13: FSCRI_RI_4182 | B13: CONSORZIO INDUSTRIALE PROVINCIALE DI NUORO CIPNU | C13: 05.AMBIENTE E RISORSE NATURALI | D13: 05.02 RISORSE IDRICHE | E13: D77J24000030001 | F13: POTENZIAMENTO IMPIANTO DI POTABILIZZAZIONE DEL SOLOGO CIPNU | G13: 200,000.00 | H13: 200,000.00 | I13: 0 | J13: 0 | K13: 1_SEMESTRE_2025 | L13: 2_SEMESTRE_2025 | M13: 2_SEMESTRE_2025 | N13: 2_SEMESTRE_2025 | O13: 1_SEMESTRE_2026 | P13: 1_SEMESTRE_2026
A14: FSCRI_RI_4184 | B14: DIREZIONE GENERALE DELLA PROTEZIONE CIVILE | C14: 05.AMBIENTE E RISORSE NATURALI | D14: 05.01 RISCHI E ADATTAMENTO CLIMATICO | E14: E79I24001090001 | F14: ELABORAZIONE CARTA DEI SUOLI PER LA REGIONE SARDEGNA | G14: 2,000,000.00 | H14: 2,000,000.00 | I14: 0 | J14: 0 | K14: 2_SEMESTRE_2025 | L14: 2_SEMESTRE_2025 | M14: 1_SEMESTRE_2026 | N14: 1_SEMESTRE_2026 | O14: 2_SEMESTRE_2026 | P14: 2_SEMESTRE_2028
A15: FSCRI_RI_4185 | B15: UNIVERSITÀ DEGLI STUDI DI CAGLIARI | C15: 11.ISTRUZIONE E FORMAZIONE | D15: 11.01 STRUTTURE EDUCATIVE E FORMATIVE | E15: F28H23001010002 | F15: ADEGUAMENTO DEGLI IMPIANTI ANTINCENDIO DEGLI EDIFICI IN USO ALL'UNIVERSITÀ DI CAGLIARI | G15: 15,000,000.00 | H15: 15,000,000.00 | I15: 0 | J15: 0 | K15: 1_SEMESTRE_2023 | L15: 1_SEMESTRE_2024 | M15: 2_SEMESTRE_2024 | N15: 2_SEMESTRE_2025 | O15: 1_SEMESTRE_2026 | P15: 2_SEMESTRE_2029
A16: FSCRI_RI_4186 | B16: C.I.S.A. CONSORZIO INTERCOMUNALE SALVAGUARDIA AMBIENTALE - SERRAMANNA | C16: 05.AMBIENTE E RISORSE NATURALI | D16: 05.03 RIFIUTI | E16: C95I24000120002 | F16: INTERVENTI DI REVAMPING ED EFFICIENTAMENTO DELL'IMPIANTO DI PRODUZIONE COMPOST DI QUALITÀ | G16: 4,627,200.00 | H16: 4,627,200.00 | I16: 0 | J16: 0 | K16: 2_SEMESTRE_2025 | L16: 2_SEMESTRE_2025 | M16: 2_SEMESTRE_2025 | N16: 2_SEMESTRE_2025 | O16: 1_SEMESTRE_2026 | P16: 2_SEMESTRE_2026
A17: FSCRI_RI_4187 | B17: UNIVERSITÀ DEGLI STUDI DI CAGLIARI | C17: 11.ISTRUZIONE E FORMAZIONE | D17: 11.01 STRUTTURE EDUCATIVE E FORMATIVE | E17: F22B24000590002 | F17: PARZIALE RIPRISTINO DELL'EDIFICIO EX SCIENZE DELLA TERRA | G17: 4,500,000.00 | H17: 4,500,000.00 | I17: 0 | J17: 0 | K17: 2_SEMESTRE_2024 | L17: 1_SEMESTRE_2025 | M17: 2_SEMESTRE_2025 | N17: 2_SEMESTRE_2026 | O17: 2_SEMESTRE_2027 | P17: 2_SEMESTRE_2030
A18: FSCRI_RI_4188 | B18: REGIONE SARDEGNA -ASSESSORATO DELLA DIFESA DELL'AMBIENTE - DIREZIONE GENERALE DELL'AMBIENTE - SERVIZIO SVASI | C18: 02.DIGITALIZZAZIONE | D18: 02.01 TECNOLOGIE E SERVIZI DIGITALI | E18: E21F24000440001 | F18: REINGEGNERIZZAZIONE DEL SISTEMA INFORMATIVO REGIONALE AMBIENTALE DELLA SARDEGNA (SIRA SARDEGNA) | G18: 7,000,000.00 | H18: 7,000,000.00 | I18: 0 | J18: 0 | K18: 1_SEMESTRE_2025 | L18: 1_SEMESTRE_2025 | M18: 1_SEMESTRE_2025 | N18: 2_SEMESTRE_2025 | O18: 1_SEMESTRE_2026 | P18: 2_SEMESTRE_2028
A19: FSCRI_RI_4189 | B19: UNIVERSITÀ DEGLI STUDI DI CAGLIARI | C19: 11.ISTRUZIONE E FORMAZIONE | D19: 11.01 STRUTTURE EDUCATIVE E FORMATIVE | E19: F29I24000860002 | F19: RIQUALIFICAZIONE DELLA BIBLIOTECA UNIVERSITARIA DI VIALE SANT'IGNAZIO | G19: 8,000,000.00 | H19: 8,000,000.00 | I19: 0 | J19: 0 | K19: 2_SEMESTRE_2024 | L19: 1_SEMESTRE_2026 | M19: 2_SEMESTRE_2026 | N19: 1_SEMESTRE_2027 | O19: 2_SEMESTRE_2027 | P19: 2_SEMESTRE_2030
A20: FSCRI_RI_4191 | B20: CONSORZIO INDUSTRIALE PROVINCIALE VILLACIDRO - MEDIO CAMPIDANO | C20: 05.AMBIENTE E RISORSE NATURALI | D20: 05.03 RIFIUTI | E20: D18C24000840008 | F20: RISTRUTTURAZIONE DIGESTIONE ANAEROBICA E RICEZIONE RIFIUTI IMPIANTO DI TRATTAMENTO FRAZIONE ORGANICA | G20: 15,881,820.00 | H20: 7,000,000.00 | I20: 0 | J20: 8,881,820.00 | K20: 2_SEMESTRE_2024 | L20: 2_SEMESTRE_2025 | M20: 1_SEMESTRE_2026 | N20: 2_SEMESTRE_2026 | O20: 1_SEMESTRE_2027 | P20: 2_SEMESTRE_2029
A21: FSCRI_RI_4192 | B21: DIREZIONE GENERALE DELLA PROTEZIONE CIVILE | C21: 05.AMBIENTE E RISORSE NATURALI | D21: 05.01 RISCHI E ADATTAMENTO CLIMATICO | E21: E77D24000080001 | F21: ADEGUAMENTO SISTEMA STAZIONI METEOROLOGICHE RETE UNICA REGIONALE (RUR) | G21: 2,000,000.00 | H21: 2,000,000.00 | I21: 0 | J21: 0 | K21: 2_SEMESTRE_2025 | L21: 2_SEMESTRE_2025 | M21: 1_SEMESTRE_2026 | N21: 2_SEMESTRE_2026 | O21: 1_SEMESTRE_2027 | P21: 2_SEMESTRE_2028
A22: FSCRI_RI_4193 | B22: UNIVERSITÀ DEGLI STUDI DI CAGLIARI | C22: 11.ISTRUZIONE E FORMAZIONE | D22: 11.01 STRUTTURE EDUCATIVE E FORMATIVE | E22: F22B22000590006 | F22: RIQUALIFICAZIONE FUNZIONALE ED ENERGETICA DEGLI EX ISTITUTI BIOLOGICI | G22: 8,700,000.00 | H22: 7,500,000.00 | I22: 0 | J22: 1,200,000.00 | K22: 1_SEMESTRE_2023 | L22: 2_SEMESTRE_2023 | M22: 1_SEMESTRE_2024 | N22: 2_SEMESTRE_2026 | O22: 1_SEMESTRE_2027 | P22: 2_SEMESTRE_2030
A23: FSCRI_RI_4194 | B23: CACIP CONSORZIO INDUSTRIALE PROVINCIALE DI CAGLIARI | C23: 08.RIQUALIFICAZIONE URBANA | D23: 08.01 EDILIZIA E SPAZI PUBBLICI | E23: F24H23000940002 | F23: CACIP REALIZZAZIONE FABBRICATO DA DESTINARE AD UFFICI UBICATO ZONA FRANCA PORTO INDUSTRIALE CAGLIARI | G23: 2,150,000.00 | H23: 2,150,000.00 | I23: 0 | J23: 0 | K23: 2_SEMESTRE_2023 | L23: 2_SEMESTRE_2024 | M23: 2_SEMESTRE_2023 | N23: 2_SEMESTRE_2024 | O23: 1_SEMESTRE_2026 | P23: 2_SEMESTRE_2027
A24: FSCRI_RI_4195 | B24: CONSORZIO INDUSTRIALE PROVINCIALE DI CAGLIARI | C24: 05.AMBIENTE E RISORSE NATURALI | D24: 05.03 RIFIUTI | E24: F51B21001010005 | F24: REALIZZAZIONE DI UN CSS DI IMBALLAGGI IN PLASTICA POST-CONSUMO DA RACCOLTA DIFFERENZIATA URBANA | G24: 21,604,163.24 | H24: 3,519,147.83 | I24: 0 | J24: 18,085,015.41 | K24: 1_SEMESTRE_2023 | L24: 2_SEMESTRE_2023 | M24: 1_SEMESTRE_2024 | N24: 2_SEMESTRE_2024 | O24: 1_SEMESTRE_2025 | P24: 2_SEMESTRE_2026
A25: FSCRI_RI_4196 | B25: UNIVERSITÀ DEGLI STUDI DI CAGLIARI | C25: 11.ISTRUZIONE E FORMAZIONE | D25: 11.01 STRUTTURE EDUCATIVE E FORMATIVE | E25: F22B24000580002 | F25: CREAZIONE DI UN POLO PER L'INTERNAZIONALIZZAZIONE A VILLA MELIS | G25: 4,000,000.00 | H25: 4,000,000.00 | I25: 0 | J25: 0 | K25: 2_SEMESTRE_2024 | L25: 1_SEMESTRE_2025 | M25: 2_SEMESTRE_2025 | N25: 1_SEMESTRE_2027 | O25: 2_SEMESTRE_2027 | P25: 2_SEMESTRE_2029
A26: FSCRI_RI_4197 | B26: UNIVERSITÀ DEGLI STUDI DI CAGLIARI | C26: 11.ISTRUZIONE E FORMAZIONE | D26: 11.01 STRUTTURE EDUCATIVE E FORMATIVE | E26: F37G22000210002 | F26: RIQUALIFICAZIONE SPAZI APERTI PARCO DELLE CONNESSIONI | G26: 2,500,000.00 | H26: 2,500,000.00 | I26: 0 | J26: 0 | K26: 1_SEMESTRE_2023 | L26: 2_SEMESTRE_2024 | M26: 1_SEMESTRE_2025 | N26: 1_SEMESTRE_2026 | O26: 2_SEMESTRE_2026 | P26: 2_SEMESTRE_2029
A27: FSCRI_RI_4198 | B27: CONSORZIO INDUSTRIALE PROVINCIALE SASSARI CIPSS | C27: 05.AMBIENTE E RISORSE NATURALI | D27: 05.02 RISORSE IDRICHE | E27: G25H24000070001 | F27: POTENZIAMENTO DELLA SEZIONE TERZIARIA DEL DEPURATORE CONSORTILE DI PORTO TORRES CIPSS | G27: 2,240,000.00 | H27: 2,240,000.00 | I27: 0 | J27: 0 | M27: 1_SEMESTRE_2026 | N27: 1_SEMESTRE_2027 | O27: 2_SEMESTRE_2027 | P27: 1_SEMESTRE_2029
A28: FSCRI_RI_4199 | B28: DIREZIONE GENERALE DELLA PROTEZIONE CIVILE | C28: 05.AMBIENTE E RISORSE NATURALI | D28: 05.01 RISCHI E ADATTAMENTO CLIMATICO | E28: E72H24001030001 | F28: INSTALLAZIONE NUOVE STAZIONI IDROMETRICHE (N.40 POSTAZIONI) | G28: 1,300,000.00 | H28: 1,300,000.00 | I28: 0 | J28: 0 | K28: 2_SEMESTRE_2025 | L28: 2_SEMESTRE_2025 | M28: 1_SEMESTRE_2026 | N28: 1_SEMESTRE_2026 | O28: 2_SEMESTRE_2026 | P28: 2_SEMESTRE_2028
A29: FSCRI_RI_4200 | B29: REGIONE AUTONOMA DELLA SARDEGNA | C29: 02.DIGITALIZZAZIONE | D29: 02.02 CONNETTIVITÀ DIGITALE | E29: E76F24000120003 | F29: RETI DI ACCESSO SISTEMA REGIONE | G29: 15,000,000.00 | H29: 15,000,000.00 | I29: 0 | J29: 0 | K29: 1_SEMESTRE_2025 | L29: 2_SEMESTRE_2025 | M29: 2_SEMESTRE_2025 | N29: 1_SEMESTRE_2026 | O29: 1_SEMESTRE_2026 | P29: 2_SEMESTRE_2029
A30: FSCRI_RI_4201 | B30: CONSORZIO INDUSTRIALE PROVINCIALE CARBONIA IGLESIAS - SICIP | C30: 05.AMBIENTE E RISORSE NATURALI | D30: 05.01 RISCHI E ADATTAMENTO CLIMATICO | E30: G74D24003720002 | F30: OPERE DI BONIFICA E LA MESSA IN SICUREZZA IDROGEOLOGICA E AMBIENTALE DELL’AREA DI SU STANGIONI SICIP | G30: 2,300,000.00 | H30: 2,300,000.00 | I30: 0 | J30: 0 | M30: 2_SEMESTRE_2025 | N30: 1_SEMESTRE_2026 | O30: 2_SEMESTRE_2026 | P30: 2_SEMESTRE_2028
A31: FSCRI_RI_4202 | B31: DIREZIONE GENERALE DELLA PROTEZIONE CIVILE | C31: 05.AMBIENTE E RISORSE NATURALI | D31: 05.01 RISCHI E ADATTAMENTO CLIMATICO | E31: E72B24000620001 | F31: INSTALLAZIONE SISTEMA DI MONITORAGGIO UMIDITÀ DEL SUOLO (N.30 POSTAZIONI) | G31: 1,200,000.00 | H31: 1,200,000.00 | I31: 0 | J31: 0 | K31: 2_SEMESTRE_2025 | L31: 2_SEMESTRE_2025 | M31: 1_SEMESTRE_2026 | N31: 2_SEMESTRE_2026 | O31: 1_SEMESTRE_2027 | P31: 2_SEMESTRE_2028
A32: FSCRI_RI_4203 | B32: REGIONE AUTONOMA DELLA SARDEGNA | C32: 02.DIGITALIZZAZIONE | D32: 02.02 CONNETTIVITÀ DIGITALE | E32: E71C23000790001 | F32: SICUREZZA APPLICATIVA DEL SISTEMA REGIONE | G32: 10,000,000.00 | H32: 10,000,000.00 | I32: 0 | J32: 0 | K32: 1_SEMESTRE_2025 | L32: 2_SEMESTRE_2025 | M32: 2_SEMESTRE_2025 | N32: 1_SEMESTRE_2026 | O32: 1_SEMESTRE_2026 | P32: 2_SEMESTRE_2029
A33: FSCRI_RI_4205 | B33: CONSORZIO INDUSTRIALE PROVINCIALE DI SASSARI | C33: 05.AMBIENTE E RISORSE NATURALI | D33: 05.04 BONIFICHE | E33: G22J22000050001 | F33: COMPLETAMENTO BONIFICA AREE FALLIMENTO VINYLS ITALIA S.P.A. | G33: 14,000,000.00 | H33: 8,100,000.00 | I33: 0 | J33: 5,900,000.00 | M33: 2_SEMESTRE_2027 | N33: 2_SEMESTRE_2028 | O33: 1_SEMESTRE_2029 | P33: 2_SEMESTRE_2035
A34: FSCRI_RI_4208 | B34: CONSORZIO INDUSTRIALE PROVINCIALE ORISTANESE | C34: 05.AMBIENTE E RISORSE NATURALI | D34: 05.03 RIFIUTI | E34: E54E12000570002 | F34: REALIZZAZIONE IMPIANTO PER LA BIODIGESTIONE ANAEROBICA DELLA FORSU | G34: 14,879,579.64 | H34: 3,921,858.45 | I34: 0 | J34: 10,957,721.19 | K34: 1_SEMESTRE_2023 | L34: 1_SEMESTRE_2023 | M34: 1_SEMESTRE_2023 | N34: 1_SEMESTRE_2025 | O34: 1_SEMESTRE_2025 | P34: 1_SEMESTRE_2026
A35: FSCRI_RI_4209 | B35: CONSORZIO INDUSTRIALE PROVINCIALE DI NUORO | C35: 05.AMBIENTE E RISORSE NATURALI | D35: 05.03 RIFIUTI | E35: D67B23000190002 | F35: COMPLETAMENTO IMPIANTO DI COMPOSTAGGIO | G35: 4,800,883.68 | H35: 4,800,883.68 | I35: 0 | J35: 0 | K35: 1_SEMESTRE_2023 | L35: 1_SEMESTRE_2024 | M35: 2_SEMESTRE_2025 | N35: 2_SEMESTRE_2025 | O35: 1_SEMESTRE_2026 | P35: 2_SEMESTRE_2027
A36: FSCRI_RI_4212 | B36: PROVINCIA DI NUORO - ZONA OMOGENEA DELL'OGLIASTRA | C36: 05.AMBIENTE E RISORSE NATURALI | D36: 05.03 RIFIUTI | E36: J68C24000430006 | F36: RISTRUTTURAZIONE E ADEGUAMENTO FUNZIONALE DELL'IMPIANTO DI COMPOSTAGGIO | G36: 2,585,400.00 | H36: 2,585,400.00 | I36: 0 | J36: 0 | K36: 2_SEMESTRE_2025 | L36: 1_SEMESTRE_2026 | M36: 2_SEMESTRE_2026 | N36: 2_SEMESTRE_2027 | O36: 1_SEMESTRE_2028 | P36: 2_SEMESTRE_2030
A37: FSCRI_RI_4214 | B37: CONSORZIO ZONA INDUSTRIALE DI INTERESSE REGIONALE DI CHILIVANI | C37: 05.AMBIENTE E RISORSE NATURALI | D37: 05.03 RIFIUTI | E37: D55I14000210002 | F37: REALIZZAZIONE DEL TERZO MODULO DELLA DISCARICA DI COLDIANU | G37: 7,200,000.00 | H37: 2,700,000.00 | I37: 0 | J37: 4,500,000.00 | M37: 1_SEMESTRE_2023 | N37: 2_SEMESTRE_2025 | O37: 1_SEMESTRE_2026 | P37: 2_SEMESTRE_2027
A38: FSCRI_RI_4216 | B38: COMUNE DI SASSARI | C38: 05.AMBIENTE E RISORSE NATURALI | D38: 05.03 RIFIUTI | E38: B82F24000460002 | F38: REALIZZAZIONE STAZIONE DI TRASFERENZA A SCALA ERRE | G38: 3,700,000.00 | H38: 3,700,000.00 | I38: 0 | J38: 0 | K38: 2_SEMESTRE_2024 | L38: 2_SEMESTRE_2024 | M38: 2 SEMESTRE 2025 | N38: 1_SEMESTRE_2026 | O38: 2_SEMESTRE_2026 | P38: 1_SEMESTRE_2028
A39: FSCRI_RI_4217 | B39: COMUNE DI PULA | C39: 05.AMBIENTE E RISORSE NATURALI | D39: 05.01 RISCHI E ADATTAMENTO CLIMATICO | E39: B78E24000140006 | F39: INTERVENTI PER LA TUTELA DEL SITO ARCHEOLOGICO DI NORA IN COMUNE DI PULA | G39: 10,000,000.00 | H39: 10,000,000.00 | I39: 0 | J39: 0 | K39: 2_SEMESTRE_2024 | L39: 1_SEMESTRE_2025 | M39: 2_SEMESTRE_2025 | N39: 2_SEMESTRE_2026 | O39: 1_SEMESTRE_2027 | P39: 2_SEMESTRE_2028
A40: FSCRI_RI_4219 | B40: CONSORZIO INDUSTRIALE PROVINCIALE NORD EST SARDEGNA GALLURA - CIPNES | C40: 01.RICERCA E INNOVAZIONE | D40: 01.01 RICERCA E SVILUPPO | E40: D97G24000290006 | F40: CIPNES - COMPLETAMENTO PTE CENTRO MULTIFUNZIONALE A SERVIZIO DELLE IMPRESE - 1° LOTTO STRALCIO A | G40: 14,850,000.00 | H40: 14,850,000.00 | I40: 0 | J40: 0 | K40: 2_SEMESTRE_2023 | L40: 1_SEMESTRE_2025 | M40: 2_SEMESTRE_2025 | N40: 1_SEMESTRE_2026 | O40: 2_SEMESTRE_2026 | P40: 2_SEMESTRE_2028
A41: FSCRI_RI_4220 | B41: UNIONE DEI COMUNI ALTA GALLURA | C41: 05.AMBIENTE E RISORSE NATURALI | D41: 05.03 RIFIUTI | E41: D55I24000220002 | F41: RIFUNZIONALIZZAZIONE SISTEMA DI COMPOSTAGGIO AEROBICO COMPRESO IL SISTEMA DI TRATTAMENTO ARIA | G41: 4,950,000.00 | H41: 4,950,000.00 | I41: 0 | J41: 0 | K41: 2_SEMESTRE_2024 | L41: 2_SEMESTRE_2024 | M41: 1_SEMESTRE_2025 | N41: 2_SEMESTRE_2025 | O41: 1_SEMESTRE_2026 | P41: 2_SEMESTRE_2026
A42: FSCRI_RI_4222 | B42: COMUNE DI ALGHERO | C42: 05.AMBIENTE E RISORSE NATURALI | D42: 05.01 RISCHI E ADATTAMENTO CLIMATICO | E42: G12B24016950002 | F42: OPERE DI DIFESA COSTIERA RADA DI ALGHERO – RICOSTITUZ. SPIAGGIA E SISTEMAZ. SCOGLIERE PUNTA DEL PARU | G42: 6,000,000.00 | H42: 6,000,000.00 | I42: 0 | J42: 0 | M42: 1_SEMESTRE_2026 | N42: 1_SEMESTRE_2027 | O42: 2_SEMESTRE_2027 | P42: 2_SEMESTRE_2029
A43: FSCRI_RI_4223 | B43: COMUNE DI CASTELSARDO | C43: 05.AMBIENTE E RISORSE NATURALI | D43: 05.01 RISCHI E ADATTAMENTO CLIMATICO | E43: E32B21000080001 | F43: OPERE CONSOLIDAMENTO E MESSA IN SICUREZZA FALESIA - MITIGAZIONE MAREGGIATA NEL GOLFO DELLA CIGNACCIA | G43: 8,000,000.00 | H43: 8,000,000.00 | I43: 0 | J43: 0 | M43: 1_SEMESTRE_2026 | N43: 2_SEMESTRE_2026 | O43: 2_SEMESTRE_2027 | P43: 2_SEMESTRE_2029
A44: FSCRI_RI_4225 | B44: CONSORZIO INDUSTRIALE PROVINCIALE ORISTANESE | C44: 05.AMBIENTE E RISORSE NATURALI | D44: 05.02 RISORSE IDRICHE | E44: E21E12000050002 | F44: COMPLETAMENTO ACQUEDOTTO POTABILE - POZZO IS MELONIS, PARTITORE. ADEGUAMENTO CONDOTTA COLLEG. CIPOR | G44: 4,503,067.00 | H44: 4,503,067.00 | I44: 0 | J44: 0 | K44: 1_SEMESTRE_2023 | L44: 1_SEMESTRE_2023 | M44: 2_SEMESTRE_2025 | N44: 1_SEMESTRE_2026 | O44: 2_SEMESTRE_2026 | P44: 2_SEMESTRE_2027
A45: FSCRI_RI_4226 | B45: DIREZIONE GENERALE DELLA PROTEZIONE CIVILE | C45: 05.AMBIENTE E RISORSE NATURALI | D45: 05.01 RISCHI E ADATTAMENTO CLIMATICO | E45: E72H24001040001 | F45: INSTALLAZIONE N. 10 STAZIONI DI VIDEOMONITORAGGIO COSTIERO | G45: 600,000.00 | H45: 600,000.00 | I45: 0 | J45: 0 | K45: 2_SEMESTRE_2025 | L45: 2_SEMESTRE_2025 | M45: 1_SEMESTRE_2026 | N45: 1_SEMESTRE_2026 | O45: 2_SEMESTRE_2026 | P45: 2_SEMESTRE_2028
A46: FSCRI_RI_4231 | B46: DIREZIONE GENERALE PROTEZIONE CIVILE | C46: 05.AMBIENTE E RISORSE NATURALI | D46: 05.01 RISCHI E ADATTAMENTO CLIMATICO | E46: E79I24001080001 | F46: ESTENSIONE SISTEMA INFORMATIVO DI PROTEZIONE CIVILE | G46: 8,000,000.00 | H46: 8,000,000.00 | I46: 0 | J46: 0 | K46: 2_SEMESTRE_2025 | L46: 2_SEMESTRE_2025 | M46: 1_SEMESTRE_2026 | N46: 2_SEMESTRE_2026 | O46: 1_SEMESTRE_2027 | P46: 2_SEMESTRE_2028
A47: FSCRI_RI_4232 | B47: CONSORZIO INDUSTRIALE PROVINCIALE ORISTANESE | C47: 03.COMPETITIVITÀ IMPRESE | D47: 03.01 INDUSTRIA E SERVIZI | E47: E16J24000110001 | F47: BONIFICA RECUPERO RIQUALIFICAZIONE INSED. PROD. EX IPO: REALIZZ. FABBRICATO PER PMI CORPO NORD CIPOR | G47: 6,320,000.00 | H47: 6,320,000.00 | I47: 0 | J47: 0 | K47: 1_SEMESTRE_2023 | L47: 1_SEMESTRE_2023 | M47: 2_SEMESTRE_2025 | N47: 1_SEMESTRE_2026 | O47: 2_SEMESTRE_2026 | P47: 2_SEMESTRE_2027
A48: FSCRI_RI_4234 | B48: REGIONE AUTONOMA DELLA SARDEGNA | C48: 02.DIGITALIZZAZIONE | D48: 02.01 TECNOLOGIE E SERVIZI DIGITALI | E48: E71C24000220001 | F48: SIBAR-AI | G48: 2,500,000.00 | H48: 2,500,000.00 | I48: 0 | J48: 0 | K48: 1_SEMESTRE_2025 | L48: 2_SEMESTRE_2025 | M48: 2_SEMESTRE_2025 | N48: 1_SEMESTRE_2026 | O48: 1_SEMESTRE_2026 | P48: 2_SEMESTRE_2029
A49: FSCRI_RI_4237 | B49: REGIONE AUTONOMA DELLA SARDEGNA | C49: 02.DIGITALIZZAZIONE | D49: 02.01 TECNOLOGIE E SERVIZI DIGITALI | E49: E71C23000780001 | F49: GIUSTIZIA DIGITALE 3 - DIGITALIZZAZIONE DEI TRIBUNALI DELLA SARDEGNA | G49: 1,500,000.00 | H49: 1,500,000.00 | I49: 0 | J49: 0 | K49: 1_SEMESTRE_2025 | L49: 2_SEMESTRE_2025 | M49: 2_SEMESTRE_2025 | N49: 1_SEMESTRE_2026 | O49: 1_SEMESTRE_2026 | P49: 2_SEMESTRE_2029
A50: FSCRI_RI_4238 | B50: DIREZIONE GENERALE DELLA PROTEZIONE CIVILE | C50: 05.AMBIENTE E RISORSE NATURALI | D50: 05.01 RISCHI E ADATTAMENTO CLIMATICO | E50: E29I24000860001 | F50: NUOVA SEDE DELLA DIREZIONE GENERALE DELLA PROTEZIONE CIVILE, COMPRENDENTE AULE SCUOLA REGIONALE | G50: 5,000,000.00 | H50: 5,000,000.00 | I50: 0 | J50: 0 | K50: 2_SEMESTRE_2025 | L50: 2_SEMESTRE_2025 | M50: 1_SEMESTRE_2026 | N50: 2_SEMESTRE_2026 | O50: 1_SEMESTRE_2027 | P50: 2_SEMESTRE_2028
A51: FSCRI_RI_4241 | B51: REGIONE AUTONOMA DELLA SARDEGNA | C51: 02.DIGITALIZZAZIONE | D51: 02.01 TECNOLOGIE E SERVIZI DIGITALI | E51: E71C23000800001 | F51: MANUTENZIONE STRAORDINARIA SISTEMI REGIONALI | G51: 5,500,000.00 | H51: 5,500,000.00 | I51: 0 | J51: 0 | K51: 1_SEMESTRE_2025 | L51: 2_SEMESTRE_2025 | M51: 2_SEMESTRE_2025 | N51: 1_SEMESTRE_2026 | O51: 1_SEMESTRE_2026 | P51: 2_SEMESTRE_2029
A52: FSCRI_RI_4242 | B52: DIREZIONE GENERALE DELLA PROTEZIONE CIVILE | C52: 05.AMBIENTE E RISORSE NATURALI | D52: 05.01 RISCHI E ADATTAMENTO CLIMATICO | E52: E29I24000850001 | F52: POTENZIAMENTO FLOTTA VEICOLI COLONNA MOBILE REGIONALE | G52: 19,533,770.50 | H52: 19,533,770.50 | I52: 0 | J52: 0 | K52: 2_SEMESTRE_2025 | L52: 2_SEMESTRE_2025 | M52: 1_SEMESTRE_2026 | N52: 2_SEMESTRE_2026 | O52: 1_SEMESTRE_2027 | P52: 2_SEMESTRE_2028
A53: FSCRI_RI_4244 | B53: CONSORZIO INDUSTRIALE PROVINCIALE CARBONIA IGLESIAS - SICIP | C53: 07.TRASPORTI E MOBILITÀ | D53: 07.01 TRASPORTO STRADALE | E53: G77H24001430001 | F53: OPERE MANUTENZIONE STRAORDINARIA INFRASTRUTTURE STRADALI AGGLOMERATO INDUSTRIALE PORTOVESME SICIP | G53: 9,129,000.00 | H53: 9,129,000.00 | I53: 0 | J53: 0 | M53: 2_SEMESTRE_2025 | N53: 2_SEMESTRE_2026 | O53: 1_SEMESTRE_2027 | P53: 2_SEMESTRE_2030
A54: FSCRI_RI_4245 | B54: REGIONE AUTONOMA DELLA SARDEGNA | C54: 02.DIGITALIZZAZIONE | D54: 02.02 CONNETTIVITÀ DIGITALE | E54: E26G24000170001 | F54: DATA CENTER IN CLOUD | G54: 30,000,000.00 | H54: 30,000,000.00 | I54: 0 | J54: 0 | K54: 1_SEMESTRE_2025 | L54: 2_SEMESTRE_2025 | M54: 2_SEMESTRE_2025 | N54: 1_SEMESTRE_2026 | O54: 1_SEMESTRE_2026 | P54: 2_SEMESTRE_2029
A55: FSCRI_RI_4250 | B55: DIREZIONE GENERALE DELLA PROTEZIONE CIVILE | C55: 05.AMBIENTE E RISORSE NATURALI | D55: 05.01 RISCHI E ADATTAMENTO CLIMATICO | E55: E71J24000630001 | F55: RETE DEI PRESIDI LOCALI (CCA E COC) A GARANZIA DELLA OPERATIVITÀ DEL SISTEMA DI PROTEZIONE CIVILE | G55: 14,850,000.00 | H55: 10,000,000.00 | I55: 0 | J55: 4,850,000.00 | K55: 2_SEMESTRE_2025 | L55: 2_SEMESTRE_2025 | M55: 1_SEMESTRE_2026 | N55: 1_SEMESTRE_2027 | O55: 1_SEMESTRE_2027 | P55: 2_SEMESTRE_2028
A56: FSCRI_RI_4251 | B56: CONSORZIO INDUSTRIALE PROVINCIALE DI CAGLIARI | C56: 05.AMBIENTE E RISORSE NATURALI | D56: 05.03 RIFIUTI | E56: F46D12000120002 | F56: REVAMPING DELLE LINEE A E B DEL TERMOVALORIZZATORE DI MACCHIAREDDU | G56: 65,422,884.07 | H56: 14,516,413.07 | I56: 0 | J56: 50,906,471.00 | O56: 1_SEMESTRE_2023 | P56: 2_SEMESTRE_2027
A57: FSCRI_RI_4252 | B57: CONSORZIO INDUSTRIALE PROVINCIALE DI SASSARI CIPSS | C57: 08.RIQUALIFICAZIONE URBANA | D57: 08.01 EDILIZIA E SPAZI PUBBLICI | E57: G23B21000190001 | F57: DECOMMISSIONING DELL’AREA EX CEMENTIR SUL WATER FRONT DEL PORTO INDUSTRIALE DI PORTO TORRES CIPSS | G57: 3,887,342.93 | H57: 3,887,342.93 | I57: 0 | J57: 0 | M57: 2_SEMESTRE_2025 | N57: 1_SEMESTRE_2026 | O57: 2_SEMESTRE_2026 | P57: 2_SEMESTRE_2028
A58: FSCRI_RI_4254 | B58: CONSORZIO INDUSTRIALE PROVINCIALE DELL’OGLIASTRA CIPOGL | C58: 03.COMPETITIVITÀ IMPRESE | D58: 03.01 INDUSTRIA E SERVIZI | E58: H53G24000060001 | F58: INFRASTRUTTURAZIONE E COMPLETAMENTO AREE EX CARTIERA-LINEE VARO-TRAVEL LIFT BACINO GALLEGGIAN CIPOGL | G58: 10,000,000.00 | H58: 10,000,000.00 | I58: 0 | J58: 0 | K58: 1_SEMESTRE_2023 | L58: 2_SEMESTRE_2025 | M58: 2_SEMESTRE_2025 | N58: 1_SEMESTRE_2026 | O58: 2_SEMESTRE_2026 | P58: 2_SEMESTRE_2029
A59: FSCRI_RI_4255 | B59: DIREZIONE GENERALE DELLA PROTEZIONE CIVILE | C59: 05.AMBIENTE E RISORSE NATURALI | D59: 05.01 RISCHI E ADATTAMENTO CLIMATICO | E59: E79I24001070001 | F59: RETE REGIONALE DI PRESIDI INTEGRATI DI PROTEZIONE CIVILE E SANITARI DEL LITORALI - SISB | G59: 10,070,000.00 | H59: 10,000,000.00 | I59: 0 | J59: 70,000.00 | K59: 2_SEMESTRE_2025 | L59: 2_SEMESTRE_2025 | M59: 1_SEMESTRE_2026 | N59: 2_SEMESTRE_2027 | O59: 2_SEMESTRE_2026 | P59: 2_SEMESTRE_2028
A60: FSCRI_RI_4256 | B60: CONSORZIO INDUSTRIALE PROVINCIALE DI SASSARI CIPSS | C60: 08.RIQUALIFICAZIONE URBANA | D60: 08.01 EDILIZIA E SPAZI PUBBLICI | E60: G23B24000000001 | F60: DECOMMISSIONING DI 46 HA SUL WATER FRONT DEL PORTO INDUSTRIALE DI PORTO TORRES CIPSS | G60: 20,000,000.00 | H60: 20,000,000.00 | I60: 0 | J60: 0 | M60: 1_SEMESTRE_2026 | N60: 2_SEMESTRE_2027 | O60: 2_SEMESTRE_2027 | P60: 1_SEMESTRE_2031
A61: FSCRI_RI_4258 | B61: CONSORZIO INDUSTRIALE PROVINCIALE DI NUORO CIPNU | C61: 08.RIQUALIFICAZIONE URBANA | D61: 08.01 EDILIZIA E SPAZI PUBBLICI | E61: D74H24000360001 | F61: INTERVENTO DI URBANIZZAZIONE PRIMARIA AGGLOMERATO INDUSTRIALE DEL SOLOGO CIPNU | G61: 8,000,000.00 | H61: 8,000,000.00 | I61: 0 | J61: 0 | K61: 2_SEMESTRE_2025 | L61: 2_SEMESTRE_2025 | M61: 1_SEMESTRE_2026 | N61: 2_SEMESTRE_2026 | O61: 2_SEMESTRE_2027 | P61: 2_SEMESTRE_2028
A62: FSCRI_RI_4259 | B62: CONSORZIO INDUSTRIALE PROVINCIALE DI NUORO CIPNU | C62: 07.TRASPORTI E MOBILITÀ | D62: 07.01 TRASPORTO STRADALE | E62: D87H24004470001 | F62: ADEGUAMENTO FUNZIONALE VIABILITÀ PRINCIPALE AGGLOMERATO INDUSTRIALE OTTANA BOLOTANA NORAGUGUME CIPNU | G62: 6,000,000.00 | H62: 6,000,000.00 | I62: 0 | J62: 0 | K62: 1_SEMESTRE_2026 | L62: 2_SEMESTRE_2026 | M62: 2_SEMESTRE_2026 | N62: 1_SEMESTRE_2027 | O62: 2_SEMESTRE_2027 | P62: 2_SEMESTRE_2028
A63: FSCRI_RI_4260 | B63: CONSORZIO INDUSTRIALE PROVINCIALE MEDIO CAMPIDANO - VILLACIDRO CIPMC | C63: 05.AMBIENTE E RISORSE NATURALI | D63: 05.04 BONIFICHE | E63: D11E24000370001 | F63: LAVORI DI BONIFICA IMMOBILI E AREE CONSORTILI | G63: 5,000,000.00 | H63: 5,000,000.00 | I63: 0 | J63: 0 | K63: 1_SEMESTRE_2026 | L63: 2_SEMESTRE_2026 | M63: 1_SEMESTRE_2027 | N63: 1_SEMESTRE_2027 | O63: 2_SEMESTRE_2027 | P63: 2_SEMESTRE_2029
A64: FSCRI_RI_4261 | B64: CONSORZIO DI BONIFICA DELLA SARDEGNA MERIDIONALE | C64: 05.AMBIENTE E RISORSE NATURALI | D64: 05.01 RISCHI E ADATTAMENTO CLIMATICO | E64: C82E19000090002 | F64: RAZIONALIZZAZIONE ED EFFICIENTAMENTO IRRIGUO DEL PARTEOLLA – LOTTO 1B | G64: 4,800,000.00 | H64: 4,800,000.00 | I64: 0 | J64: 0 | K64: 1_SEMESTRE_2023 | L64: 1_SEMESTRE_2023 | M64: 2_SEMESTRE_2023 | N64: 2_SEMESTRE_2023 | O64: 2_SEMESTRE_2025 | P64: 2_SEMESTRE_2026
A65: FSCRI_RI_4262 | B65: AREUS | C65: 10.SOCIALE E SALUTE | D65: 10.02 STRUTTURE E ATTREZZATURE SANITARIE | E65: I64H24000520001 | F65: RIQUALIFICAZIONE POSTAZIONI 118 SEDI CON MEZZI DI SOCCORSO AVANZATO | G65: 1,500,000.00 | H65: 1,500,000.00 | I65: 0 | J65: 0 | K65: 1_SEMESTRE_2025 | L65: 2_SEMESTRE_2025 | M65: 2_SEMESTRE_2025 | N65: 1_SEMESTRE_2032 | O65: 2_SEMESTRE_2026 | P65: 2_SEMESTRE_2032
A66: FSCRI_RI_4263 | B66: CONSORZIO DI BONIFICA DELLA GALLURA | C66: 05.AMBIENTE E RISORSE NATURALI | D66: 05.01 RISCHI E ADATTAMENTO CLIMATICO | E66: G48B24000380005 | F66: MANUTENZIONE STRAORDINARIA CONDOTTE IN FIBROCEMENTO SETTORE B DISTRETTO IRRIGUO DI ARZACHENA-LOTTO I | G66: 6,000,000.00 | H66: 6,000,000.00 | I66: 0 | J66: 0 | M66: 2_SEMESTRE_2025 | N66: 1_SEMESTRE_2026 | O66: 2_SEMESTRE_2026 | P66: 1_SEMESTRE_2028
A67: FSCRI_RI_4264 | B67: COMUNE DI LA MADDALENA | C67: 07.TRASPORTI E MOBILITÀ | D67: 07.03 TRASPORTO MARITTIMO E LOGISTICA | E67: C61I24000480002 | F67: ELETTRIFICAZIONE BANCHINE PORTUALI DI LA MADDALENA | G67: 500,000.00 | H67: 500,000.00 | I67: 0 | J67: 0 | K67: 2_SEMESTRE_2024 | L67: 1_SEMESTRE_2026 | M67: 2_SEMESTRE_2026 | N67: 2_SEMESTRE_2027 | O67: 1_SEMESTRE_2028 | P67: 2_SEMESTRE_2030
A68: FSCRI_RI_4265 | B68: CONSORZIO BONIFICA SARDEGNA MERIDIONALE | C68: 05.AMBIENTE E RISORSE NATURALI | D68: 05.02 RISORSE IDRICHE | E68: C17J21000040002 | F68: RIPRISTINO FUNZIONALITÀ SISTEMA AUTOMATIZZATO DI MISURA VOLUMI IDRICI USO IRRIGUO ZONA 1 E ZONA 2 | G68: 9,180,000.00 | H68: 9,180,000.00 | I68: 0 | J68: 0 | K68: 2_SEMESTRE_2024 | L68: 1_SEMESTRE_2025 | M68: 2_SEMESTRE_2025 | N68: 2_SEMESTRE_2025 | O68: 1_SEMESTRE_2026 | P68: 2_SEMESTRE_2028
A69: FSCRI_RI_4266 | B69: CONSORZIO INDUSTRIALE PROVINCIALE MEDIO CAMPIDANO - VILLACIDRO CIPMC | C69: 05.AMBIENTE E RISORSE NATURALI | D69: 05.02 RISORSE IDRICHE | E69: D18B24000260001 | F69: MANUTENZIONE STRAORDINARIA SISTEMA POTABILIZ E RETE DISTRIBUZ IDRICA POTABILE E IND CONSORTILE CIPMC | G69: 5,000,000.00 | H69: 5,000,000.00 | I69: 0 | J69: 0 | K69: 1_SEMESTRE_2026 | L69: 2_SEMESTRE_2026 | M69: 1_SEMESTRE_2027 | N69: 1_SEMESTRE_2027 | O69: 2_SEMESTRE_2027 | P69: 2_SEMESTRE_2030
A70: FSCRI_RI_4267 | B70: CONSORZIO DI BONIFICA DEL NORD SARDEGNA | C70: 05.AMBIENTE E RISORSE NATURALI | D70: 05.01 RISCHI E ADATTAMENTO CLIMATICO | E70: B98B20000420006 | F70: IMPERMEABILIZZAZIONE E MESSA IN SICUREZZA DEL CANALE DEL DISTRETTO DI PERFUGAS E MANUTENZIONE OPERE | G70: 4,500,000.00 | H70: 4,500,000.00 | I70: 0 | J70: 0 | M70: 2_SEMESTRE_2025 | N70: 1_SEMESTRE_2026 | O70: 2_SEMESTRE_2026 | P70: 2_SEMESTRE_2028
A71: FSCRI_RI_4268 | B71: CONSORZIO DI BONIFICA DEL NORD SARDEGNA | C71: 05.AMBIENTE E RISORSE NATURALI | D71: 05.01 RISCHI E ADATTAMENTO CLIMATICO | E71: B56I22000230002 | F71: RAZIONALIZZAZIONE DEI SISTEMI DI DISTRIBUZIONE IRRIGUA - SETTORE MUDDIZZA - BASSA VALLE DEL COGHINAS | G71: 1,762,500.00 | H71: 1,762,500.00 | I71: 0 | J71: 0 | K71: 2_SEMESTRE_2025 | L71: 2_SEMESTRE_2025 | M71: 1_SEMESTRE_2026 | N71: 2_SEMESTRE_2026 | O71: 1_SEMESTRE_2027 | P71: 1_SEMESTRE_2028
A72: FSCRI_RI_4269 | B72: CONSORZIO DI BONIFICA DELLA NURRA | C72: 05.AMBIENTE E RISORSE NATURALI | D72: 05.01 RISCHI E ADATTAMENTO CLIMATICO | E72: D88B22000970001 | F72: INTERVENTO DI RIFACIMENTO DELLA CONDOTTA ADDUTTRICE PRINCIPALE 2 NORD | G72: 8,676,057.80 | H72: 8,676,057.80 | I72: 0 | J72: 0 | M72: 2_SEMESTRE_2025 | N72: 2_SEMESTRE_2025 | O72: 2_SEMESTRE_2026 | P72: 2_SEMESTRE_2027
A73: FSCRI_RI_4270 | B73: AOU CAGLIARI | C73: 10.SOCIALE E SALUTE | D73: 10.02 STRUTTURE E ATTREZZATURE SANITARIE | E73: G38I24001590001 | F73: BLOCCO R PRESSO IL POLICLINICO UNIVERSITARIO - INTERVENTI DI COMPLETAMENTO | G73: 30,000,000.00 | H73: 30,000,000.00 | I73: 0 | J73: 0 | M73: 1_SEMESTRE_2027 | N73: 2_SEMESTRE_2027 | O73: 2_SEMESTRE_2027 | P73: 2_SEMESTRE_2032
A74: FSCRI_RI_4271 | B74: CONSORZIO DI BONIFICA DELLA SARDEGNA MERIDIONALE | C74: 05.AMBIENTE E RISORSE NATURALI | D74: 05.01 RISCHI E ADATTAMENTO CLIMATICO | E74: C68B22000220002 | F74: RISANAMENTO DELLA CONDOTTA DISTRETTUALE DISTRETTO IRRIGUO SAN SPERATE | G74: 7,700,000.00 | H74: 7,700,000.00 | I74: 0 | J74: 0 | K74: 1_SEMESTRE_2022 | L74: 1_SEMESTRE_2022 | M74: 1_SEMESTRE_2022 | N74: 1_SEMESTRE_2025 | O74: 2_SEMESTRE_2025 | P74: 2_SEMESTRE_2029
A75: FSCRI_RI_4272 | B75: CONSORZIO DI BONIFICA DELLA NURRA | C75: 05.AMBIENTE E RISORSE NATURALI | D75: 05.01 RISCHI E ADATTAMENTO CLIMATICO | E75: D88B24000440002 | F75: INTERVENTO DI RIFACIMENTO DELLA CONDOTTA ADDUTTRICE PRINCIPALE 2 SUD - LOTTO 1 | G75: 14,000,000.00 | H75: 14,000,000.00 | I75: 0 | J75: 0 | M75: 2_SEMESTRE_2025 | N75: 2_SEMESTRE_2025 | O75: 2_SEMESTRE_2026 | P75: 1_SEMESTRE_2028
A76: FSCRI_RI_4273 | B76: COMUNE DI CARLOFORTE | C76: 07.TRASPORTI E MOBILITÀ | D76: 07.03 TRASPORTO MARITTIMO E LOGISTICA | E76: H57F24000020009 | F76: ELETTRIFICAZIONE BANCHINE PORTUALI DI CARLOFORTE | G76: 500,000.00 | H76: 500,000.00 | I76: 0 | J76: 0 | K76: 2_SEMESTRE_2024 | L76: 1_SEMESTRE_2026 | M76: 1_SEMESTRE_2026 | N76: 2_SEMESTRE_2026 | O76: 1_SEMESTRE_2027 | P76: 2_SEMESTRE_2028
A77: FSCRI_RI_4274 | B77: AOU CAGLIARI | C77: 10.SOCIALE E SALUTE | D77: 10.02 STRUTTURE E ATTREZZATURE SANITARIE | E77: G52C24000090001 | F77: ACCORPAMENTO DEI SERVIZI SANITARI E AMMINISTRATIVI ATTUALMENTE DISLOCATI NEL TERRITORIO DI CAGLIARI | G77: 31,300,000.00 | H77: 31,300,000.00 | I77: 0 | J77: 0 | M77: 1_SEMESTRE_2025 | N77: 1_SEMESTRE_2033 | O77: 1_SEMESTRE_2026 | P77: 2_SEMESTRE_2035
A78: FSCRI_RI_4275 | B78: CONSORZIO BONIFICA SARDEGNA MERIDIONALE | C78: 05.AMBIENTE E RISORSE NATURALI | D78: 05.02 RISORSE IDRICHE | E78: C78B22000270002 | F78: RIF.COND.PRINC. 1°COMPR.IRRI. II LOTTO - SOSTIT. COND. COMIZI 9-11, MANUT.STRAOR. VASCA COMP. BAREGA | G78: 4,500,000.00 | H78: 4,500,000.00 | I78: 0 | J78: 0 | K78: 1_SEMESTRE_2025 | L78: 1_SEMESTRE_2025 | M78: 2_SEMESTRE_2025 | N78: 1_SEMESTRE_2026 | O78: 2_SEMESTRE_2026 | P78: 2_SEMESTRE_2027
A79: FSCRI_RI_4276 | B79: CONSORZIO INDUSTRIALE PROVINCIALE MEDIO CAMPIDANO - VILLACIDRO CIPMC | C79: 08.RIQUALIFICAZIONE URBANA | D79: 08.01 EDILIZIA E SPAZI PUBBLICI | E79: D13F24000020001 | F79: LAVORI DI MANUTENZIONE STRAORDINARIA E RIQUALIFICAZIONE DEGLI EDIFICI CONSORTILI CIPMC | G79: 4,500,000.00 | H79: 4,500,000.00 | I79: 0 | J79: 0 | K79: 1_SEMESTRE_2026 | L79: 2_SEMESTRE_2026 | M79: 1_SEMESTRE_2027 | N79: 1_SEMESTRE_2027 | O79: 2_SEMESTRE_2027 | P79: 2_SEMESTRE_2030
A80: FSCRI_RI_4277 | B80: CONSORZIO DI BONIFICA DELLA NURRA | C80: 05.AMBIENTE E RISORSE NATURALI | D80: 05.01 RISCHI E ADATTAMENTO CLIMATICO | E80: D18B20004300001 | F80: MANUTENZIONE STRAORDINARIA E ADEGUAMENTO SISTEMA MISURAZ RISORSA IRRIGUA ALLA DISTRIBUZIONE LOTTO 2 | G80: 4,123,089.00 | H80: 4,123,089.00 | I80: 0 | J80: 0 | M80: 2_SEMESTRE_2022 | N80: 2_SEMESTRE_2022 | O80: 2_SEMESTRE_2025 | P80: 1_SEMESTRE_2026
A81: FSCRI_RI_4278 | B81: ARST S.P.A. | C81: 07.TRASPORTI E MOBILITÀ | D81: 07.05 MOBILITÀ URBANA | E81: F61B24000390001 | F81: TRASPORTO RAPIDO DI MASSA - INFRASTRUTTURAZIONE LINEA EXPRESS TPL AUTOMOBILISTICO ABBASANTA - NUORO | G81: 10,000,000.00 | H81: 10,000,000.00 | I81: 0 | J81: 0 | K81: 1_SEMESTRE_2023 | L81: 1_SEMESTRE_2025 | M81: 2_SEMESTRE_2025 | N81: 1_SEMESTRE_2027 | O81: 2_SEMESTRE_2027 | P81: 2_SEMESTRE_2030
A82: FSCRI_RI_4279 | B82: CONSORZIO DI BONIFICA D'OGLIASTRA | C82: 05.AMBIENTE E RISORSE NATURALI | D82: 05.02 RISORSE IDRICHE | E82: C68B24000250006 | F82: SOSTITUZIONE RETI IRRIGUE IN CEMENTO AMIANTO | G82: 4,500,000.00 | H82: 4,500,000.00 | I82: 0 | J82: 0 | K82: 1_SEMESTRE_2025 | L82: 2_SEMESTRE_2025 | M82: 2_SEMESTRE_2025 | N82: 1_SEMESTRE_2026 | O82: 2_SEMESTRE_2026 | P82: 2_SEMESTRE_2029
A83: FSCRI_RI_4280 | B83: CONSORZIO INDUSTRIALE PROVINCIALE DI NUORO CIPNU | C83: 05.AMBIENTE E RISORSE NATURALI | D83: 05.01 RISCHI E ADATTAMENTO CLIMATICO | E83: D71D24000120001 | F83: REALIZZAZIONE ELISUPERFICIE AGGLOMERATO IND.LE OTTANA BOLOTANA E NORAGUGUME COMUNE OTTANA CIPNU | G83: 4,500,000.00 | H83: 4,500,000.00 | I83: 0 | J83: 0 | K83: 1_SEMESTRE_2026 | L83: 2_SEMESTRE_2026 | M83: 2_SEMESTRE_2026 | N83: 1_SEMESTRE_2027 | O83: 2_SEMESTRE_2027 | P83: 2_SEMESTRE_2028
A84: FSCRI_RI_4281 | B84: ASL 5 ORISTANO | C84: 10.SOCIALE E SALUTE | D84: 10.02 STRUTTURE E ATTREZZATURE SANITARIE | E84: J15F24000550001 | F84: CASA DELLA SALUTE DI TERRALBA | G84: 6,250,000.00 | H84: 6,250,000.00 | I84: 0 | J84: 0 | M84: 1_SEMESTRE_2025 | N84: 1_SEMESTRE_2027 | O84: 2_SEMESTRE_2027 | P84: 2_SEMESTRE_2035
A85: FSCRI_RI_4282 | B85: CONSORZIO DI BONIFICA DELLA SARDEGNA MERIDIONALE | C85: 05.AMBIENTE E RISORSE NATURALI | D85: 05.01 RISCHI E ADATTAMENTO CLIMATICO | E85: C48B21000070002 | F85: RISTRUTTURAZIONE DISTRETTO IRRIGUO DI SARDARA A-B-C | G85: 4,000,000.00 | H85: 4,000,000.00 | I85: 0 | J85: 0 | K85: 1_SEMESTRE_2022 | L85: 1_SEMESTRE_2022 | M85: 1_SEMESTRE_2022 | N85: 2_SEMESTRE_2025 | O85: 1_SEMESTRE_2026 | P85: 2_SEMESTRE_2028
A86: FSCRI_RI_4283 | B86: ASL 3 NUORO | C86: 10.SOCIALE E SALUTE | D86: 10.02 STRUTTURE E ATTREZZATURE SANITARIE | E86: B65F24000550001 | F86: AREA DAY HOSPITAL | G86: 7,000,000.00 | H86: 7,000,000.00 | I86: 0 | J86: 0 | K86: 1_SEMESTRE_2025 | L86: 2_SEMESTRE_2025 | M86: 1_SEMESTRE_2026 | N86: 1_SEMESTRE_2027 | O86: 2_SEMESTRE_2027 | P86: 2_SEMESTRE_2031
A87: FSCRI_RI_4286 | B87: ARST SPA | C87: 07.TRASPORTI E MOBILITÀ | D87: 07.02 TRASPORTO FERROVIARIO | E87: F73I24000080001 | F87: RIQUALIFICAZIONE E POTENZIAMENTO ACCESSIBILITÀ STAZIONI RETE TPL A SCARTAMENTO RIDOTTO E DEPOSITI | G87: 18,000,000.00 | H87: 18,000,000.00 | I87: 0 | J87: 0 | K87: 1_SEMESTRE_2023 | L87: 1_SEMESTRE_2025 | M87: 2_SEMESTRE_2025 | N87: 1_SEMESTRE_2027 | O87: 2_SEMESTRE_2027 | P87: 2_SEMESTRE_2032
A88: FSCRI_RI_4287 | B88: ARNAS "G. BROTZU" | C88: 10.SOCIALE E SALUTE | D88: 10.02 STRUTTURE E ATTREZZATURE SANITARIE | E88: C25F24000260003 | F88: P.O SAN MICHELE PIASTRA TECNOLOGICA PER L'EMERGENZA - URGENZA | G88: 123,000,000.00 | H88: 58,000,000.00 | I88: 0 | J88: 65,000,000.00 | M88: 1_SEMESTRE_2025 | N88: 1_SEMESTRE_2026 | O88: 2_SEMESTRE_2026 | P88: 2_SEMESTRE_2031
A89: FSCRI_RI_4288 | B89: CONSORZIO DI BONIFICA DEL NORD SARDEGNA | C89: 05.AMBIENTE E RISORSE NATURALI | D89: 05.01 RISCHI E ADATTAMENTO CLIMATICO | E89: B52E23055530006 | F89: SISTEMA DI DERIVAZIONE ACQUE DEL RIO MANNU DI OZIERI AL SERVIZIO DISTRETTO IRRIGUO PIANA CHILIVANI | G89: 13,450,000.00 | H89: 13,450,000.00 | I89: 0 | J89: 0 | K89: 2_SEMESTRE_2025 | L89: 2_SEMESTRE_2025 | M89: 1_SEMESTRE_2026 | N89: 1_SEMESTRE_2027 | O89: 1_SEMESTRE_2028 | P89: 2_SEMESTRE_2030
A90: FSCRI_RI_4289 | B90: CONSORZIO DI BONIFICA DELL'ORISTANESE | C90: 05.AMBIENTE E RISORSE NATURALI | D90: 05.01 RISCHI E ADATTAMENTO CLIMATICO | E90: G41D21000300001 | F90: AMMODERNAMENTO, ADEGUAMENTO NORMATIVO E POTENZIAMENTO DELLA CENTRALE DEL SINIS - CAT P0121 | G90: 8,294,209.91 | H90: 8,294,209.91 | I90: 0 | J90: 0 | K90: 1_SEMESTRE_2025 | L90: 1_SEMESTRE_2025 | M90: 2_SEMESTRE_2025 | N90: 1_SEMESTRE_2026 | O90: 2_SEMESTRE_2026 | P90: 1_SEMESTRE_2028
A91: FSCRI_RI_4293 | B91: CONSORZIO DI BONIFICA DELLA SARDEGNA CENTRALE | C91: 05.AMBIENTE E RISORSE NATURALI | D91: 05.01 RISCHI E ADATTAMENTO CLIMATICO | E91: I98B24000260001 | F91: SUB-COMPRENSORIO CEDRINO - MANUTENZIONE STRAORDINARIA DI CONDOTTE COMUNE DI OROSEI CON RELINING | G91: 1,750,000.00 | H91: 1,750,000.00 | I91: 0 | J91: 0 | M91: 1_SEMESTRE 2026 | N91: 2_SEMESTRE_2026 | O91: 1_SEMESTRE_2027 | P91: 1_SEMESTRE_2028
A92: FSCRI_RI_4294 | B92: CIPOGL CONSORZIO INDUSTRIALE PROVINCIALE DELL’OGLIASTRA | C92: 03.COMPETITIVITÀ IMPRESE | D92: 03.01 INDUSTRIA E SERVIZI | E92: H54G24000040001 | F92: CIPOGL RISTRUTTURAZIONE VOLUME CARTIERA DI ARBATAX - CENTRO DI RICERCA NAUTICA E AEROSPAZIO | G92: 6,300,000.00 | H92: 6,300,000.00 | I92: 0 | J92: 0 | K92: 1_SEMESTRE_2024 | L92: 2_SEMESTRE_2025 | M92: 2_SEMESTRE_2025 | N92: 2_SEMESTRE_2026 | O92: 2_SEMESTRE_2026 | P92: 2_SEMESTRE_2028
A93: FSCRI_RI_4296 | B93: CONSORZIO DI BONIFICA DELL'ORISTANESE | C93: 05.AMBIENTE E RISORSE NATURALI | D93: 05.01 RISCHI E ADATTAMENTO CLIMATICO | E93: G61D21000380001 | F93: AMMODERNAMENTO IMPIANTI E REALIZZAZIONE OPERE COMPLEMENTARI CENTRALI DI SOLLEVAMENTO SASSU 1,2,3,4,5 | G93: 11,844,840.00 | H93: 11,844,840.00 | I93: 0 | J93: 0 | M93: 2_SEMESTRE_2025 | N93: 1_SEMESTRE_2026 | O93: 1_SEMESTRE_2027 | P93: 1_SEMESTRE_2028
A94: FSCRI_RI_4297 | B94: ARNAS "G. BROTZU" | C94: 10.SOCIALE E SALUTE | D94: 10.02 STRUTTURE E ATTREZZATURE SANITARIE | E94: C24E24000340001 | F94: P.O. ONCOLOGICO BUSINCO | G94: 3,000,000.00 | H94: 3,000,000.00 | I94: 0 | J94: 0 | M94: 1_SEMESTRE_2025 | N94: 1_SEMESTRE_2026 | O94: 2_SEMESTRE_2026 | P94: 1_SEMESTRE_2027
A95: FSCRI_RI_4298 | B95: CONSORZIO BONIFICA DELLA SARDEGNA CENTRALE | C95: 05.AMBIENTE E RISORSE NATURALI | D95: 05.01 RISCHI E ADATTAMENTO CLIMATICO | E95: I58B23000440001 | F95: DISTRETTO IRR. POSADA. MANUTENZIONE STRAORDINARIA VASCHE DI COMPENSO CONSORTILI A OVERÌ E SAS MURTAS | G95: 1,650,000.00 | H95: 1,650,000.00 | I95: 0 | J95: 0 | M95: 2_SEMESTRE_2025 | N95: 1_SEMESTRE_2026 | O95: 2_SEMESTRE_2026 | P95: 2_SEMESTRE_2027
A96: FSCRI_RI_4300 | B96: ARST S.P.A. | C96: 07.TRASPORTI E MOBILITÀ | D96: 07.05 MOBILITÀ URBANA | E96: F61B24000400001 | F96: TRASPORTO RAPIDO DI MASSA - INFRASTRUTTURAZIONE LINEA EXPRESS TPL AUTOMOBILISTICO NUORO - OLBIA | G96: 20,000,000.00 | H96: 20,000,000.00 | I96: 0 | J96: 0 | K96: 1_SEMESTRE_2023 | L96: 1_SEMESTRE_2025 | M96: 2_SEMESTRE_2025 | N96: 1_SEMESTRE_2027 | O96: 2_SEMESTRE_2027 | P96: 2_SEMESTRE_2032
A97: FSCRI_RI_4301 | B97: CONSORZIO INDUSTRIALE PROVINCIALE DELL’OGLIASTRA CIPOGL | C97: 05.AMBIENTE E RISORSE NATURALI | D97: 05.02 RISORSE IDRICHE | E97: H52E24000200001 | F97: RIUTILIZZO ACQUE REFLUE AFFINATE | G97: 5,000,000.00 | H97: 5,000,000.00 | I97: 0 | J97: 0 | K97: 2_SEMESTRE_2025 | L97: 1_SEMESTRE_2026 | M97: 2_SEMESTRE_2025 | N97: 2_SEMESTRE_2026 | O97: 2_SEMESTRE_2026 | P97: 2_SEMESTRE_2028
A98: FSCRI_RI_4303 | B98: CONSORZIO DI BONIFICA DELLA SARDEGNA CENTRALE | C98: 05.AMBIENTE E RISORSE NATURALI | D98: 05.01 RISCHI E ADATTAMENTO CLIMATICO | E98: I88B24000160001 | F98: MANUTENZIONE STRAORD DIGA SARUXI-SEDILO(OR) E RIPRISTINO CANALE ADD TRA LAGO BENZONE E DIGA SARUXI | G98: 750,000.00 | H98: 750,000.00 | I98: 0 | J98: 0 | O98: 2_SEMESTRE_2027 | P98: 1_SEMESTRE_2028
A99: FSCRI_RI_4304 | B99: ASL 8 CAGLIARI | C99: 10.SOCIALE E SALUTE | D99: 10.02 STRUTTURE E ATTREZZATURE SANITARIE | E99: D78I24000190001 | F99: CASA DELLA SALUTE SENORBÌ | G99: 2,500,000.00 | H99: 2,500,000.00 | I99: 0 | J99: 0 | O99: 1_SEMESTRE_2026 | P99: 1_SEMESTRE_2028
A100: FSCRI_RI_4305 | B100: ASL 8 CAGLIARI | C100: 10.SOCIALE E SALUTE | D100: 10.02 STRUTTURE E ATTREZZATURE SANITARIE | E100: D28I24000230001 | F100: ADEGUAMENTO ANTINCENDIO POLIAMBULATORI (SUP.>1000MQ) (SS_SAN_046) | G100: 2,800,000.00 | H100: 2,800,000.00 | I100: 0 | J100: 0 | M100: 2_SEMESTRE_2025 | N100: 1_SEMESTRE_2026 | O100: 2_SEMESTRE 2026 | P100: 2_SEMESTRE 2028
A101: FSCRI_RI_4308 | B101: ARST SPA | C101: 07.TRASPORTI E MOBILITÀ | D101: 07.05 MOBILITÀ URBANA | E101: F90I22000000001 | F101: METROPOLITANA AREA VASTA DI CAGLIARI - LINEA CAGLIARI MONSERRATO SESTU: FORNITURA 4 TRAM | G101: 20,880,000.00 | H101: 20,880,000.00 | I101: 0 | J101: 0 | K101: 1_SEMESTRE_2023 | L101: 1_SEMESTRE_2025 | M101: 2_SEMESTRE_2025 | N101: 2_SEMESTRE_2026 | O101: 2_SEMESTRE_2026 | P101: 2_SEMESTRE_2029
A102: FSCRI_RI_4310 | B102: CONSORZIO BONIFICA DELLA SARDEGNA CENTRALE | C102: 05.AMBIENTE E RISORSE NATURALI | D102: 05.01 RISCHI E ADATTAMENTO CLIMATICO | E102: I48B24000380001 | F102: AMMODERNAM. MIGLIORAMENTO E MESSA IN SICUREZZA SOLLEVAMENTI LOLLOTTI E FRUNCU E OCHE II STR. FUNZ. | G102: 2,080,000.00 | H102: 2,080,000.00 | I102: 0 | J102: 0 | M102: 1_SEMESTRE_2026 | N102: 2_SEMESTRE_2026 | O102: 1_SEMESTRE_2027 | P102: 2_SEMESTRE_2028
A103: FSCRI_RI_4311 | B103: CONSORZIO DI BONIFICA DEL NORD SARDEGNA | C103: 05.AMBIENTE E RISORSE NATURALI | D103: 05.01 RISCHI E ADATTAMENTO CLIMATICO | E103: B56I23000060006 | F103: VARIANTE ANELLO RETE IRRIGUA COMPRENSORIO DI CHILIVANI A SAN NICOLA | G103: 3,100,000.00 | H103: 3,100,000.00 | I103: 0 | J103: 0 | K103: 2_SEMESTRE_2025 | L103: 1_SEMESTRE_2026 | M103: 1_SEMESTRE_2026 | N103: 2_SEMESTRE_2026 | O103: 1_SEMESTRE_2027 | P103: 1_SEMESTRE_2028
A104: FSCRI_RI_4312 | B104: ASL 2 GALLURA | C104: 10.SOCIALE E SALUTE | D104: 10.02 STRUTTURE E ATTREZZATURE SANITARIE | E104: I95F24000560006 | F104: LAVORI REALIZZAZIONE DI UN EDIFICIO DA DESTINARE A FORESTERIA DELL'OSPEDALE "G. PAOLO II" DI OLBIA | G104: 5,000,000.00 | H104: 5,000,000.00 | I104: 0 | J104: 0 | K104: 2_SEMESTRE_2025 | L104: 2_SEMESTRE_2025 | M104: 2_SEMESTRE_2025 | N104: 1_SEMESTRE_2026 | O104: 1_SEMESTRE_2026 | P104: 1_SEMESTRE_2028
A105: FSCRI_RI_4313 | B105: CONSORZIO INDUSTRIALE PROVINCIALE ORISTANESE | C105: 05.AMBIENTE E RISORSE NATURALI | D105: 05.02 RISORSE IDRICHE | E105: E12E22000380005 | F105: REALIZZAZIONE BACINO DI LAMINAZIONE DELLE PORTATE DI PIOGGIA IN INGRESSO ALL'IMPIANTO DI DEPURAZIONE | G105: 7,320,000.00 | H105: 7,320,000.00 | I105: 0 | J105: 0 | K105: 1_SEMESTRE_2023 | L105: 1_SEMESTRE_2023 | M105: 2_SEMESTRE_2025 | N105: 1_SEMESTRE_2026 | O105: 2_SEMESTRE_2026 | P105: 2_SEMESTRE_2027
A106: FSCRI_RI_4314 | B106: ARST S.P.A. | C106: 07.TRASPORTI E MOBILITÀ | D106: 07.05 MOBILITÀ URBANA | E106: F81J24000860001 | F106: "METROTRANVIA DI SASSARI LINEA 1 - STRALCIO FUNZIONALE SANT'ORSOLA - LI PUNTI (LOTTO II)" | G106: 55,000,000.00 | H106: 55,000,000.00 | I106: 0 | J106: 0 | M106: 1_SEMESTRE_2026 | N106: 2_SEMESTRE_2027 | O106: 2_SEMESTRE_2027 | P106: 2_SEMESTRE_2031
A107: FSCRI_RI_4315 | B107: ASL 8 CAGLIARI | C107: 10.SOCIALE E SALUTE | D107: 10.02 STRUTTURE E ATTREZZATURE SANITARIE | E107: D28I24000220001 | F107: ADEGUAMENTO ANTINCENDIO - (SS_SAN_045) | G107: 3,000,000.00 | H107: 3,000,000.00 | I107: 0 | J107: 0 | O107: 2_SEMESTRE_2025 | P107: 1_SEMESTRE_2028
A108: FSCRI_RI_4316 | B108: CONSORZIO DI BONIFICA DELLA SARDEGNA CENTRALE | C108: 05.AMBIENTE E RISORSE NATURALI | D108: 05.01 RISCHI E ADATTAMENTO CLIMATICO | E108: I64E21026330002 | F108: RIUTILIZZO AI FINI IRRIGUI REFLUI DEPURATI DI NUORO A VALLE DELL'IMPIANTO DI DEPURAZIONE SU TUVU | G108: 18,500,000.00 | H108: 12,500,000.00 | I108: 0 | J108: 6,000,000.00 | M108: 1_SEMESTRE_2023 | N108: 1_SEMESTRE_2025 | O108: 1_SEMESTRE_2027 | P108: 1_SEMESTRE_2029
A109: FSCRI_RI_4317 | B109: CONSORZIO DI BONIFICA DELLA GALLURA | C109: 05.AMBIENTE E RISORSE NATURALI | D109: 05.01 RISCHI E ADATTAMENTO CLIMATICO | E109: G48B21002840005 | F109: MANUTENZIONE STRAORDINARIA DEL SISTEMA DI IMPERMEABILIZZAZIONE DELLE VASCHE DI COMPENSO DI ARZACHENA | G109: 3,622,900.00 | H109: 3,622,900.00 | I109: 0 | J109: 0 | M109: 2_SEMESTRE_2025 | N109: 1_SEMESTRE_2026 | O109: 2_SEMESTRE_2026 | P109: 2_SEMESTRE_2027
A110: FSCRI_RI_4318 | B110: PROVINCIA DEL SUD SARDEGNA | C110: 07.TRASPORTI E MOBILITÀ | D110: 07.01 TRASPORTO STRADALE | E110: J91B24000490006 | F110: GREENLINE. LE GREENWAYS COME NUOVA POSSIBILITÀ DI SVILUPPO DEL SULCIS IGLESIENTE - PROVINCIA SU | G110: 13,000,000.00 | H110: 13,000,000.00 | I110: 0 | J110: 0 | K110: 1_SEMESTRE_2024 | L110: 1_SEMESTRE_2024 | M110: 2_SEMESTRE_2024 | N110: 1_SEMESTRE_2026 | O110: 2_SEMESTRE_2026 | P110: 2_SEMESTRE_2029
A111: FSCRI_RI_4319 | B111: CONSORZIO DI BONIFICA DELLA GALLURA | C111: 05.AMBIENTE E RISORSE NATURALI | D111: 05.01 RISCHI E ADATTAMENTO CLIMATICO | E111: G97H21030890005 | F111: MANUTENZIONE STRAORDINARIA SISTEMA DI IMPERMEABILIZZAZIONE VASCHE COMPENSO OLBIA | G111: 8,240,000.00 | H111: 8,240,000.00 | I111: 0 | J111: 0 | M111: 2_SEMESTRE_2025 | N111: 2_SEMESTRE_2025 | O111: 1_SEMESTRE_2026 | P111: 1_SEMESTRE_2028
A112: FSCRI_RI_4320 | B112: CONSORZIO DI BONIFICA DELL'ORISTANESE | C112: 05.AMBIENTE E RISORSE NATURALI | D112: 05.01 RISCHI E ADATTAMENTO CLIMATICO | E112: G88H23001160002 | F112: MESSA IN SICUREZZA SBARRAMENTO COLLINARE IN LOCALITA' "MURA CABONIS" IN AGRO DI MILIS - III LOTTO | G112: 2,912,798.40 | H112: 967,159.43 | I112: 0 | J112: 1,945,638.97 | K112: 1_SEMESTRE_2023 | L112: 2_SEMESTRE_2023 | M112: 1_SEMESTRE_2023 | N112: 1_SEMESTRE_2026 | O112: 2_SEMESTRE_2026 | P112: 2_SEMESTRE_2027
A113: FSCRI_RI_4321 | B113: DIREZIONE GENERALE DEI TRASPORTI | C113: 02.DIGITALIZZAZIONE | D113: 02.01 TECNOLOGIE E SERVIZI DIGITALI | E113: E79B24000130001 | F113: OSSERVATORIO DEI TRASPORTI | G113: 1,000,000.00 | H113: 1,000,000.00 | I113: 0 | J113: 0 | K113: 1_SEMESTRE_2023 | L113: 2_SEMESTRE_2025 | M113: 1_SEMESTRE_2026 | N113: 2_SEMESTRE_2026 | O113: 1_SEMESTRE_2027 | P113: 2_SEMESTRE_2029
A114: FSCRI_RI_4322 | B114: AUTORITÀ DI SISTEMA PORTUALE DEL MARE DI SARDEGNA | C114: 07.TRASPORTI E MOBILITÀ | D114: 07.03 TRASPORTO MARITTIMO E LOGISTICA | E114: B21I24000400002 | F114: ELETTRIFICAZIONE BANCHINE PORTUALI DI PORTO TORRES (COLLEGAMENTO CON L'ASINARA) | G114: 800,000.00 | H114: 800,000.00 | I114: 0 | J114: 0 | K114: 2_SEMESTRE_2024 | L114: 2_SEMESTRE_2025 | M114: 1_SEMESTRE_2026 | N114: 2_SEMESTRE_2026 | O114: 1_SEMESTRE_2027 | P114: 1_SEMESTRE_2028
A115: FSCRI_RI_4323 | B115: ASL 8 CAGLIARI | C115: 10.SOCIALE E SALUTE | D115: 10.02 STRUTTURE E ATTREZZATURE SANITARIE | E115: D38I24000180001 | F115: CASA DELLA SALUTE MONSERRATO | G115: 4,000,000.00 | H115: 4,000,000.00 | I115: 0 | J115: 0 | O115: 1_SEMESTRE 2026 | P115: 1_SEMESTRE 2028
A116: FSCRI_RI_4324 | B116: SICIP CONSORZIO INDUSTRIALE PROVINCIALE CARBONIA IGLESIAS | C116: 05.AMBIENTE E RISORSE NATURALI | D116: 05.04 BONIFICHE | E116: G74G24000070002 | F116: INTERVENTI DI BONIFICA E RECUPERO DELLA EX STAZIONE DI POTABILIZZAZIONE | G116: 2,600,000.00 | H116: 2,600,000.00 | I116: 0 | J116: 0 | K116: 2_SEMESTRE_2023 | L116: 1_SEMESTRE_2024 | M116: 2_SEMESTRE_2025 | N116: 1_SEMESTRE_2026 | O116: 1_SEMESTRE_2027 | P116: 2_SEMESTRE_2028
A117: FSCRI_RI_4325 | B117: ASL 8 CAGLIARI | C117: 10.SOCIALE E SALUTE | D117: 10.02 STRUTTURE E ATTREZZATURE SANITARIE | E117: D88I24000210001 | F117: CASA DELLA SALUTE QUARTU SANT'ELENA | G117: 3,250,000.00 | H117: 3,250,000.00 | I117: 0 | J117: 0 | O117: 1_SEMESTRE_2026 | P117: 2_SEMESTRE_2028
A118: FSCRI_RI_4326 | B118: CTM S.P.A. | C118: 07.TRASPORTI E MOBILITÀ | D118: 07.05 MOBILITÀ URBANA | E118: J29I24001110002 | F118: TRASPORTO RAPIDO DI MASSA-INFRASTRUTTURAZIONE LINEA EXPRESS TPL AUTOMOB. CAGLIARI QUARTU S. ELENA | G118: 10,000,000.00 | H118: 10,000,000.00 | I118: 0 | J118: 0 | K118: 1_SEMESTRE_2023 | L118: 1_SEMESTRE_2025 | M118: 2_SEMESTRE_2025 | N118: 2_SEMESTRE_2026 | O118: 1_SEMESTRE_2027 | P118: 2_SEMESTRE_2029
A119: FSCRI_RI_4327 | B119: CIPOR CONSORZIO INDUSTRIALE PROVINCIALE ORISTANESE | C119: 04.ENERGIA | D119: 04.02 ENERGIA RINNOVABILE | E119: E13D24000690002 | F119: CIPOR REALIZ CENTRALE PRODUZ IDROGENO DA ENERGIA RINNOV AL SERVIZIO IMPRESE AGGL IND.LEIALE ORISTANO | G119: 7,765,691.28 | H119: 7,765,691.28 | I119: 0 | J119: 0 | K119: 1_SEMESTRE_2023 | L119: 1_SEMESTRE_2023 | M119: 2_SEMESTRE_2025 | N119: 1_SEMESTRE_2026 | O119: 2_SEMESTRE_2026 | P119: 2_SEMESTRE_2027
A120: FSCRI_RI_4328 | B120: ASL 4 OGLIASTRA | C120: 10.SOCIALE E SALUTE | D120: 10.02 STRUTTURE E ATTREZZATURE SANITARIE | E120: B54E24000960001 | F120: COMPLETAMENTO INTERVENTO DI MESSA A NORMA ANTINCENDIO CASA DELLA SALUTE DI TORTOLI' | G120: 650,000.00 | H120: 650,000.00 | I120: 0 | J120: 0 | K120: 2_SEMESTRE_2025 | L120: 2_SEMESTRE_2025 | M120: 1_SEMESTRE_2026 | N120: 1_SEMESTRE_2027 | O120: 2_SEMESTRE_2027 | P120: 1_SEMESTRE_2029
A121: FSCRI_RI_4329 | B121: AOU SASSARI | C121: 10.SOCIALE E SALUTE | D121: 10.02 STRUTTURE E ATTREZZATURE SANITARIE | E121: H88I24001400001 | F121: AMPLIAMENTO COMPLESSO OSPEDALIERO UNIVERSITARIO SS, CON ADEGUAM. FUNZIONALE E COLLEGAMENTO ESISTENTE | G121: 20,000,000.00 | H121: 20,000,000.00 | I121: 0 | J121: 0 | O121: 1_SEMESTRE_2026 | P121: 2_SEMESTRE_2031
A122: FSCRI_RI_4330 | B122: CIPSS CONSORZIO INDUSTRIALE PROVINCIALE DI SASSARI | C122: 07.TRASPORTI E MOBILITÀ | D122: 07.01 TRASPORTO STRADALE | E122: G27H24001720001 | F122: CIPSS MANUTENZIONE STRAORDINARIA VIABILITÀ CONSORTILE | G122: 4,620,772.00 | H122: 4,620,772.00 | I122: 0 | J122: 0 | M122: 1_SEMESTRE_2026 | N122: 2_SEMESTRE_2026 | O122: 1_SEMESTRE_2027 | P122: 2_SEMESTRE_2030
A123: FSCRI_RI_4331 | B123: ASL 4 OGLIASTRA | C123: 10.SOCIALE E SALUTE | D123: 10.02 STRUTTURE E ATTREZZATURE SANITARIE | E123: B14E24001270001 | F123: COMPLETAMENTO INTERVENTO RISTRUTTURAZIONE DEL REP. DI MEDICINA DEL PRESIDIO OSPEDALIERO DI LANUSEI | G123: 650,000.00 | H123: 650,000.00 | I123: 0 | J123: 0 | K123: 2_SEMESTRE_2025 | L123: 2_SEMESTRE_2025 | M123: 1_SEMESTRE_2026 | N123: 1_SEMESTRE_2027 | O123: 2_SEMESTRE_2027 | P123: 1_SEMESTRE_2029
A124: FSCRI_RI_4332 | B124: ASL 7 SULCIS | C124: 10.SOCIALE E SALUTE | D124: 10.02 STRUTTURE E ATTREZZATURE SANITARIE | E124: B48I24005000001 | F124: LAVORI DI ADEGUAMENTO ALLA NORMATIVA DI PREVENZIONE INCENDI DI CUI AL DM 19 MARZO 2015 - SIRAI | G124: 3,000,000.00 | H124: 3,000,000.00 | I124: 0 | J124: 0 | O124: 1_SEMESTRE_2027 | P124: 2_SEMESTRE_2030
A125: FSCRI_RI_4333 | B125: ASL 4 OGLIASTRA | C125: 10.SOCIALE E SALUTE | D125: 10.02 STRUTTURE E ATTREZZATURE SANITARIE | E125: B14E24001260001 | F125: COMPLETAMENTO MESSA A NORMA ANTINCENDIO DEL P.O. N.S. DELLA MERCEDE DI LANUSEI | G125: 800,000.00 | H125: 800,000.00 | I125: 0 | J125: 0 | K125: 2_SEMESTRE_2025 | L125: 2_SEMESTRE_2025 | M125: 1_SEMESTRE_2026 | N125: 1_SEMESTRE_2027 | O125: 2_SEMESTRE_2027 | P125: 1_SEMESTRE_2029
A126: FSCRI_RI_4334 | B126: ASSESSORATO DEGLI ENTI LOCALI, FINANZE E URBANISTICA - DIREZIONE GENERALE DELLA PIANIFICAZIONE URBANISTICA TERRITORIALE E DELLA VIGILANZA EDILIZIA | C126: 02.DIGITALIZZAZIONE | D126: 02.01 TECNOLOGIE E SERVIZI DIGITALI | E126: E71C24000260001 | F126: AGGIORNAMENTO DEL SISTEMA INFORMATIVO TERRITORIALE REGIONALE (SITR) | G126: 10,000,000.00 | H126: 10,000,000.00 | I126: 0 | J126: 0 | K126: 2_SEMESTRE_2024 | L126: 2_SEMESTRE_2025 | M126: 1_SEMESTRE_2026 | N126: 2_SEMESTRE_2026 | O126: 2_SEMESTRE_2026 | P126: 2_SEMESTRE_2031
A127: FSCRI_RI_4335 | B127: ASL 6 MEDIO CAMPIDANO | C127: 10.SOCIALE E SALUTE | D127: 10.02 STRUTTURE E ATTREZZATURE SANITARIE | E127: D38I24000170001 | F127: MESSA A NORMA ANTINCENDIO DEL PO NS DI BONARIA | G127: 2,000,000.00 | H127: 2,000,000.00 | I127: 0 | J127: 0 | K127: 1_SEMESTRE_2025 | L127: 2_SEMESTRE_2025 | M127: 1_SEMESTRE_2026 | N127: 2_SEMESTRE_2027 | O127: 1_SEMESTRE_2028 | P127: 2_SEMESTRE_2030
A128: FSCRI_RI_4337 | B128: REGIONE SARDEGNA/ ASSESSORATO DEL TURISMO, ARTIGIANATO E COMMERCIO | C128: 08.RIQUALIFICAZIONE URBANA | D128: 08.01 EDILIZIA E SPAZI PUBBLICI | E128: LINEA DI AZIONE | F128: ITINERARIO DELLE SETTE CITTÀ REGIE DELLA SARDEGNA MIS. 2.1 / MIS. 4.5 | G128: 30,000,000.00 | H128: 30,000,000.00 | I128: 0 | J128: 0 | K128: 1_SEMESTRE_2024 | L128: 2_SEMESTRE_2025 | M128: 1_SEMESTRE_2026 | N128: 2_SEMESTRE_2029 | O128: 1_SEMESTRE_2027 | P128: 2_SEMESTRE_2030
A129: FSCRI_RI_4338 | B129: REGIONE SARDEGNA / ASSESSORATO AL TURISMO, ARTIGIANATO E COMMERCIO | C129: 08.RIQUALIFICAZIONE URBANA | D129: 08.01 EDILIZIA E SPAZI PUBBLICI | E129: LINEA DI AZIONE | F129: LE PORTE DELLA SARDEGNA / PROGRAMMA A REGIA REGIONALE | G129: 12,000,000.00 | H129: 12,000,000.00 | I129: 0 | J129: 0 | K129: 2_SEMESTRE_2024 | L129: 2_SEMESTRE_2025 | M129: 1_SEMESTRE_2026 | N129: 2_SEMESTRE_2029 | O129: 1_SEMESTRE_2027 | P129: 2_SEMESTRE_2030
A130: FSCRI_RI_4339 | B130: ASL 1 SASSARI | C130: 10.SOCIALE E SALUTE | D130: 10.02 STRUTTURE E ATTREZZATURE SANITARIE | E130: J13D24000080002 | F130: P.O. CIVILE DI ALGHERO - PREVENZIONE INCENDI - CERTIFICAZIONE | G130: 4,942,000.00 | H130: 4,942,000.00 | I130: 0 | J130: 0 | K130: 1_SEMESTRE_2025 | L130: 2_SEMESTRE_2025 | M130: 1_SEMESTRE_2026 | N130: 1_SEMESTRE_2027 | O130: 2_SEMESTRE_2027 | P130: 2_SEMESTRE_2029
A131: FSCRI_RI_4340 | B131: REGIONE SARDEGNA/ ASSESSORATO DEL TURISMO, ARTIGIANATO E COMMERCIO | C131: 08.RIQUALIFICAZIONE URBANA | D131: 08.01 EDILIZIA E SPAZI PUBBLICI | E131: LINEA DI AZIONE | F131: TURISMO NEI BORGHI / REGIA REGIONALE | G131: 38,000,000.00 | H131: 38,000,000.00 | I131: 0 | J131: 0 | K131: 2_SEMESTRE_2024 | L131: 2_SEMESTRE_2025 | M131: 1_SEMESTRE_2026 | N131: 2_SEMESTRE_2029 | O131: 1_SEMESTRE_2027 | P131: 2_SEMESTRE_2030
A132: FSCRI_RI_4341 | B132: ASL 1 SASSARI | C132: 10.SOCIALE E SALUTE | D132: 10.02 STRUTTURE E ATTREZZATURE SANITARIE | E132: J83D24000090002 | F132: PRESIDIO SANITARIO SAN CAMILLO | G132: 3,231,000.00 | H132: 3,231,000.00 | I132: 0 | J132: 0 | K132: 2_SEMESTRE_2025 | L132: 2_SEMESTRE_2025 | M132: 1_SEMESTRE_2026 | N132: 2_SEMESTRE_2026 | O132: 1_SEMESTRE_2027 | P132: 2_SEMESTRE_2028
A133: FSCRI_RI_4344 | B133: AOU SASSARI | C133: 10.SOCIALE E SALUTE | D133: 10.02 STRUTTURE E ATTREZZATURE SANITARIE | E133: H88I16000010001 | F133: COMPLETAMENTO DEGLI INTERVENTI COMPLESSO OSPEDALIERO DELLA AOU SS | G133: 78,500,000.00 | H133: 78,500,000.00 | I133: 0 | J133: 0 | K133: 2_SEMESTRE_2025 | L133: 1_SEMESTRE_2028 | M133: 2_SEMESTRE_2026 | N133: 1_SEMESTRE_2028 | O133: 1_SEMESTRE_2028 | P133: 2_SEMESTRE_2031
A134: FSCRI_RI_4345 | B134: ASL 7 SULCIS | C134: 10.SOCIALE E SALUTE | D134: 10.02 STRUTTURE E ATTREZZATURE SANITARIE | E134: B38I24003970001 | F134: LAVORI DI ADEGUAMENTO ALLA NORMATIVA DI PREVENZIONE INCENDI DI CUI AL DM 19 MARZO 2015 - CTO | G134: 1,500,000.00 | H134: 1,500,000.00 | I134: 0 | J134: 0 | O134: 1_SEMESTRE_2027 | P134: 2_SEMESTRE_2030
A135: FSCRI_RI_4346 | B135: ASL 7 SULCIS | C135: 10.SOCIALE E SALUTE | D135: 10.02 STRUTTURE E ATTREZZATURE SANITARIE | E135: B38I24003960001 | F135: LAVORI DI ADEGUAMENTO ALLA NORMATIVA DI PREVENZIONE INCENDI DI CUI AL DM 19 MARZO 2015 - S. BARBARA | G135: 3,000,000.00 | H135: 3,000,000.00 | I135: 0 | J135: 0 | O135: 1_SEMESTRE_2027 | P135: 2_SEMESTRE_2030
A136: FSCRI_RI_4348 | B136: EGAS | C136: 05.AMBIENTE E RISORSE NATURALI | D136: 05.01 RISCHI E ADATTAMENTO CLIMATICO | E136: E18B23001470001 | F136: RIASSETTO FUNZIONALE DELL’ADDUTTRICE IDRICA DI JANNA 'E FERRU TRA NUORO E MAMOIADA | G136: 18,030,000.00 | H136: 18,030,000.00 | I136: 0 | J136: 0 | M136: 1_SEMESTRE_2026 | N136: 1_SEMESTRE_2028 | O136: 2_SEMESTRE_2028 | P136: 2_SEMESTRE_2031
A137: FSCRI_RI_4349 | B137: ENTE DI GOVERNO DELL'AMBITO DELLA SARDEGNA | C137: 05.AMBIENTE E RISORSE NATURALI | D137: 05.02 RISORSE IDRICHE | E137: E14E13000800006 | F137: REALIZZAZIONE COLLETTORI FOGNARI DEI REFLUI DI OLMEDO ALL’IMPIANTO DI DEPURAZIONE DI ALGHERO | G137: 3,200,000.00 | H137: 1,200,000.00 | I137: 0 | J137: 2,000,000.00 | M137: 1_SEMESTRE_2023 | N137: 1_SEMESTRE_2026 | O137: 2_SEMESTRE_2026 | P137: 2_SEMESTRE_2029
A138: FSCRI_RI_4350 | B138: ENTE DI GOVERNO DELL'AMBITO DELLA SARDEGNA | C138: 05.AMBIENTE E RISORSE NATURALI | D138: 05.01 RISCHI E ADATTAMENTO CLIMATICO | E138: E16B11000020005 | F138: POTENZIAMENTO DELL'IMPIANTO DI POTABILIZZAZIONE DI SILÌ - ORISTANO | G138: 19,000,000.00 | H138: 6,000,000.00 | I138: 0 | J138: 13,000,000.00 | O138: 1_SEMESTRE_2025 | P138: 2_SEMESTRE_2029
A139: FSCRI_RI_4351 | B139: ENTE DI GOVERNO DELL'AMBITO DELLA SARDEGNA | C139: 05.AMBIENTE E RISORSE NATURALI | D139: 05.01 RISCHI E ADATTAMENTO CLIMATICO | E139: E62B18001910002 | F139: DIGA GOVOSSAI - CONSOLIDAMENTO STRUTTURALE E ADEGUAMENTO STRUMENTAZIONE CONTROLLO | G139: 21,500,000.00 | H139: 7,250,000.00 | I139: 0 | J139: 14,250,000.00 | M139: 2_SEMESTRE_2024 | N139: 2_SEMESTRE_2026 | O139: 1_SEMESTRE_2027 | P139: 1_SEMESTRE_2031
A140: FSCRI_RI_4352 | B140: OPERE E INFRASTRUTTURE DELLA SARDEGNA S.R.L. | C140: 05.AMBIENTE E RISORSE NATURALI | D140: 05.01 RISCHI E ADATTAMENTO CLIMATICO | E140: E19E06000100002 | F140: EMERGENZA GALLURA: RIASSETTO FUNZIONALE RETI IDRICHE DI PITTULONGU E DI GOLFO ARANCI | G140: 5,476,000.00 | H140: 3,000,000.00 | I140: 0 | J140: 2,476,000.00 | M140: 2_SEMESTRE_2024 | N140: 2_SEMESTRE_2026 | O140: 1_SEMESTRE_2027 | P140: 1_SEMESTRE_2030
A141: FSCRI_RI_4353 | B141: OPERE E INFRASTRUTTURE DELLA SARDEGNA S.R.L. | C141: 05.AMBIENTE E RISORSE NATURALI | D141: 05.01 RISCHI E ADATTAMENTO CLIMATICO | E141: F76G04000500006 | F141: "SCHEMA N. 31 - TIRSO" - CONDOTTA DI ALIMENTAZIONE DELLE ZONE COSTIERE DEL SINIS | G141: 27,129,137.00 | H141: 16,800,000.00 | I141: 0 | J141: 10,329,137.00 | M141: 2_SEMESTRE_2026 | N141: 2_SEMESTRE_2029 | O141: 1_SEMESTRE_2030 | P141: 2_SEMESTRE_2031
A142: FSCRI_RI_4354 | B142: ENTE DI GOVERNO DELL'AMBITO DELLA SARDEGNA | C142: 05.AMBIENTE E RISORSE NATURALI | D142: 05.02 RISORSE IDRICHE | E142: E44H15001580002 | F142: ADEGUAMENTO IMPIANTO DI DEPURAZIONE DI TORPÈ E DELLE FRAZIONI | G142: 5,129,000.00 | H142: 4,750,000.00 | I142: 0 | J142: 379,000.00 | M142: 2_SEMESTRE_2025 | N142: 1_SEMESTRE_2028 | O142: 2_SEMESTRE_2028 | P142: 1_SEMESTRE_2031
A143: FSCRI_RI_4355 | B143: ENTE DI GOVERNO DELL'AMBITO DELLA SARDEGNA | C143: 05.AMBIENTE E RISORSE NATURALI | D143: 05.01 RISCHI E ADATTAMENTO CLIMATICO | E143: E47B14000360005 | F143: RIASSETTO LAVORI DI INTERCONNESSIONE CON IL POTABILIZZATORE DI TORPÈ- REALIZZAZIONE DORSALE CENTRALE | G143: 20,100,000.00 | H143: 8,000,000.00 | I143: 0 | J143: 12,100,000.00 | M143: 2_SEMESTRE_2024 | N143: 2_SEMESTRE_2027 | O143: 1_SEMESTRE_2028 | P143: 2_SEMESTRE_2031
A144: FSCRI_RI_4356 | B144: ENTE DI GOVERNO DELL'AMBITO DELLA SARDEGNA | C144: 05.AMBIENTE E RISORSE NATURALI | D144: 05.01 RISCHI E ADATTAMENTO CLIMATICO | E144: F56G04000280006 | F144: OPERE COMPLEMENTARI POTABILIZZATORE DI TORPÈ | G144: 2,200,000.00 | H144: 450,000.00 | I144: 0 | J144: 1,750,000.00 | M144: 1_SEMESTRE_2023 | N144: 1_SEMESTRE_2025 | O144: 2_SEMESTRE_2025 | P144: 1_SEMESTRE_2028
A145: FSCRI_RI_4358 | B145: ENTE DI GOVERNO DELL'AMBITO DELLA SARDEGNA | C145: 05.AMBIENTE E RISORSE NATURALI | D145: 05.02 RISORSE IDRICHE | E145: E93J05000010006 | F145: LAVORI DI COSTRUZIONE IN SOTTERRANEO DELL'IMPIANTO DI DEPURAZIONE DEL COMUNE DI CARLOFORTE | G145: 13,000,000.00 | H145: 7,700,000.00 | I145: 0 | J145: 5,300,000.00 | M145: 1_SEMESTRE_2025 | N145: 1_SEMESTRE_2027 | O145: 2_SEMESTRE_2027 | P145: 1_SEMESTRE_2031
A146: FSCRI_RI_4359 | B146: ENTE DI GOVERNO DELL'AMBITO DELLA SARDEGNA | C146: 05.AMBIENTE E RISORSE NATURALI | D146: 05.02 RISORSE IDRICHE | E146: E69G05000050006 | F146: MANUTENZIONE STRAORDINARIA ED ESTENDIMENTO RETE FOGNARIA -TEMPIO PAUSANIA (TEMPIO E BASSACUTENA) | G146: 1,800,000.00 | H146: 1,170,000.00 | I146: 0 | J146: 630,000.00 | M146: 1_SEMESTRE_2023 | N146: 2_SEMESTRE_2026 | O146: 1_SEMESTRE_2027 | P146: 1_SEMESTRE_2029
A147: FSCRI_RI_4360 | B147: ENTE DI GOVERNO DELL'AMBITO DELLA SARDEGNA | C147: 05.AMBIENTE E RISORSE NATURALI | D147: 05.01 RISCHI E ADATTAMENTO CLIMATICO | E147: E64D18000040002 | F147: INTERCONNESSIONE BACINI OLAI E GOVOSSAI | G147: 1,800,000.00 | H147: 1,800,000.00 | I147: 0 | J147: 0 | M147: 1_SEMESTRE_2025 | N147: 2_SEMESTRE_2025 | O147: 1_SEMESTRE_2026 | P147: 2_SEMESTRE_2028
A148: FSCRI_RI_4361 | B148: OPERE E INFRASTRUTTURE DELLA SARDEGNA S.R.L. | C148: 05.AMBIENTE E RISORSE NATURALI | D148: 05.01 RISCHI E ADATTAMENTO CLIMATICO | E148: E32G06000060002 | F148: SCHEMA N.2 "LISCIA" RETE COSTA SMERALDA-BAIA SARDINIA-RETE EST DELL'ACQUEDOTTO DEL LISCIA | G148: 13,440,000.00 | H148: 8,040,000.00 | I148: 0 | J148: 5,400,000.00 | M148: 2_SEMESTRE_2025 | N148: 2_SEMESTRE_2027 | O148: 1_SEMESTRE_2028 | P148: 1_SEMESTRE_2031
A149: FSCRI_RI_4362 | B149: ENTE DI GOVERNO DELL'AMBITO DELLA SARDEGNA | C149: 05.AMBIENTE E RISORSE NATURALI | D149: 05.02 RISORSE IDRICHE | E149: E74H12000190001 | F149: MANUTENZIONE SOLLEVAMENTI FOGNARI PER ADEGUAMENTO E RIPRISTINO PIENA FUNZIONALITÀ (SCHEMA N.62 PTA) | G149: 790,000.00 | H149: 190,000.00 | I149: 0 | J149: 600,000.00 | M149: 1_SEMESTRE_2023 | N149: 2_SEMESTRE_2025 | O149: 1_SEMESTRE_2026 | P149: 2_SEMESTRE_2027
A150: FSCRI_RI_4363 | B150: ENTE DI GOVERNO DELL'AMBITO DELLA SARDEGNA | C150: 05.AMBIENTE E RISORSE NATURALI | D150: 05.02 RISORSE IDRICHE | E150: E88F04000020006 | F150: COMPLETAMENTO DEL RIORDINO E RAZIONALIZZAZIONE RETE FOGNARIA: ESTENSIONE RETE FOGNARIA VIA AUTONOMIA | G150: 3,050,000.00 | H150: 750,000.00 | I150: 0 | J150: 2,300,000.00 | M150: 1_SEMESTRE_2025 | N150: 1_SEMESTRE_2026 | O150: 1_SEMESTRE_2026 | P150: 1_SEMESTRE_2029
A151: FSCRI_RI_4364 | B151: ENTE DI GOVERNO DELL'AMBITO DELLA SARDEGNA | C151: 05.AMBIENTE E RISORSE NATURALI | D151: 05.02 RISORSE IDRICHE | E151: E64H12000100001 | F151: ADEGUAMENTO SCHEMA FOGNARIO DEPURATIVO N. 77 “TEMPIO PAUSANIA” | G151: 3,000,000.00 | H151: 1,400,000.00 | I151: 0 | J151: 1,600,000.00 | M151: 1_SEMESTRE_2025 | N151: 2_SEMESTRE_2027 | O151: 1_SEMESTRE_2028 | P151: 1_SEMESTRE_2031
A152: FSCRI_RI_4365 | B152: ENTE DI GOVERNO DELL'AMBITO DELLA SARDEGNA | C152: 05.AMBIENTE E RISORSE NATURALI | D152: 05.02 RISORSE IDRICHE | E152: E93C05000110006 | F152: COMPLETAMENTO COLLETTORI FOGNARI DI MARACALAGONIS, SINNAI E SETTIMO AL DEPURATORE DI IS ARENAS | G152: 2,465,000.00 | H152: 765,000.00 | I152: 0 | J152: 1,700,000.00 | M152: 1_SEMESTRE_2023 | N152: 1_SEMESTRE_2026 | O152: 2_SEMESTRE_2026 | P152: 1_SEMESTRE_2030
A153: FSCRI_RI_4366 | B153: ENTE DI GOVERNO DELL'AMBITO DELLA SARDEGNA | C153: 05.AMBIENTE E RISORSE NATURALI | D153: 05.02 RISORSE IDRICHE | E153: E31B14000480002 | F153: LAVORI DI COMPLETAMENTO DELLO SCHEMA FOGNARIO-DEPURATIVO N. 45 PTA - MONTRESTA | G153: 550,000.00 | H153: 200,000.00 | I153: 0 | J153: 350,000.00 | M153: 1_SEMESTRE_2023 | N153: 2_SEMESTRE_2025 | O153: 1_SEMESTRE_2026 | P153: 1_SEMESTRE_2028
A154: FSCRI_RI_4367 | B154: ENTE DI GOVERNO DELL'AMBITO DELLA SARDEGNA | C154: 05.AMBIENTE E RISORSE NATURALI | D154: 05.01 RISCHI E ADATTAMENTO CLIMATICO | E154: LINEA DI AZIONE | F154: LINEA D'AZIONE EFFICIENTAMENTO RETI IDRICHE COMUNALI DELLA SARDEGNA CON ELEVATA DISPERSIONE IDRICA | G154: 50,000,000.00 | H154: 50,000,000.00 | I154: 0 | J154: 0 | M154: 1_SEMESTRE_2025 | N154: 1_SEMESTRE_2027 | O154: 2_SEMESTRE_2027 | P154: 1_SEMESTRE_2031
A155: FSCRI_RI_4368 | B155: ENTE DI GOVERNO DELL'AMBITO DELLA SARDEGNA | C155: 05.AMBIENTE E RISORSE NATURALI | D155: 05.02 RISORSE IDRICHE | E155: E16J12000540001 | F155: ADEGUAMENTO SCHEMA FOGNARIO DEPURATIVO N. 253 VILLASALTO | G155: 1,740,000.00 | H155: 740,000.00 | I155: 0 | J155: 1,000,000.00 | M155: 1_SEMESTRE_2023 | N155: 2_SEMESTRE_2025 | O155: 1_SEMESTRE_2026 | P155: 1_SEMESTRE_2028
A156: FSCRI_RI_4369 | B156: ENTE DI GOVERNO DELL'AMBITO DELLA SARDEGNA | C156: 05.AMBIENTE E RISORSE NATURALI | D156: 05.01 RISCHI E ADATTAMENTO CLIMATICO | E156: E15J06000080001 | F156: SCHEMA N 1 VIGNOLA-CASTELDORIA-PERFUGAS N 5 BIDIGHINZU-FLORINAS. DIRAMAZIONE CHIARAMONTI-LAERRU | G156: 700,000.00 | H156: 380,000.00 | I156: 0 | J156: 320,000.00 | M156: 2_SEMESTRE_2024 | N156: 2_SEMESTRE_2025 | O156: 1_SEMESTRE_2026 | P156: 2_SEMESTRE_2028
A157: FSCRI_RI_4370 | B157: ENTE DI GOVERNO DELL'AMBITO DELLA SARDEGNA | C157: 05.AMBIENTE E RISORSE NATURALI | D157: 05.01 RISCHI E ADATTAMENTO CLIMATICO | E157: E87B14000370005 | F157: RIASSETTO LAVORI DI INTERCONNESSIONE CON IL POTABILIZZATORE DI TORPÈ-REALIZZAZIONE DORSALE NORD-SUD | G157: 15,900,000.00 | H157: 6,000,000.00 | I157: 0 | J157: 9,900,000.00 | M157: 2_SEMESTRE_2023 | N157: 1_SEMESTRE_2027 | O157: 2_SEMESTRE_2027 | P157: 1_SEMESTRE_2031
A158: FSCRI_RI_4371 | B158: ENTE DI GOVERNO DELL'AMBITO DELLA SARDEGNA | C158: 05.AMBIENTE E RISORSE NATURALI | D158: 05.01 RISCHI E ADATTAMENTO CLIMATICO | E158: E49E08000190002 | F158: MANUTENZIONE STRAORDINARIA DELLA CONDOTTA DI COLLEGAMENTO SERBATOIO E POZZI ARTESIANI DI PUTIFIGARI | G158: 1,555,000.00 | H158: 815,000.00 | I158: 0 | J158: 740,000.00 | O158: 1_SEMESTRE_2025 | P158: 2_SEMESTRE_2027
A159: FSCRI_RI_4372 | B159: ENTE DI GOVERNO DELL'AMBITO DELLA SARDEGNA | C159: 05.AMBIENTE E RISORSE NATURALI | D159: 05.01 RISCHI E ADATTAMENTO CLIMATICO | E159: E12E22000720001 | F159: SCHEMA NPRGA N.14 GOVOSSAI. NUOVA CONDOTTA ADDUTTRICE SARULE, ORANI, ONIFERI, OROTELLI E PIÙ | G159: 16,393,765.41 | H159: 16,216,765.41 | I159: 0 | J159: 177,000.00 | M159: 1_SEMESTRE_2025 | N159: 1_SEMESTRE_2028 | O159: 2_SEMESTRE_2028 | P159: 2_SEMESTRE_2031
A160: FSCRI_RI_4373 | B160: ENTE DI GOVERNO DELL'AMBITO DELLA SARDEGNA | C160: 05.AMBIENTE E RISORSE NATURALI | D160: 05.02 RISORSE IDRICHE | E160: E29G04000060006 | F160: ADEGUAMENTO SCHEMA FOGNARIO DEPURATIVO N° 179 - MEANA SARDO | G160: 5,875,000.00 | H160: 4,450,000.00 | I160: 0 | J160: 1,425,000.00 | M160: 1_SEMESTRE_2023 | N160: 2_SEMESTRE_2026 | O160: 1_SEMESTRE_2027 | P160: 2_SEMESTRE_2030
A161: FSCRI_RI_4374 | B161: ENTE DI GOVERNO DELL'AMBITO DELLA SARDEGNA | C161: 05.AMBIENTE E RISORSE NATURALI | D161: 05.02 RISORSE IDRICHE | E161: E13J04000010006 | F161: REALIZZAZIONE RETE FOGNARIA FASCIA COSTIERA - COMUNE DI MAGOMADAS | G161: 1,200,000.00 | H161: 510,000.00 | I161: 0 | J161: 690,000.00 | M161: 1_SEMESTRE_2023 | N161: 1_SEMESTRE_2026 | O161: 1_SEMESTRE_2026 | P161: 2_SEMESTRE_2028
A162: FSCRI_RI_4375 | B162: ENTE DI GOVERNO DELL'AMBITO DELLA SARDEGNA | C162: 05.AMBIENTE E RISORSE NATURALI | D162: 05.01 RISCHI E ADATTAMENTO CLIMATICO | E162: E18B24001420002 | F162: SCHEMA N. 2 LISCIA - MANUTENZIONE STRAORDINARIA RAMO DI INETRCONNESSIONE CON LO SCHEMA 11 SINISCOLA | G162: 8,000,000.00 | H162: 8,000,000.00 | I162: 0 | J162: 0 | M162: 1_SEMESTRE_2026 | N162: 2_SEMESTRE_2027 | O162: 1_SEMESTRE_2028 | P162: 2_SEMESTRE_2030
A163: FSCRI_RI_4376 | B163: ENTE DI GOVERNO DELL'AMBITO DELLA SARDEGNA | C163: 05.AMBIENTE E RISORSE NATURALI | D163: 05.01 RISCHI E ADATTAMENTO CLIMATICO | E163: E43H08000030002 | F163: SCHEMA N° 3 CASTELDORIA - CONDOTTE PER SEDINI, BULZI, PERFUGAS E LAERRU | G163: 9,700,000.00 | H163: 5,700,000.00 | I163: 0 | J163: 4,000,000.00 | O163: 2_SEMESTRE_2024 | P163: 1_SEMESTRE_2028
A164: FSCRI_RI_4377 | B164: ENTE DI GOVERNO DELL'AMBITO DELLA SARDEGNA | C164: 05.AMBIENTE E RISORSE NATURALI | D164: 05.02 RISORSE IDRICHE | E164: E63J06000060001 | F164: DELOCALIZZAZIONE DEPURATORE BALLAO | G164: 3,350,000.00 | H164: 2,150,000.00 | I164: 0 | J164: 1,200,000.00 | M164: 1_SEMESTRE_2025 | N164: 2_SEMESTRE_2026 | O164: 1_SEMESTRE_2027 | P164: 1_SEMESTRE_2030
A165: FSCRI_RI_4378 | B165: ENTE DI GOVERNO DELL'AMBITO DELLA SARDEGNA | C165: 05.AMBIENTE E RISORSE NATURALI | D165: 05.01 RISCHI E ADATTAMENTO CLIMATICO | E165: E66G05000080011 | F165: SCHEMA 17 "OGLIASTRA": RAMO EST DORSALE PRINCIPALE - 2° LOTTO - RAMO EST | G165: 8,700,000.00 | H165: 5,500,000.00 | I165: 0 | J165: 3,200,000.00 | M165: 1_SEMESTRE_2023 | N165: 2_SEMESTRE_2026 | O165: 1_SEMESTRE_2027 | P165: 2_SEMESTRE_2029
A166: FSCRI_RI_4379 | B166: ENTE DI GOVERNO DELL'AMBITO DELLA SARDEGNA | C166: 05.AMBIENTE E RISORSE NATURALI | D166: 05.02 RISORSE IDRICHE | E166: E53H06000010006 | F166: ADEGUAMENTO SCHEMA FOGNARIO DEPURATIVO N. 180 ATZARA-SORGONO - AMPLIAMENTO IMPIANTO DI DEPURAZIONE | G166: 2,946,545.11 | H166: 1,500,000.00 | I166: 0 | J166: 1,446,545.11 | M166: 1_SEMESTRE_2025 | N166: 2_SEMESTRE_2026 | O166: 1_SEMESTRE_2028 | P166: 2_SEMESTRE_2030
A167: FSCRI_RI_4381 | B167: OPERE E INFRASTRUTTURE DELLA SARDEGNA S.R.L. | C167: 05.AMBIENTE E RISORSE NATURALI | D167: 05.02 RISORSE IDRICHE | E167: C21D24000070006 | F167: RISANAMENTO E RIORDINO SISTEMA FOGNARIO DI CAGLIARI PER RIUTILIZZO REFLUI. INDAGINI E PROGETTAZIONE | G167: 3,000,000.00 | H167: 3,000,000.00 | I167: 0 | J167: 0 | M167: 1_SEMESTRE_2026 | N167: 1_SEMESTRE_2029
A168: FSCRI_RI_4382 | B168: ENTE DI GOVERNO DELL'AMBITO DELLA SARDEGNA | C168: 05.AMBIENTE E RISORSE NATURALI | D168: 05.02 RISORSE IDRICHE | E168: E78B16000050002 | F168: MANUTENZIONE STRAORDINARIA SISTEMA FOGNARIO OLBIA AL FINE DI CONSENTIRE IL RIUTILIZZO DEI REFLUI | G168: 3,640,000.00 | H168: 3,000,000.00 | I168: 0 | J168: 640,000.00 | M168: 1_SEMESTRE_2025 | N168: 1_SEMESTRE_2027 | O168: 2_SEMESTRE_2027 | P168: 2_SEMESTRE_2030
A169: FSCRI_RI_4383 | B169: ENTE DI GOVERNO DELL'AMBITO DELLA SARDEGNA | C169: 05.AMBIENTE E RISORSE NATURALI | D169: 05.02 RISORSE IDRICHE | E169: F72C04000020006 | F169: COMPLETAMENTO SCHEMA FOGNARIO DEPURATIVO S. G. SUERGIU (N.310 PRRA)-COLLETTAMENTO TRATALIAS E PALMAS | G169: 2,004,942.49 | H169: 1,500,000.00 | I169: 0 | J169: 504,942.49 | M169: 1_SEMESTRE_2023 | N169: 2_SEMESTRE_2025 | O169: 1_SEMESTRE_2026 | P169: 2_SEMESTRE_2028
A170: FSCRI_RI_4384 | B170: ENTE DI GOVERNO DELL'AMBITO DELLA SARDEGNA | C170: 05.AMBIENTE E RISORSE NATURALI | D170: 05.02 RISORSE IDRICHE | E170: E15C11000830001 | F170: APQ. COMPLETAMENTO IMPIANTO DEPURAZIONE ALGHERO SAN MARCO, REALIZZAZIONE DEL 4° SEDIMENTATORE | G170: 1,378,250.64 | H170: 528,250.64 | I170: 0 | J170: 850,000.00 | M170: 2_SEMESTRE_2024 | N170: 2_SEMESTRE_2026 | O170: 1_SEMESTRE_2027 | P170: 1_SEMESTRE_2029
A171: FSCRI_RI_4385 | B171: ENTE DI GOVERNO DELL'AMBITO DELLA SARDEGNA | C171: 05.AMBIENTE E RISORSE NATURALI | D171: 05.02 RISORSE IDRICHE | E171: E12E24000680002 | F171: ADEGUAMENTO DELLO SCHEMA FOGNARIO DEPURATIVO N. 267 DEL PTA - BURCEI | G171: 5,200,000.00 | H171: 5,200,000.00 | I171: 0 | J171: 0 | M171: 2_SEMESTRE_2025 | N171: 1_SEMESTRE_2027 | O171: 2_SEMESTRE_2027 | P171: 1_SEMESTRE_2031
A172: FSCRI_RI_4386 | B172: ENTE DI GOVERNO DELL'AMBITO DELLA SARDEGNA | C172: 05.AMBIENTE E RISORSE NATURALI | D172: 05.02 RISORSE IDRICHE | E172: E94H12000040001 | F172: DELOCALIZZAZIONE DEL SOLLEVAMENTO FOGNARIO LOC. S'ARCHITTU E REALIZZAZIONE COLLEGAMENTI IDRAULICI | G172: 800,000.00 | H172: 250,000.00 | I172: 0 | J172: 550,000.00 | O172: 2_SEMESTRE_2025 | P172: 2_SEMESTRE_2028
A173: FSCRI_RI_4387 | B173: ENTE DI GOVERNO DELL'AMBITO DELLA SARDEGNA | C173: 05.AMBIENTE E RISORSE NATURALI | D173: 05.01 RISCHI E ADATTAMENTO CLIMATICO | E173: F52C04000050006 | F173: LAVORI DI INTERCONNESSIONE CON IL POTABILIZZATORE DI TORPÈ - SCHEMA N. 8 SINISCOLA | G173: 5,078,183.76 | H173: 3,000,000.00 | I173: 0 | J173: 2,078,183.76 | M173: 1_SEMESTRE_2023 | N173: 2_SEMESTRE_2026 | O173: 1_SEMESTRE_2027 | P173: 2_SEMESTRE_2030
A174: FSCRI_RI_4388 | B174: ENTE DI GOVERNO DELL'AMBITO DELLA SARDEGNA | C174: 05.AMBIENTE E RISORSE NATURALI | D174: 05.02 RISORSE IDRICHE | E174: E34H12000120001 | F174: ADEGUAMENTO SCHEMA FOGNARIO DEPURATIVO N. 316 “GIBA” | G174: 1,950,000.00 | H174: 900,000.00 | I174: 0 | J174: 1,050,000.00 | M174: 2_SEMESTRE_2024 | N174: 2_SEMESTRE_2026 | O174: 1_SEMESTRE_2027 | P174: 2_SEMESTRE_2029
A175: FSCRI_RI_4392 | B175: CITTÀ METROPOLITANA DI CAGLIARI | C175: 07.TRASPORTI E MOBILITÀ | D175: 07.01 TRASPORTO STRADALE | E175: J97H24001110002 | F175: ADEGUAMENTO FUNZIONALE E GEOMETRICO DELLA STRADA ASSEMINI – SESTU | G175: 9,500,000.00 | H175: 9,500,000.00 | I175: 0 | J175: 0 | K175: 1_SEMESTRE_2026 | L175: 1_SEMESTRE_2026 | M175: 1_SEMESTRE_2026 | N175: 1_SEMESTRE_2026 | O175: 1_SEMESTRE_2026 | P175: 2_SEMESTRE_2029
A176: FSCRI_RI_4394 | B176: CITTÀ METROPOLITANA DI CAGLIARI | C176: 02.DIGITALIZZAZIONE | D176: 02.01 TECNOLOGIE E SERVIZI DIGITALI | E176: J21C24000050002 | F176: MIGRAZIONE IN CLOUD DEL SISTEMA INFORMATIVO DELL’ENTE IN COERENZA CON IL PIANO TRIENNALE DELLA PA | G176: 1,500,000.00 | H176: 1,500,000.00 | I176: 0 | J176: 0 | K176: 1_SEMESTRE_2026 | L176: 2_SEMESTRE_2026 | M176: 1_SEMESTRE_2026 | N176: 1_SEMESTRE_2026 | O176: 1_SEMESTRE_2026 | P176: 1_SEMESTRE_2035
A177: FSCRI_RI_4405 | B177: COMUNE DI QUARTU S. ELENA | C177: 01.RICERCA E INNOVAZIONE | D177: 01.02 STRUTTURE DL RICERCA | E177: E88C22000400004 | F177: "FARM-LA FABBRICA DELL'INNOVAZIONE PER AMBIENTE, ENERGIA, BENESSERE E MOBILITÀ" EX DISTILLERIE CAPRA | G177: 6,000,000.00 | H177: 6,000,000.00 | I177: 0 | J177: 0 | K177: 1_SEMESTRE_2026 | L177: 1_SEMESTRE_2026 | M177: 1_SEMESTRE_2026 | N177: 2_SEMESTRE_2027 | O177: 1_SEMESTRE_2028 | P177: 2_SEMESTRE_2032
A178: FSCRI_RI_4409 | B178: CITTÀ METROPOLITANA DI CAGLIARI | C178: 08.RIQUALIFICAZIONE URBANA | D178: 08.01 EDILIZIA E SPAZI PUBBLICI | E178: J25I24000210001 | F178: URBANISMO TATTICO. PROGETTI DI MITIGAZIONE ONDATE DI CALORE E AREE PLAYGROUND | G178: 2,400,000.00 | H178: 2,400,000.00 | I178: 0 | J178: 0 | K178: 2_SEMESTRE_2025 | L178: 1_SEMESTRE_2026 | M178: 1_SEMESTRE_2026 | N178: 2_SEMESTRE_2027 | O178: 1_SEMESTRE_2027 | P178: 2_SEMESTRE_2030
A179: FSCRI_RI_4422 | B179: COMUNE DI CAGLIARI | C179: 10.SOCIALE E SALUTE | D179: 10.01 STRUTTURE SOCIALI | E179: G25B22000120001 | F179: NUOVO PALAZZETTO DELLO SPORT | G179: 48,500,000.00 | H179: 35,450,000.00 | I179: 0 | J179: 13,050,000.00 | K179: 1_SEMESTRE_2023 | L179: 1_SEMESTRE_2026 | M179: 2_SEMESTRE_2023 | N179: 2_SEMESTRE_2027 | O179: 2_SEMESTRE_2026 | P179: 2_SEMESTRE_2027
A180: FSCRI_RI_4427 | B180: COMUNE DI CAGLIARI | C180: 10.SOCIALE E SALUTE | D180: 10.03 SERVIZI SOCIO-ASSISTENZIALI | E180: G27I16000010007 | F180: RIQUALIFICAZIONE URBANA DEL COMPLESSO ERP DI PIAZZA GRANATIERI DI SARDEGNA A CAGLIARI | G180: 29,000,000.00 | H180: 8,000,000.00 | I180: 0 | J180: 21,000,000.00 | K180: 1_SEMESTRE_2026 | L180: 2_SEMESTRE_2026 | M180: 1_SEMESTRE_2026 | N180: 2_SEMESTRE_2029 | O180: 1_SEMESTRE_2026 | P180: 2_SEMESTRE_2029
A181: FSCRI_RI_4430 | B181: CITTÀ METROPOLITANA DI CAGLIARI | C181: 02.DIGITALIZZAZIONE | D181: 02.01 TECNOLOGIE E SERVIZI DIGITALI | E181: J26G24000130002 | F181: AMMODERNAMENTO INFRASTRUTTURA INFORMATICA | G181: 671,000.00 | H181: 671,000.00 | I181: 0 | J181: 0 | K181: 1_SEMESTRE_2026 | L181: 1_SEMESTRE_2026 | M181: 1_SEMESTRE_2026 | N181: 1_SEMESTRE_2026 | O181: 1_SEMESTRE_2026 | P181: 2_SEMESTRE_2027
A182: FSCRI_RI_4440 | B182: CITTÀ METROPOLITANA DI CAGLIARI - CONSORZIO DI BONIFICA DELLA SARDEGNA MERIDIONALE | C182: 05.AMBIENTE E RISORSE NATURALI | D182: 05.01 RISCHI E ADATTAMENTO CLIMATICO | E182: C85H24006370002 | F182: COMPLETAMENTO DELL’INFRASTRUTTURAZIONE IRRIGUA DELLE ZONE RURALI DEI COMUNI DI CM CAGLIARI | G182: 2,000,000.00 | H182: 2,000,000.00 | I182: 0 | J182: 0 | K182: 2_SEMESTRE_2025 | L182: 2_SEMESTRE_2030 | M182: 1_SEMESTRE_2026 | N182: 1_SEMESTRE_2029 | O182: 1_SEMESTRE_2027 | P182: 1_SEMESTRE_2030
A183: FSCRI_RI_4471 | B183: UNIONE DEI COMUNI VALLE DEL CEDRINO | C183: 07.TRASPORTI E MOBILITÀ | D183: 07.01 TRASPORTO STRADALE | E183: J91B20001020001 | F183: CIRCONVALLAZIONE DI COLLEGAMENTO TRA LA S.S. 129 CON LA SP 25 NEL COMUNE DI GALTELLÌ | G183: 7,600,000.00 | H183: 7,600,000.00 | I183: 0 | J183: 0 | K183: 1_SEMESTRE_2023 | L183: 1_SEMESTRE_2025 | M183: 1_SEMESTRE_2023 | N183: 2_SEMESTRE_2026 | O183: 1_SEMESTRE_2027 | P183: 2_SEMESTRE_2031
A184: FSCRI_RI_4472 | B184: ARST S.P.A. | C184: 07.TRASPORTI E MOBILITÀ | D184: 07.01 TRASPORTO STRADALE | E184: F71B17000270006 | F184: PROGETTAZIONE E REALIZZAZIONE RETE CICLABILE REGIONALE | G184: 5,900,000.00 | H184: 5,310,000.00 | I184: 0 | J184: 590,000.00 | O184: 1_SEMESTRE_2026 | P184: 2_SEMESTRE_2028
A185: FSCRI_RI_4481 | B185: COMUNE DI CABRAS | C185: 07.TRASPORTI E MOBILITÀ | D185: 07.01 TRASPORTO STRADALE | E185: C81B18000620002 | F185: MIGLIORAMENTO DELLA VIABILITÀ DI ORISTANO – CABRAS – SAN GIOVANNI DI SINIS | G185: 4,000,000.00 | H185: 2,333,888.88 | I185: 0 | J185: 1,666,111.12 | K185: 1_SEMESTRE_2025 | L185: 2_SEMESTRE_2025 | M185: 2_SEMESTRE_2025 | N185: 2_SEMESTRE_2026 | O185: 2_SEMESTRE_2026 | P185: 2_SEMESTRE_2027
A186: FSCRI_RI_4482 | B186: ENTI LOCALI DA INDIVIDUARE | C186: 07.TRASPORTI E MOBILITÀ | D186: 07.05 MOBILITÀ URBANA | E186: E79B24000190001 | F186: PROGETTO TEMATICO REGIONALE DI INTERCONNESSIONE SOSTENIBILE DEI TERRITORI DELLA SARDEGNA | G186: 25,000,000.00 | H186: 25,000,000.00 | I186: 0 | J186: 0 | K186: 2_SEMESTRE_2025 | L186: 2_SEMESTRE_2026 | M186: 2_SEMESTRE_2026 | N186: 1_SEMESTRE_2028 | O186: 1_SEMESTRE_2028 | P186: 2_SEMESTRE_2031
A187: FSCRI_RI_4484 | B187: PROVINCIA DELL'OGLIASTRA | C187: 07.TRASPORTI E MOBILITÀ | D187: 07.01 TRASPORTO STRADALE | E187: J61B15000560002 | F187: SP 27 TORTOLÌ – VILLAGRANDE. LAVORI DI ADEGUAMENTO 2° STRALCIO | G187: 7,000,000.00 | H187: 3,050,000.00 | J187: 3,950,000.00 | M187: 2_SEMESTRE_2025 | N187: 2_SEMESTRE_2025 | O187: 1_SEMESTRE_2026 | P187: 2_SEMESTRE_2027
A188: FSCRI_RI_4485 | B188: COMUNE DI SETTIMO SAN PIETRO | C188: 07.TRASPORTI E MOBILITÀ | D188: 07.01 TRASPORTO STRADALE | E188: I51B15000620002 | F188: CIRCONVALLAZIONE DI SETTIMO SAN PIETRO | G188: 7,000,000.00 | H188: 5,500,000.00 | I188: 0 | J188: 1,500,000.00 | M188: 1_SEMESTRE_2023 | N188: 2_SEMESTRE_2025 | O188: 2_SEMESTRE_2025 | P188: 2_SEMESTRE_2028
A189: FSCRI_RI_4486 | B189: CITTÀ METROPOLITANA DI CAGLIARI | C189: 07.TRASPORTI E MOBILITÀ | D189: 07.01 TRASPORTO STRADALE | E189: LINEA DI AZIONE | F189: MANUTENZIONE E MESSA IN SICUREZZA DELLE STRADE DELLA CITTA' METROPOLITANA DI CAGLIARI | G189: 2,240,000.00 | H189: 2,240,000.00 | I189: 0 | J189: 0 | K189: 1_SEMESTRE_2026 | L189: 1_SEMESTRE_2026 | M189: 2_SEMESTRE_2026 | N189: 2_SEMESTRE_2026 | O189: 2_SEMESTRE_2026 | P189: 2_SEMESTRE_2029
A190: FSCRI_RI_4487 | B190: REGIONE AUTONOMA DELLA SARDEGNA | C190: 07.TRASPORTI E MOBILITÀ | D190: 07.03 TRASPORTO MARITTIMO E LOGISTICA | E190: LINEA DI AZIONE | F190: PREDISPOSIZIONE DOCFAP E PROGETTAZIONI NUOVE INFRASTRUTTURE PORTUALI PREVISTE DAL PRRPT | G190: 12,000,000.00 | H190: 9,100,000.00 | I190: 0 | J190: 2,900,000.00 | K190: 2_SEMESTRE_2025 | L190: 2_SEMESTRE_2026 | M190: 2_SEMESTRE_2026 | N190: 2_SEMESTRE_2030
A191: FSCRI_RI_4488 | B191: COMUNE DI SARDARA | C191: 07.TRASPORTI E MOBILITÀ | D191: 07.01 TRASPORTO STRADALE | E191: E17H18001240001 | F191: MESSA IN SICUREZZA DELLA EX SS 131 | G191: 2,500,000.00 | H191: 2,500,000.00 | I191: 0 | J191: 0 | K191: 1_SEMESTRE_2026 | L191: 2_SEMESTRE_2026 | M191: 2_SEMESTRE_2026 | N191: 1_SEMESTRE_2027 | O191: 2_SEMESTRE_2027 | P191: 2_SEMESTRE_2028
A192: FSCRI_RI_4489 | B192: OPERE E INFRASTRUTTURE DELLA SARDEGNA S.R.L. | C192: 07.TRASPORTI E MOBILITÀ | D192: 07.01 TRASPORTO STRADALE | E192: C71B20000700002 | F192: ITINERARIO TRASVERSALE SARDO - 1° LOTTO FUNZIONALE | G192: 48,580,000.00 | H192: 25,000,000.00 | I192: 0 | J192: 23,580,000.00 | M192: 1_SEMESTRE_2026 | N192: 2_SEMESTRE_2027 | O192: 1_SEMESTRE_2028 | P192: 2_SEMESTRE_2032
A193: FSCRI_RI_4490 | B193: ARST S.P.A. | C193: 07.TRASPORTI E MOBILITÀ | D193: 07.02 TRASPORTO FERROVIARIO | E193: F11B21007070001 | F193: COLLEGAMENTO FERROVIARIO ALGHERO CENTRO - ALGHERO AEROPORTO | G193: 247,990,360.00 | H193: 25,500,000.00 | I193: 0 | J193: 222,490,360.00 | M193: 1_SEMESTRE_2023 | N193: 2_SEMESTRE_2026 | O193: 1_SEMESTRE_2027 | P193: 2_SEMESTRE_2028
A194: FSCRI_RI_4491 | B194: COMUNE DI SAN VITO (SU) | C194: 07.TRASPORTI E MOBILITÀ | D194: 07.01 TRASPORTO STRADALE | E194: F75F24000570003 | F194: MESSA IN SICUREZZA PONTE SUL RIO URI — COMUNE DI SAN VITO | G194: 500,000.00 | H194: 449,756.78 | I194: 0 | J194: 50,243.22 | K194: 1_SEMESTRE_2025 | L194: 1_SEMESTRE_2025 | M194: 2_SEMESTRE_2025 | N194: 1_SEMESTRE_2026 | O194: 2_SEMESTRE_2026 | P194: 2_SEMESTRE_2029
A195: FSCRI_RI_4493 | B195: PROVINCIA DI ORISTANO | C195: 07.TRASPORTI E MOBILITÀ | D195: 07.01 TRASPORTO STRADALE | E195: F51B13000550003 | F195: COMPLETAMENTO CIRCONVALLAZIONE DI BONARCADO | G195: 6,000,000.00 | H195: 6,000,000.00 | I195: 0 | J195: 0 | K195: 2_SEMESTRE_2024 | L195: 1_SEMESTRE_2025 | M195: 2_SEMESTRE_2025 | N195: 2_SEMESTRE_2025 | O195: 1_SEMESTRE_2026 | P195: 2_SEMESTRE_2027
A196: FSCRI_RI_4495 | B196: PROVINCIA DEL MEDIO CAMPIDANO | C196: 07.TRASPORTI E MOBILITÀ | D196: 07.01 TRASPORTO STRADALE | E196: J97H21037570002 | F196: MESSA IN SICUREZZA E RIQUALIFICAZIONE VIABILITÀ PROV.LE NEL COMPARTO SERRAMANNA -SAMASSI-SERRENTI | G196: 2,000,000.00 | H196: 2,000,000.00 | K196: 2_SEMESTRE_2025 | L196: 2_SEMESTRE_2025 | M196: 2_SEMESTRE_2025 | N196: 1_SEMESTRE_2026 | O196: 2_SEMESTRE_2025 | P196: 2_SEMESTRE_2026
A197: FSCRI_RI_4497 | B197: COMUNE DI TEMPIO PAUSANIA | C197: 07.TRASPORTI E MOBILITÀ | D197: 07.01 TRASPORTO STRADALE | E197: C51B24000230003 | F197: COMPLETAMENTO SP 133 TEMPIO- SP 5 AGLIENTU | G197: 27,606,000.00 | H197: 22,000,000.00 | I197: 0 | J197: 5,606,000.00 | K197: 2_SEMESTRE_2024 | L197: 1_SEMESTRE_2025 | M197: 1_SEMESTRE_2025 | N197: 2_SEMESTRE_2025 | O197: 2_SEMESTRE_2025 | P197: 2_SEMESTRE_2031
A198: FSCRI_RI_4498 | B198: ASSESSORATO DEGLI ENTI LOCALI, FINANZE E URBANISTICA - DIREZIONE GENERALE DELLA PIANIFICAZIONE URBANISTICA TERRITORIALE E DELLA VIGILANZA EDILIZIA | C198: 08.RIQUALIFICAZIONE URBANA | D198: 08.01 EDILIZIA E SPAZI PUBBLICI | E198: LINEA DI AZIONE | F198: AZIONI ED INTERVENTI DI RIGENERAZIONE URBANA | G198: 25,000,000.00 | H198: 25,000,000.00 | I198: 0 | J198: 0 | K198: 2_SEMESTRE_2024 | L198: 2_SEMESTRE_2025 | M198: 2_SEMESTRE_2025 | N198: 2_SEMESTRE_2027 | O198: 2_SEMESTRE_2025 | P198: 2_SEMESTRE_2029
A199: FSCRI_RI_4499 | B199: PROVINCIA DELLA GALLURA NORD EST SARDEGNA | C199: 07.TRASPORTI E MOBILITÀ | D199: 07.01 TRASPORTO STRADALE | E199: I21B03000190005 | F199: COLLEGAMENTO PROVINCIALE “ABBASANTA-BUDDUSÒ-OLBIA” DELLA SS 389 TRATTO “ALÀ DEI SARDI-BIVIO PADRU” | G199: 26,600,000.00 | H199: 14,500,000.00 | J199: 12,100,000.00 | M199: 2_SEMESTRE_2025 | N199: 2_SEMESTRE_2025 | O199: 2_SEMESTRE_2025 | P199: 1_SEMESTRE_2029
A200: FSCRI_RI_4501 | B200: COMUNE DI ORISTANO | C200: 07.TRASPORTI E MOBILITÀ | D200: 07.01 TRASPORTO STRADALE | E200: H11B24000710001 | F200: REALIZZAZIONE DI INTERVENTI DI COMPLETAMENTO DI INFRASTRUTTURE VIARIE CIRCONVALLAZIONE NORD ORISTANO | G200: 2,000,000.00 | H200: 2,000,000.00 | I200: 0 | J200: 0 | K200: 2_SEMESTRE_2024 | L200: 1_SEMESTRE_2025 | M200: 2_SEMESTRE_2025 | N200: 2_SEMESTRE_2026 | O200: 2_SEMESTRE_2026 | P200: 2_SEMESTRE_2028
... 28 more rows

Sheet Allegato A2_Anticipazioni
A1: Accordo per la Coesione Governo - Regione Autonoma della Sardegna Allegato A2 Elenco interventi finanziati in anticipazione FSC 21-27
A3: Area tematica | B3: Linea di intervento | C3: CUP | D3: Titolo dell'intervento | E3: COSTO TOTALE | F3: IMPORTO RICHIESTO FSC 21-27
A4: 05.AMBIENTE E RISORSE NATURALI | B4: 05.02.RISORSE IDRICHE | C4: I17H20005340001 | D4: Manutenzione straordinaria di un tratto principale della rete fognaria - via Umberto 141 - impianto di depurazione | E4: 1,786,642.84 | F4: 1,786,642.84
A5: 03.COMPETITIVITA’ E IMPRESE | B5: 03.03.AGRICOLTURA | C5: I87H20003140006 | D5: Manutenzione straordinaria della diga di Saruxi in agro di Sedilo (OR) e ripristino del canale adduttore tra il lago di Benzone e la diga di Saruxi | E5: 4,500,000.00 | F5: 4,500,000.00
A6: 03.COMPETITIVITA’ E IMPRESE | B6: 03.03.AGRICOLTURA | C6: C27H21000710006 | D6: Manutenzione straordinaria della rete di distribuzione irrigua della Trexenta A-B-C | E6: 1,675,000.00 | F6: 1,675,000.00
A7: 03.COMPETITIVITA’ E IMPRESE | B7: 03.03.AGRICOLTURA | C7: B67H21008350005 | D7: MANUTENZIONE E INTEGRAZIONE STRUMENTI DI MISURA PER IL CONTINGENTAMENTO DELLA RISORSA IRRIGUA COMPRENSORIO DELL'ANGLONA | E7: 1,850,000.00 | F7: 1,850,000.00
A8: 03.COMPETITIVITA’ E IMPRESE | B8: 03.03.AGRICOLTURA | C8: B47H21005370005 | D8: MANUTENZIONE E INTEGRAZIONE STRUMENTI DI MISURA PER IL CONTINGENTAMENTO DELLA RISORSA IRRIGUA COMPRENSORIO DELLA PIANA DI CHILIVANI - COMPLETAMENTO | E8: 1,300,000.00 | F8: 1,300,000.00
A9: 04.ENERGIA | B9: 04.01.EFFICIENZA ENERGETICA | C9: G33D20006040005 | D9: Realizzazione del centro di telecontrollo degli impianti consortili” | E9: 447,500.00 | F9: 447,500.00
A10: 05.AMBIENTE E RISORSE NATURALI | B10: 05.02.RISORSE IDRICHE | C10: G11B20000050005 | D10: Efficientamento energetico della sede centrale consortile mediante installazione di un impianto a pannelli fotovoltaici e riqualificazione dell’impianto di climatizzazione. | E10: 320,123.37 | F10: 320,123.37
A11: 05.AMBIENTE E RISORSE NATURALI | B11: 05.02.RISORSE IDRICHE | C11: G57H20002680002 | D11: Sostituzione delle condotte in cemento amianto e riconfigurazione delle rete irrigua Sassu 5 - CAT P0620 | E11: 7,710,066.90 | F11: 7,710,066.90
A12: 05.AMBIENTE E RISORSE NATURALI | B12: 05.02.RISORSE IDRICHE | C12: G17H20003040002 | D12: Conversione della rete di distribuzione a canaletta del Distretto a gravità di Pesaria in rete tubata - CAT P0520 | E12: 9,959,832.41 | F12: 9,959,832.41
A13: 07.TRASPORTI E MOBILITÀ | B13: 07.01.TRASPORTO STRADALE | C13: J81B20000360006 | D13: LAVORI DI COMPLETAMENTO OPERE DI URBANIZZAZIONE P.I.P. | E13: 990,000.00 | F13: 990,000.00
A14: 03.COMPETITIVITA’ E IMPRESE | B14: 03.01.INDUSTRIA E SERVIZI | C14: F28J19000050001 | D14: COMPLETAMENTO DEL PIANO INSEDIAMENTI PRODUTTIVI (P.I.P.) - 3° LOTTO | E14: 1,600,000.00 | F14: 1,600,000.00
A15: 03.COMPETITIVITA’ E IMPRESE | B15: 03.03.AGRICOLTURA | C15: F28G19017880001 | D15: Intervento di valorizzazione delle terre pubbliche mediante piantumazione di un oliveto e la realizzazione di un frantoio oleario, centro congressi e laboratorio didattico da affidare ad una cooperativa sociale | E15: 790,000.00 | F15: 790,000.00
A16: 05.AMBIENTE E RISORSE NATURALI | B16: 05.02.RISORSE IDRICHE | C16: H16H19000100004 | D16: Realizzazione di una rete di acque bianche e riqualificazione della Piazza Repubblica | E16: 520,000.00 | F16: 520,000.00
A17: 05.AMBIENTE E RISORSE NATURALI | B17: 05.02.RISORSE IDRICHE | C17: I74H15000990002 | D17: Interventi di messa in sicurezza di competenza del Servizio Dighe dell’Enas. Diga Monte Su Rei/Mulargia | E17: 535,645.00 | F17: 535,645.00
A18: 05.AMBIENTE E RISORSE NATURALI | B18: 05.02.RISORSE IDRICHE | C18: I74H15001010002 | D18: Interventi di messa in sicurezza di competenza del Servizio Gestione Sud | E18: 1,000,000.00 | F18: 1,000,000.00
A19: 05.AMBIENTE E RISORSE NATURALI | B19: 05.02.RISORSE IDRICHE | C19: I74H15001000002 | D19: Interventi per la messa n sicurezza delle opere di competenza del Servizio Gestione Nord | E19: 850,000.00 | F19: 850,000.00
A20: 05.AMBIENTE E RISORSE NATURALI | B20: 05.02.RISORSE IDRICHE | C20: I24H15001140002 | D20: Riqualificazione e adeguamento dei Sistemi 3B Nord Occidentale, 3C Nord Occidentale, 2C Tirso, 7A Flumendosa-Campidano-Cixerri. Sistema 3C Nord Occidentale: Adeguamento presa irrigua Cuga | E20: 300,000.00 | F20: 300,000.00
A21: 05.AMBIENTE E RISORSE NATURALI | B21: 05.02.RISORSE IDRICHE | C21: I74H15001040002 | D21: Sistema Idrico Multisettoriale: Riqualificazione ed efficientamento del sistema di erogazione e supervisione (Telecontrollo del canale sinistra Tirso) | E21: 1,200,000.00 | F21: 1,200,000.00
A22: 07.TRASPORTI E MOBILITÀ | B22: 07.01.TRASPORTO STRADALE | C22: J77H19002050001 | D22: Manutenzione straordinaria della strada rurale in loc. "Riu Tortu". | E22: 200,000.00 | F22: 200,000.00
A23: 07.TRASPORTI E MOBILITÀ | B23: 07.01.TRASPORTO STRADALE | C23: H57H20001130001 | D23: Messa in sicurezza strade rurali | E23: 300,000.00 | F23: 300,000.00
A24: 07.TRASPORTI E MOBILITÀ | B24: 07.01.TRASPORTO STRADALE | C24: H37H19001080006 | D24: Completamento intervento strada rurale in località Pischina Ruia. | E24: 57,500.00 | F24: 57,500.00
A25: 07.TRASPORTI E MOBILITÀ | B25: 07.01.TRASPORTO STRADALE | C25: I35F21000440002 | D25: Interventi di miglioramento dei livelli di sicurezza della circolazione veicolare mediante efficientamento dei sistemi di ritenuta laterale (guard-rail) nelle aree n. 1-2 | E25: 400,000.00 | F25: 400,000.00
A26: 07.TRASPORTI E MOBILITÀ | B26: 07.01.TRASPORTO STRADALE | C26: D97H19002520001 | D26: valorizzazione del territorio comunale ai fini turistici – miglioramento delle condizioni della viabilità rurale e turistica | E26: 1,110,000.00 | F26: 1,110,000.00
A27: 07.TRASPORTI E MOBILITÀ | B27: 07.01.TRASPORTO STRADALE | C27: H61B19000500004 | D27: Completamento Urbanizzazioni della via Tiepolo | E27: 800,000.00 | F27: 780,925.51
A28: 07.TRASPORTI E MOBILITÀ | B28: 07.01.TRASPORTO STRADALE | C28: H47H11000070002 | D28: Lavori per la sistemazione funzionale della strada comunale "Contonera" nel tratto compreso fra la strada vecchia per Monastir e la ex S.S. 131 | E28: 1,500,000.00 | F28: 1,500,000.00
A29: 07.TRASPORTI E MOBILITÀ | B29: 07.01.TRASPORTO STRADALE | C29: G15F20001510006 | D29: Completamento dei lavori di manutenzione straordinaria e recupero strutturale del ponte Serra | E29: 398,000.00 | F29: 398,000.00
A30: 07.TRASPORTI E MOBILITÀ | B30: 07.01.TRASPORTO STRADALE | C30: B63D16004620001 | D30: Recupero viabilità centro storico comune | E30: 1,000,000.00 | F30: 1,000,000.00
A31: 07.TRASPORTI E MOBILITÀ | B31: 07.01.TRASPORTO STRADALE | C31: J27H20002390002 | D31: Sistemazione strada extraurbana di collegamento della via Marconi alla via IV novembre denominata "Su Padru" | E31: 200,000.00 | F31: 200,000.00
A32: 07.TRASPORTI E MOBILITÀ | B32: 07.01.TRASPORTO STRADALE | C32: F27H19004490002 | D32: LAVORI DI MESSA IN SICUREZZA DELLE SS.PP. 43, 73, 45, 46, 72 E 99 | E32: 980,245.00 | F32: 980,245.00
A33: 07.TRASPORTI E MOBILITÀ | B33: 07.01.TRASPORTO STRADALE | C33: F47H19003120002 | D33: LAVORI DI MESSA IN SICUREZZA DELLE SS.PP. 11, 15, 19, 49NU E 30. | E33: 731,000.00 | F33: 731,000.00
A34: 07.TRASPORTI E MOBILITÀ | B34: 07.01.TRASPORTO STRADALE | C34: F27H20004450002 | D34: LAVORI DI MESSA IN SICUREZZA DELLE SS.PP. 9, 49, 60, 97. | E34: 1,269,420.00 | F34: 1,269,420.00
A35: 07.TRASPORTI E MOBILITÀ | B35: 07.01.TRASPORTO STRADALE | C35: I65F20000430006 | D35: Sistemazione e messa in sicurezza ingresso principale del paese "lato Nuoro" e realizzazione pista ciclo/pedonale | E35: 700,000.00 | F35: 700,000.00
A36: 08.RIQUALIFICAZIONE URBANA | B36: 08.01.EDILIZIA E SPAZI PUBBLICI | C36: E38D18000060002 | D36: Programma realizzazione alloggi di edilizia economica e popolare da assegnare a canone sociale | E36: 621,467.05 | F36: 621,467.05
A37: 08.RIQUALIFICAZIONE URBANA | B37: 08.01.EDILIZIA E SPAZI PUBBLICI | C37: F87H21002600001 | D37: LAVORI DI MANUTENZIONE STRAORDINARIA E MESSA IN SICUREZZA IMPIANTO SPORTIVO | E37: 763,171.90 | F37: 763,171.90
A38: 07.TRASPORTI E MOBILITÀ | B38: 07.01.TRASPORTO STRADALE | C38: C73D20000200006 | D38: Lavori di sistemazione e messa in sicurezza marciapiedi e viabilità carrabile via Roma. Primo lotto funzionale - Tissi | E38: 500,000.00 | F38: 500,000.00
A39: 07.TRASPORTI E MOBILITÀ | B39: 07.01.TRASPORTO STRADALE | C39: F47H18003620002 | D39: INTERVENTO STRUTTURALE SUL PONTE SULLA S.P.11 A VALLE DELLA DIGA DI SANTA CHIARA | E39: 480,000.00 | F39: 480,000.00
A40: 12.CAPACITA' AMMINISTRATIVA | B40: 12.01.RAFFORZAMENTO PA | C40: E21B21003220001 | D40: Azioni per la digitalizzazione e standardizzazione dei processi | E40: 4,000,000.00 | F40: 4,000,000.00
A41: 10.SOCIALE E SALUTE | B41: 10.02.STRUTTURE E ATTREZZATURE SANITARIE | C41: H88I20000050002 | D41: Lavori urgenti di ristrutturazione dei principali corpi bagno Palazzo Materno Infantile | E41: 1,100,000.00 | F41: 1,100,000.00
A42: 07.TRASPORTI E MOBILITÀ | B42: 07.02.TRASPORTO FERROVIARIO | C42: F60H18000010008 | D42: Rinnovo materiale rotabile rete a scartamento ridotto - Acquisto n. 8 treni | E42: 41,158,800.00 | F42: 41,158,800.00
A43: 07.TRASPORTI E MOBILITÀ | B43: 07.04.TRASPORTO AEREO | C43: H19J21008910008 | D43: Fornitura e posa in opera di n° 3 impianti bagagli da stiva | E43: 268,800.00 | F43: 268,800.00
A44: 07.TRASPORTI E MOBILITÀ | B44: 07.04.TRASPORTO AEREO | C44: C99J19001270002 | D44: FORNITURA, INSTALLAZIONE, START-UP E INSTALLAZIONE DI APPARECCHIATURE RADIOGENE EDS STANDARD 3 | E44: 1,933,414.77 | F44: 1,933,414.77
A45: 07.TRASPORTI E MOBILITÀ | B45: 07.04.TRASPORTO AEREO | C45: C96G21039360002 | D45: IMPIANTO BHS - ADEGUAMENTO STANDARD 3 | E45: 2,527,000.00 | F45: 2,527,000.00
A46: 07.TRASPORTI E MOBILITÀ | B46: 07.05.MOBILITÀ URBANA | C46: F19J21010330001 | D46: Acquisto n° 100 autobus elettrici 12 m | E46: 39,234,000.00 | F46: 39,234,000.00
A47: 07.TRASPORTI E MOBILITÀ | B47: 07.05.MOBILITÀ URBANA | C47: J29J15001370007 | D47: ADEGUAMENTO DELLA LINEA FILOVIARIA CONSEGUENTE AL RIASSETTO VIABILISTICO DI V.LE MARCONI | E47: 252,072.00 | F47: 252,072.00
A48: 11.ISTRUZIONE E FORMAZIONE | B48: 11.01.STRUTTURE EDUCATIVE E FORMATIVE | C48: G17B15000530006 | D48: Asse I - Riqualificazione del Complesso Scolastico – Secondaria di I Grado “G. Deledda” - via Tarragona | E48: 3,000,000.00 | F48: 3,000,000.00
A49: 11.ISTRUZIONE E FORMAZIONE | B49: 11.01.STRUTTURE EDUCATIVE E FORMATIVE | C49: F15I15000050006 | D49: Asse I - Scuole del nuovo millennio- Riqualificazione di un edificio per la creazione di un polo intercomunale per i comuni del Goceano | E49: 4,000,000.00 | F49: 4,000,000.00
A50: 11.ISTRUZIONE E FORMAZIONE | B50: 11.01.STRUTTURE EDUCATIVE E FORMATIVE | C50: C22G19000330002 | D50: Asse II - LAVORI DI RICOSTRUZIONE DELLA SCUOLA SECONDARIA DI PRIMO GRADO SITA IN LOCALITÀ MARRONCA COMUNE DI ARZANA*VIA 4 MORI*RICOSTRUZIONE CON EFFICENTAMENTO ENERGETICO DELLA SCUOLA SECONDARIA DI PRIMO GRADO SITA IN LOCALITÀ MARRONCA | E50: 850,000.00 | F50: 850,000.00
A51: 11.ISTRUZIONE E FORMAZIONE | B51: 11.01.STRUTTURE EDUCATIVE E FORMATIVE | C51: C66B19000340002 | D51: Asse II - EDIFICIO SCOLASTICO SITO IN BAUNEI (NU) IN VIA LOMBARDO RADICE ADIBITO A SCUOLA PER LINFANZIA E PRIMARIA*VIA COMUNE DI BAUNEI VIA LOMBARDO RADICE*INTERVENTI DI MANUTENZIONE STRAORDINARIA CON MESSA IN SICUREZZA ADEGUAMENTO IMPIANTISTICO | E51: 108,000.00 | F51: 108,000.00
A52: 11.ISTRUZIONE E FORMAZIONE | B52: 11.01.STRUTTURE EDUCATIVE E FORMATIVE | C52: B52G19000610006 | D52: Asse II - LAVORI ADEGUAMENTO ALLA VULNERABILITÀ SISMICA DELLA SCUOLA SECONDARIA DI PRIMO GRADO GIOVANNI PASCOLI - CORSO AMERICA | E52: 615,933.55 | F52: 615,933.55
A53: 11.ISTRUZIONE E FORMAZIONE | B53: 11.01.STRUTTURE EDUCATIVE E FORMATIVE | C53: E82B17001340005 | D53: Asse II - SCUOLA PRIMARIA VIA BEETHOVEN - LAVORI DI MANUTENZIONE STRAORDINARIA E ADEGUAMENTO ALLE NORME | E53: 70,000.00 | F53: 70,000.00
A54: 11.ISTRUZIONE E FORMAZIONE | B54: 11.01.STRUTTURE EDUCATIVE E FORMATIVE | C54: G31E15001040006 | D54: Asse I - Riqualificazione di struttura scolastica nel Comune di Ales | E54: 1,904,929.02 | F54: 1,348,302.46
A55: 11.ISTRUZIONE E FORMAZIONE | B55: 11.01.STRUTTURE EDUCATIVE E FORMATIVE | C55: H41E16000330002 | D55: Asse I - Interventi di ristrutturazione e riqualificazione delle strutture scolastiche primarie e secondarie di primo grado nei Comuni di Mogoro e Masullas, nonché riqualificazione e ottimizzazione degli spazi della scuola dell’infanzia del Comune di Gonnostramatza. | E55: 3,500,000.00 | F55: 3,500,000.00
A56: 11.ISTRUZIONE E FORMAZIONE | B56: 11.01.STRUTTURE EDUCATIVE E FORMATIVE | C56: E85I15000240006 | D56: Asse I - REALIZZAZIONE DEL POLO SCOLASTICO INTERCOMUNALE "ENERGIE IN RETE" | E56: 2,300,000.00 | F56: 1,314,994.98
A57: 11.ISTRUZIONE E FORMAZIONE | B57: 11.01.STRUTTURE EDUCATIVE E FORMATIVE | C57: H16J20000400001 | D57: RIQUALIFICAZIONE DELLA PALESTRA COMUNALE | E57: 430,000.00 | F57: 430,000.00
A58: 11.ISTRUZIONE E FORMAZIONE | B58: 11.01.STRUTTURE EDUCATIVE E FORMATIVE | C58: B87B15000700006 | D58: Asse I - Istituto comprensivo S. Farina – Ottava | E58: 1,750,000.00 | F58: 1,750,000.00

Sheet Allegato A3_F.do di Rotazione
A1: Accordo per la Coesione Governo - Regione Autonoma della Sardegna Allegato A3 Programma di interventi con cronoprogramma procedurale - valori in euro (quota Fondo di Rotazione ex lege 183/1987)
B2: AMMINISTRAZIONE | C2: AREATEMATICA | D2: LINEA DI INTERVENTO | E2: CUP | F2: TITOLO INTERVENTO | G2: COSTO COMPLESSIVO | H2: FDR Legge 183/87 | I2: COFINANZIAMENTO CON ALTRE RISORSE | J2: PROGRAMMAZIONE | L2: PROGETTAZIONE | N2: ESECUZIONE
J3: PREVISIONE INIZIO | K3: PREVISIONE FINE | L3: PREVISIONE INIZIO | M3: PREVISIONE FINE | N3: PREVISIONE INIZIO | O3: PREVISIONE FINE
A4: FSCRI_RI_4622 | B4: AZIENDA REGIONALE PER L'EDILIZIA ABITATIVA | C4: 08.RIQUALIFICAZIONE URBANA | D4: 08.01 EDILIZIA E SPAZI PUBBLICI | E4: LINEA DI AZIONE | F4: POC_INTERVENTI DI MANUTENZIONE DEGLI IMMOBILE ERP DI PROPRIETÀ DI AREA | G4: 230,000,000.00 | H4: 230,000,000.00 | I4: 0 | J4: 2_SEMESTRE_2024 | K4: 1_SEMESTRE_2025 | L4: 1_SEMESTRE_2025 | M4: 2_SEMESTRE_2027 | N4: 2_SEMESTRE_2025 | O4: 2_SEMESTRE_2029
A5: FSCRI_RI_4623 | B5: CITTÀ METROPOLITANA DI SASSARI | C5: 07.TRASPORTI E MOBILITÀ | D5: 07.01 TRASPORTO STRADALE | E5: LINEA DI AZIONE | F5: POC_MANUTENZIONE E MESSA IN SICUREZZA STRADE DELLA CITTA' METROPOLITANA DI SASSARI | G5: 13,400,000.00 | H5: 13,400,000.00 | I5: 0 | J5: 2_SEMESTRE_2025 | K5: 1_SEMESTRE_2027 | L5: 2_SEMESTRE_2025 | M5: 2_SEMESTRE_2028 | N5: 1_SEMESTRE_2026 | O5: 2_SEMESTRE_2028
A6: FSCRI_RI_4624 | B6: DA IDENTIFICARSI A SEGUITO DI BANDO | C6: 05.AMBIENTE E RISORSE NATURALI | D6: 05.01 RISCHI E ADATTAMENTO CLIMATICO | E6: LINEA DI AZIONE | F6: POC_REALIZZAZIONE DI INTERVENTI DI MITIGAZIONE DEL RISCHIO IDROGEOLOGICO IN AREE PERIMETRATE DEL PAI | G6: 60,000,000.00 | H6: 60,000,000.00 | I6: 0 | J6: 1_SEMESTRE_2025 | K6: 1_SEMESTRE_2025 | L6: 2_SEMESTRE_2025 | M6: 1_SEMESTRE_2027 | N6: 2_SEMESTRE_2025 | O6: 2_SEMESTRE_2029
A7: FSCRI_RI_4625 | B7: PROVINCIA DELLA GALLURA NORD EST SARDEGNA | C7: 07.TRASPORTI E MOBILITÀ | D7: 07.01 TRASPORTO STRADALE | E7: LINEA DI AZIONE | F7: POC_MANUTENZIONE E MESSA IN SICUREZZA STRADE DELLA PROVINCIA DELLA GALLURA NORD EST SARDEGNA | G7: 6,700,000.00 | H7: 6,700,000.00 | I7: 0 | L7: 2_SEMESTRE_2025 | M7: 2_SEMESTRE_2027 | N7: 2_SEMESTRE_2025 | O7: 2_SEMESTRE_2027
A8: FSCRI_RI_4626 | B8: REGIONE AUTONOMA DELLA SARDEGNA | C8: 07.TRASPORTI E MOBILITÀ | D8: 07.01 TRASPORTO STRADALE | E8: LINEA DI AZIONE | F8: POC_MANUTENZIONE E MESSA IN SICUREZZA STRADE DELLA PROVINCIA DEL SUD SARDEGNA | G8: 10,850,000.00 | H8: 10,850,000.00 | I8: 0 | J8: 2_SEMESTRE_2025 | K8: 2_SEMESTRE_2027 | L8: 2_SEMESTRE_2025 | M8: 2_SEMESTRE_2028 | N8: 2_SEMESTRE_2026 | O8: 2_SEMESTRE_2028
A9: FSCRI_RI_4627 | B9: REGIONA AUTONOMA DELLA SARDEGNA | C9: 07.TRASPORTI E MOBILITÀ | D9: 07.03 TRASPORTO MARITTIMO E LOGISTICA | E9: D42J21000020001 | F9: POC_ADEGUAMENTO DEL PORTO TURISTICO LA CALETTA | G9: 3,500,000.00 | H9: 3,050,000.00 | I9: 450,000.00 | J9: 1_SEMESTRE_2025 | K9: 2_SEMESTRE_2025 | L9: 2_SEMESTRE_2025 | M9: 2_SEMESTRE_2025 | N9: 1_SEMESTRE_2026 | O9: 2_SEMESTRE_2029
A10: FSCRI_RI_4628 | B10: ENTE ACQUE DELLA SARDEGNA | C10: 05.AMBIENTE E RISORSE NATURALI | D10: 05.01 RISCHI E ADATTAMENTO CLIMATICO | E10: I88B24000170001 | F10: POC_INT. MAN. STRAORD. CON SOST. RISAN. STRUTT. DIVERSI TRATTI ACQUEDOTTI "COGHINAS I" E "COGHINAS I | G10: 26,840,000.00 | H10: 22,000,000.00 | I10: 4,840,000.00 | J10: 1_SEMESTRE_2025 | K10: 1_SEMESTRE_2025 | L10: 2_SEMESTRE_2025 | M10: 1_SEMESTRE_2026 | N10: 2_SEMESTRE_2026 | O10: 2_SEMESTRE_2028
A11: FSCRI_RI_4629 | B11: REGIONE AUTONOMA DELLA SARDEGNA | C11: 07.TRASPORTI E MOBILITÀ | D11: 07.03 TRASPORTO MARITTIMO E LOGISTICA | E11: H16G13002320002 | F11: POC_COMPLETAMENTO E RAZIONALIZZAZIONE PORTO TURISTICO DI TORREGRANDE | G11: 18,000,000.00 | H11: 6,500,000.00 | I11: 11,500,000.00 | J11: 1_SEMESTRE_2025 | K11: 2_SEMESTRE_2025 | L11: 2_SEMESTRE_2025 | M11: 1_SEMESTRE_2027 | N11: 2_SEMESTRE_2027 | O11: 2_SEMESTRE_2029
A12: FSCRI_RI_4630 | B12: ABBANOA SPA | C12: 05.AMBIENTE E RISORSE NATURALI | D12: 05.01 RISCHI E ADATTAMENTO CLIMATICO | E12: E52E23000410003 | F12: POC_SCHEMA 17 OGLIASTRA: NUOVO IMPIANTO DI POTABILIZZAZIONE, OPERA DI PRESA E DORSALE - LOTTO | G12: 44,493,077.67 | H12: 11,000,000.00 | I12: 33,493,077.67 | J12: 1_SEMESTRE_2025 | K12: 2_SEMESTRE_2025 | L12: 1_SEMESTRE_2026 | M12: 2_SEMESTRE_2027 | N12: 1_SEMESTRE_2028 | O12: 2_SEMESTRE_2029
A13: FSCRI_RI_4631 | B13: CITTÀ METROPOLITANA DI SASSARI | C13: 07.TRASPORTI E MOBILITÀ | D13: 07.01 TRASPORTO STRADALE | E13: LINEA DI AZIONE | F13: POC_INTERVENTI DI COMPLETAMENTO,MESSA IN SICUREZZA E ADEGUAMENTO FUNZIONALE VIARIO E DI OPERE D'ARTE | G13: 30,800,000.00 | H13: 30,800,000.00 | J13: 2_SEMESTRE_2025 | K13: 1_SEMESTRE_2027 | L13: 2_SEMESTRE_2025 | M13: 2_SEMESTRE_2029 | N13: 1_SEMESTRE_2026 | O13: 2_SEMESTRE_2029
A14: FSCRI_RI_4632 | B14: COMUNE DI PORTO TORRES | C14: 07.TRASPORTI E MOBILITÀ | D14: 07.01 TRASPORTO STRADALE | E14: I25F21001570001 | F14: POC_LAVORI MESSA IN SICUREZZA E RIQUALIFICAZIONE VIABILITÀ DI ACCESSO AL NUOVO CIMITERO COMUNALE | G14: 2,500,000.00 | H14: 2,500,000.00 | I14: 0 | L14: 1_SEMESTRE_2025 | M14: 1_SEMESTRE_2025 | N14: 2_SEMESTRE_2025 | O14: 1_SEMESTRE_2027
A15: FSCRI_RI_4633 | B15: PROVINCIA DI ORISTANO | C15: 07.TRASPORTI E MOBILITÀ | D15: 07.01 TRASPORTO STRADALE | E15: LINEA DI AZIONE | F15: POC_MANUTENZIONE E MESSA IN SICUREZZA STRADE DELLA PROVINCIA DI ORISTANO | G15: 8,650,000.00 | H15: 8,650,000.00 | I15: 0 | L15: 2_SEMESTRE_2025 | M15: 2_SEMESTRE_2025 | N15: 1_SEMESTRE_2026 | O15: 2_SEMESTRE_2027
A16: FSCRI_RI_4634 | B16: REGIONE AUTONOMA DELLA SARDEGNA | C16: 07.TRASPORTI E MOBILITÀ | D16: 07.01 TRASPORTO STRADALE | E16: LINEA DI AZIONE | F16: POC_MANUTENZIONI E MESSA IN SICUREZZA STRADE PROVINCIALI DI NUORO E OGLIASTRA | G16: 10,400,000.00 | H16: 10,400,000.00 | I16: 0 | L16: 2_SEMESTRE_2025 | M16: 2_SEMESTRE_2028 | N16: 2_SEMESTRE_2025 | O16: 2_SEMESTRE_2028
A17: FSCRI_RI_5132 | B17: OPERE E INFRASTRUTTURE DELLA SARDEGNA S.R.L. | C17: 07.TRASPORTI E MOBILITÀ | D17: 07.01 TRASPORTO STRADALE | E17: C65F23000490002 | F17: POC_MESSA IN SICUREZZA DELLA GALLERIA DI “MUGHINA” NEL COMUNE DI NUORO | G17: 20,000,000.00 | H17: 10,000,000.00 | I17: 10,000,000.00 | L17: 2_SEMESTRE_2024 | M17: 1_SEMESTRE_2027 | N17: 1_SEMESTRE_2027 | O17: 2_SEMESTRE_2028

Sheet Alleg. B1_Piano fin. annuo tot.
A1: Accordo per la Coesione Governo - Regione Autonoma della Sardegna Allegato B1 - Piano finanziario di spesa dell’Accordo per annualità (solo quota FSC 21-27 ordinaria)
B2: 2024 | C2: 2025 | D2: 2026 | E2: 2027 | F2: 2028 | G2: 2029 | H2: 2030 | I2: 2031 | J2: 2032 | K2: 2033 | L2: 2034 | M2: 2035 | N2: Totale
A3: Assegnazione ordinaria FSC 21-27 | B3: 0 | C3: 25,766,570.35 | D3: 299,765,099.75 | E3: 533,282,066.29 | F3: 488,699,609.57 | G3: 329,542,066.40 | H3: 277,202,669.46 | I3: 167,280,848.66 | J3: 100,738,182.28 | K3: 44,358,327.84 | L3: 26,968,325.00 | M3: 19,941,517.01 | N3: =SUM(B3:M3) -> 2,313,545,282.61

Sheet Alleg. B2_Piano fin. per inter.
A1: Accordo per la Coesione Governo - Regione Autonoma della Sardegna Allegato B2 - Piano finanziario di spesa per singolo intervento (solo quota FSC 21-27 ordinaria)
A2: ID | B2: AMMINISTRAZIONE | C2: AREATEMATICA | D2: LINEA DI INTERVENTO | E2: CUP | F2: TITOLO | G2: COSTO TOTALE | H2: IMPORTO RICHIESTO FSC 21-27 | I2: COFINANZIAMENTO CON ALTRE RISORSE | J2: 2024 | K2: 2025 | L2: 2026 | M2: 2027 | N2: 2028 | O2: 2029 | P2: 2030 | Q2: 2031 | R2: 2032 | S2: 2033 | T2: 2034 | U2: 2035
A3: FSCRI_RI_4138 | B3: ISTITUTO NAZIONALE DI ASTROFISICA - OSSERVATORIO ASTRONOMICO DI CAGLIARI | C3: 01.RICERCA E INNOVAZIONE | D3: 01.02 STRUTTURE DL RICERCA | E3: C24D24001830001 | F3: PIANO DI SVILUPPO DEL SITO DEL SARDINIA RADIO TELESCOPE PER ATTIVITÀ TECNICO/SCIENTIFICHE | G3: 6,000,000.00 | H3: 6,000,000.00 | I3: 0 | J3: 0 | K3: 0 | L3: 600,000.00 | M3: 2,000,000.00 | N3: 2,100,000.00 | O3: 1,300,000.00 | P3: 0 | Q3: 0 | R3: 0 | S3: 0 | T3: 0 | U3: 0
A4: FSCRI_RI_4141 | B4: ISTITUTO NAZIONALE DI ASTROFISICA - OSSERVATORIO ASTRONOMICO DI CAGLIARI | C4: 01.RICERCA E INNOVAZIONE | D4: 01.02 STRUTTURE DL RICERCA | E4: C74D24001790001 | F4: PIANO DI AMPLIAMENTO DELL'INAF - OSSERVATORIO ASTRONOMICO DI CAGLIARI | G4: 250,000.00 | H4: 250,000.00 | I4: 0 | J4: 0 | K4: 0 | L4: 25,000.00 | M4: 125,000.00 | N4: 100,000.00 | O4: 0 | P4: 0 | Q4: 0 | R4: 0 | S4: 0 | T4: 0 | U4: 0
A5: FSCRI_RI_4173 | B5: ENTI LOCALI DA INDIVIDUARE | C5: 08.RIQUALIFICAZIONE URBANA | D5: 08.01 EDILIZIA E SPAZI PUBBLICI | E5: E74H24000710001 | F5: ATTIVAZIONE DI NODI DI SERVIZI ESSENZIALI VICINI AL CITTADINO NELLE AREE INTERNE | G5: 20,000,000.00 | H5: 20,000,000.00 | I5: 0 | J5: 0 | K5: 0 | L5: 2,000,000.00 | M5: 2,000,000.00 | N5: 6,000,000.00 | O5: 6,000,000.00 | P5: 3,000,000.00 | Q5: 1,000,000.00 | R5: 0 | S5: 0 | T5: 0 | U5: 0
A6: FSCRI_RI_4174 | B6: REGIONE AUTONOMA DELLA SARDEGNA | C6: 08.RIQUALIFICAZIONE URBANA | D6: 08.02 EDILIZIA PRIVATA | E6: E22H21000110003 | F6: LAVORI RISTRUTT. MESSA NORMA EDIFICI 3, 4, 5, 8 EX SALINE LA PALMA CAGLIARI ARCHIVIO STORICO REG.LE | G6: 6,100,000.00 | H6: 6,100,000.00 | I6: 0 | J6: 0 | K6: 0 | L6: 1,800,000.00 | M6: 2,000,000.00 | N6: 2,300,000.00 | O6: 0 | P6: 0 | Q6: 0 | R6: 0 | S6: 0 | T6: 0 | U6: 0
A7: FSCRI_RI_4175 | B7: ENTI LOCALI, AZIENDE DEL SERVIZO SANITARIO REGIONALE, SOGGETTI PRIVATI GESTORI DI STRUTTURE SOCIALI E SOCIO-SANITARIE | C7: 10.SOCIALE E SALUTE | D7: 10.03 SERVIZI SOCIO-ASSISTENZIALI | E7: LINEA DI AZIONE | F7: IN.DO.M.A.U.S. INTERVENTI DI DOMOTICA PER MINORI E ANZIANI DI UTILITA' SOCIALE | G7: 50,000,000.00 | H7: 50,000,000.00 | I7: 0 | J7: 0 | K7: 0 | L7: 10,000,000.00 | M7: 25,000,000.00 | N7: 15,000,000.00 | O7: 0 | P7: 0 | Q7: 0 | R7: 0 | S7: 0 | T7: 0 | U7: 0
A8: FSCRI_RI_4176 | B8: ENTI LOCALI E AMMINISTRAZIONI PUBBLICHE DA INDIVIDUARE A SEGUITO DI AVVISO PUBBLICO | C8: 06.CULTURA | D8: 06.01 PATRIMONIO E PAESAGGIO | E8: LINEA DI AZIONE | F8: REALIZZAZIONE INTERVENTI DI TUTELA, CONSERVAZIONE E VALORIZZAZIONE DEL PATRIMONIO CULTURALE | G8: 30,000,000.00 | H8: 30,000,000.00 | I8: 0 | J8: 0 | K8: 0 | L8: 6,000,000.00 | M8: 6,000,000.00 | N8: 9,000,000.00 | O8: 6,000,000.00 | P8: 3,000,000.00 | Q8: 0 | R8: 0 | S8: 0 | T8: 0 | U8: 0
A9: FSCRI_RI_4178 | B9: ENTI LOCALI NEI QUALI RICADONO I BENI CULTURALI OGGETTO DELLA CANDIDATURA UNESCO "ARTE E ARCHITETTURA DELLA SARDEGNA PREISTORICA. LE DOMUS DE JANAS" | C9: 06.CULTURA | D9: 06.01 PATRIMONIO E PAESAGGIO | E9: LINEA DI AZIONE | F9: ARTE E ARCHITETTURA DELLA SARDEGNA PREISTORICA. LE DOMUS DE JANAS. INTERVENTI PER CANDIDATURA UNESCO | G9: 15,000,000.00 | H9: 15,000,000.00 | I9: 0 | J9: 0 | K9: 0 | L9: 3,000,000.00 | M9: 3,000,000.00 | N9: 4,500,000.00 | O9: 3,000,000.00 | P9: 1,500,000.00 | Q9: 0 | R9: 0 | S9: 0 | T9: 0 | U9: 0
A10: FSCRI_RI_4179 | B10: COMUNE DI PULA | C10: 06.CULTURA | D10: 06.01 PATRIMONIO E PAESAGGIO | E10: B77B24000140005 | F10: RECUPERO EX CASERMETTE DELL’EX STAZIONE NELL’AMBITO DEL NUOVO PARCO ARCHEOLOGICO REGIONALE DI NORA | G10: 5,000,000.00 | H10: 5,000,000.00 | I10: 0 | J10: 0 | K10: 0 | L10: 470,000.00 | M10: 1,820,000.00 | N10: 2,710,000.00 | O10: 0 | P10: 0 | Q10: 0 | R10: 0 | S10: 0 | T10: 0 | U10: 0
A11: FSCRI_RI_4180 | B11: UNIVERSITÀ DEGLI STUDI DI CAGLIARI | C11: 01.RICERCA E INNOVAZIONE | D11: 01.02 STRUTTURE DL RICERCA | E11: F35E23000220002 | F11: NUOVO EDIFICIO BLOCCO F BIS - ASSE DIDATTICO | G11: 15,000,000.00 | H11: 15,000,000.00 | I11: 0 | J11: 0 | K11: 0 | L11: 1,000,000.00 | M11: 2,000,000.00 | N11: 5,000,000.00 | O11: 4,000,000.00 | P11: 2,500,000.00 | Q11: 500,000.00 | R11: 0 | S11: 0 | T11: 0 | U11: 0
A12: FSCRI_RI_4182 | B12: CONSORZIO INDUSTRIALE PROVINCIALE DI NUORO CIPNU | C12: 05.AMBIENTE E RISORSE NATURALI | D12: 05.02 RISORSE IDRICHE | E12: D77J24000030001 | F12: POTENZIAMENTO IMPIANTO DI POTABILIZZAZIONE DEL SOLOGO CIPNU | G12: 200,000.00 | H12: 200,000.00 | I12: 0 | J12: 0 | K12: 50,000.00 | L12: 150,000.00 | M12: 0 | N12: 0 | O12: 0 | P12: 0 | Q12: 0 | R12: 0 | S12: 0 | T12: 0 | U12: 0
A13: FSCRI_RI_4184 | B13: DIREZIONE GENERALE DELLA PROTEZIONE CIVILE | C13: 05.AMBIENTE E RISORSE NATURALI | D13: 05.01 RISCHI E ADATTAMENTO CLIMATICO | E13: E79I24001090001 | F13: ELABORAZIONE CARTA DEI SUOLI PER LA REGIONE SARDEGNA | G13: 2,000,000.00 | H13: 2,000,000.00 | I13: 0 | J13: 0 | K13: 0 | L13: 320,000.00 | M13: 600,000.00 | N13: 1,080,000.00 | O13: 0 | P13: 0 | Q13: 0 | R13: 0 | S13: 0 | T13: 0 | U13: 0
A14: FSCRI_RI_4185 | B14: UNIVERSITÀ DEGLI STUDI DI CAGLIARI | C14: 11.ISTRUZIONE E FORMAZIONE | D14: 11.01 STRUTTURE EDUCATIVE E FORMATIVE | E14: F28H23001010002 | F14: ADEGUAMENTO DEGLI IMPIANTI ANTINCENDIO DEGLI EDIFICI IN USO ALL'UNIVERSITÀ DI CAGLIARI | G14: 15,000,000.00 | H14: 15,000,000.00 | I14: 0 | J14: 0 | K14: 0 | L14: 5,000,000.00 | M14: 5,000,000.00 | N14: 4,500,000.00 | O14: 500,000.00 | P14: 0 | Q14: 0 | R14: 0 | S14: 0 | T14: 0 | U14: 0
A15: FSCRI_RI_4186 | B15: C.I.S.A. CONSORZIO INTERCOMUNALE SALVAGUARDIA AMBIENTALE - SERRAMANNA | C15: 05.AMBIENTE E RISORSE NATURALI | D15: 05.03 RIFIUTI | E15: C95I24000120002 | F15: INTERVENTI DI REVAMPING ED EFFICIENTAMENTO DELL'IMPIANTO DI PRODUZIONE COMPOST DI QUALITÀ | G15: 4,627,200.00 | H15: 4,627,200.00 | I15: 0 | J15: 0 | K15: 250,000.00 | L15: 4,377,200.00 | M15: 0 | N15: 0 | O15: 0 | P15: 0 | Q15: 0 | R15: 0 | S15: 0 | T15: 0 | U15: 0
A16: FSCRI_RI_4187 | B16: UNIVERSITÀ DEGLI STUDI DI CAGLIARI | C16: 11.ISTRUZIONE E FORMAZIONE | D16: 11.01 STRUTTURE EDUCATIVE E FORMATIVE | E16: F22B24000590002 | F16: PARZIALE RIPRISTINO DELL'EDIFICIO EX SCIENZE DELLA TERRA | G16: 4,500,000.00 | H16: 4,500,000.00 | I16: 0 | J16: 0 | K16: 50,000.00 | L16: 300,000.00 | M16: 1,150,000.00 | N16: 2,000,000.00 | O16: 750,000.00 | P16: 250,000.00 | Q16: 0 | R16: 0 | S16: 0 | T16: 0 | U16: 0
A17: FSCRI_RI_4188 | B17: REGIONE SARDEGNA -ASSESSORATO DELLA DIFESA DELL'AMBIENTE - DIREZIONE GENERALE DELL'AMBIENTE - SERVIZIO SVASI | C17: 02.DIGITALIZZAZIONE | D17: 02.01 TECNOLOGIE E SERVIZI DIGITALI | E17: E21F24000440001 | F17: REINGEGNERIZZAZIONE DEL SISTEMA INFORMATIVO REGIONALE AMBIENTALE DELLA SARDEGNA (SIRA SARDEGNA) | G17: 7,000,000.00 | H17: 7,000,000.00 | I17: 0 | J17: 0 | K17: 0 | L17: 2,000,000.00 | M17: 2,500,000.00 | N17: 2,500,000.00 | O17: 0 | P17: 0 | Q17: 0 | R17: 0 | S17: 0 | T17: 0 | U17: 0
A18: FSCRI_RI_4189 | B18: UNIVERSITÀ DEGLI STUDI DI CAGLIARI | C18: 11.ISTRUZIONE E FORMAZIONE | D18: 11.01 STRUTTURE EDUCATIVE E FORMATIVE | E18: F29I24000860002 | F18: RIQUALIFICAZIONE DELLA BIBLIOTECA UNIVERSITARIA DI VIALE SANT'IGNAZIO | G18: 8,000,000.00 | H18: 8,000,000.00 | I18: 0 | J18: 0 | K18: 50,000.00 | L18: 300,000.00 | M18: 1,000,000.00 | N18: 3,000,000.00 | O18: 3,000,000.00 | P18: 650,000.00 | Q18: 0 | R18: 0 | S18: 0 | T18: 0 | U18: 0
A19: FSCRI_RI_4191 | B19: CONSORZIO INDUSTRIALE PROVINCIALE VILLACIDRO - MEDIO CAMPIDANO | C19: 05.AMBIENTE E RISORSE NATURALI | D19: 05.03 RIFIUTI | E19: D18C24000840008 | F19: RISTRUTTURAZIONE DIGESTIONE ANAEROBICA E RICEZIONE RIFIUTI IMPIANTO DI TRATTAMENTO FRAZIONE ORGANICA | G19: 15,881,820.00 | H19: 7,000,000.00 | I19: 8,881,820.00 | J19: 0 | K19: 0 | L19: 2,000,000.00 | M19: 2,000,000.00 | N19: 2,000,000.00 | O19: 1,000,000.00 | P19: 0 | Q19: 0 | R19: 0 | S19: 0 | T19: 0 | U19: 0
A20: FSCRI_RI_4192 | B20: DIREZIONE GENERALE DELLA PROTEZIONE CIVILE | C20: 05.AMBIENTE E RISORSE NATURALI | D20: 05.01 RISCHI E ADATTAMENTO CLIMATICO | E20: E77D24000080001 | F20: ADEGUAMENTO SISTEMA STAZIONI METEOROLOGICHE RETE UNICA REGIONALE (RUR) | G20: 2,000,000.00 | H20: 2,000,000.00 | I20: 0 | J20: 0 | K20: 0 | L20: 1,200,000.00 | M20: 800,000.00 | N20: 0 | O20: 0 | P20: 0 | Q20: 0 | R20: 0 | S20: 0 | T20: 0 | U20: 0
A21: FSCRI_RI_4193 | B21: UNIVERSITÀ DEGLI STUDI DI CAGLIARI | C21: 11.ISTRUZIONE E FORMAZIONE | D21: 11.01 STRUTTURE EDUCATIVE E FORMATIVE | E21: F22B22000590006 | F21: RIQUALIFICAZIONE FUNZIONALE ED ENERGETICA DEGLI EX ISTITUTI BIOLOGICI | G21: 8,700,000.00 | H21: 7,500,000.00 | I21: 1,200,000.00 | J21: 0 | K21: 50,000.00 | L21: 500,000.00 | M21: 2,600,000.00 | N21: 2,600,000.00 | O21: 1,100,000.00 | P21: 650,000.00 | Q21: 0 | R21: 0 | S21: 0 | T21: 0 | U21: 0
A22: FSCRI_RI_4194 | B22: CACIP CONSORZIO INDUSTRIALE PROVINCIALE DI CAGLIARI | C22: 08.RIQUALIFICAZIONE URBANA | D22: 08.01 EDILIZIA E SPAZI PUBBLICI | E22: F24H23000940002 | F22: CACIP REALIZZAZIONE FABBRICATO DA DESTINARE AD UFFICI UBICATO ZONA FRANCA PORTO INDUSTRIALE CAGLIARI | G22: 2,150,000.00 | H22: 2,150,000.00 | I22: 0 | J22: 0 | K22: 0 | L22: 1,600,000.00 | M22: 550,000.00 | N22: 0 | O22: 0 | P22: 0 | Q22: 0 | R22: 0 | S22: 0 | T22: 0 | U22: 0
A23: FSCRI_RI_4195 | B23: CONSORZIO INDUSTRIALE PROVINCIALE DI CAGLIARI | C23: 05.AMBIENTE E RISORSE NATURALI | D23: 05.03 RIFIUTI | E23: F51B21001010005 | F23: REALIZZAZIONE DI UN CSS DI IMBALLAGGI IN PLASTICA POST-CONSUMO DA RACCOLTA DIFFERENZIATA URBANA | G23: 21,604,163.24 | H23: 3,519,147.83 | I23: 18,085,015.41 | J23: 0 | K23: 2,000,000.00 | L23: 1,519,147.83 | M23: 0 | N23: 0 | O23: 0 | P23: 0 | Q23: 0 | R23: 0 | S23: 0 | T23: 0 | U23: 0
A24: FSCRI_RI_4196 | B24: UNIVERSITÀ DEGLI STUDI DI CAGLIARI | C24: 11.ISTRUZIONE E FORMAZIONE | D24: 11.01 STRUTTURE EDUCATIVE E FORMATIVE | E24: F22B24000580002 | F24: CREAZIONE DI UN POLO PER L'INTERNAZIONALIZZAZIONE A VILLA MELIS | G24: 4,000,000.00 | H24: 4,000,000.00 | I24: 0 | J24: 0 | K24: 50,000.00 | L24: 300,000.00 | M24: 2,600,000.00 | N24: 700,000.00 | O24: 350,000.00 | P24: 0 | Q24: 0 | R24: 0 | S24: 0 | T24: 0 | U24: 0
A25: FSCRI_RI_4197 | B25: UNIVERSITÀ DEGLI STUDI DI CAGLIARI | C25: 11.ISTRUZIONE E FORMAZIONE | D25: 11.01 STRUTTURE EDUCATIVE E FORMATIVE | E25: F37G22000210002 | F25: RIQUALIFICAZIONE SPAZI APERTI PARCO DELLE CONNESSIONI | G25: 2,500,000.00 | H25: 2,500,000.00 | I25: 0 | J25: 0 | K25: 0 | L25: 500,000.00 | M25: 1,000,000.00 | N25: 900,000.00 | O25: 100,000.00 | P25: 0 | Q25: 0 | R25: 0 | S25: 0 | T25: 0 | U25: 0
A26: FSCRI_RI_4198 | B26: CONSORZIO INDUSTRIALE PROVINCIALE SASSARI CIPSS | C26: 05.AMBIENTE E RISORSE NATURALI | D26: 05.02 RISORSE IDRICHE | E26: G25H24000070001 | F26: POTENZIAMENTO DELLA SEZIONE TERZIARIA DEL DEPURATORE CONSORTILE DI PORTO TORRES CIPSS | G26: 2,240,000.00 | H26: 2,240,000.00 | I26: 0 | J26: 0 | K26: 12,150.00 | L26: 75,000.00 | M26: 320,000.00 | N26: 1,332,850.00 | O26: 500,000.00 | P26: 0 | Q26: 0 | R26: 0 | S26: 0 | T26: 0 | U26: 0
A27: FSCRI_RI_4199 | B27: DIREZIONE GENERALE DELLA PROTEZIONE CIVILE | C27: 05.AMBIENTE E RISORSE NATURALI | D27: 05.01 RISCHI E ADATTAMENTO CLIMATICO | E27: E72H24001030001 | F27: INSTALLAZIONE NUOVE STAZIONI IDROMETRICHE (N.40 POSTAZIONI) | G27: 1,300,000.00 | H27: 1,300,000.00 | I27: 0 | J27: 0 | K27: 0 | L27: 300,000.00 | M27: 500,000.00 | N27: 500,000.00 | O27: 0 | P27: 0 | Q27: 0 | R27: 0 | S27: 0 | T27: 0 | U27: 0
A28: FSCRI_RI_4200 | B28: REGIONE AUTONOMA DELLA SARDEGNA | C28: 02.DIGITALIZZAZIONE | D28: 02.02 CONNETTIVITÀ DIGITALE | E28: E76F24000120003 | F28: RETI DI ACCESSO SISTEMA REGIONE | G28: 15,000,000.00 | H28: 15,000,000.00 | I28: 0 | J28: 0 | K28: 0 | L28: 5,000,000.00 | M28: 10,000,000.00 | N28: 0 | O28: 0 | P28: 0 | Q28: 0 | R28: 0 | S28: 0 | T28: 0 | U28: 0
A29: FSCRI_RI_4201 | B29: CONSORZIO INDUSTRIALE PROVINCIALE CARBONIA IGLESIAS - SICIP | C29: 05.AMBIENTE E RISORSE NATURALI | D29: 05.01 RISCHI E ADATTAMENTO CLIMATICO | E29: G74D24003720002 | F29: OPERE DI BONIFICA E LA MESSA IN SICUREZZA IDROGEOLOGICA E AMBIENTALE DELL’AREA DI SU STANGIONI SICIP | G29: 2,300,000.00 | H29: 2,300,000.00 | I29: 0 | J29: 0 | K29: 500,000.00 | L29: 500,000.00 | M29: 600,000.00 | N29: 700,000.00 | O29: 0 | P29: 0 | Q29: 0 | R29: 0 | S29: 0 | T29: 0 | U29: 0
A30: FSCRI_RI_4202 | B30: DIREZIONE GENERALE DELLA PROTEZIONE CIVILE | C30: 05.AMBIENTE E RISORSE NATURALI | D30: 05.01 RISCHI E ADATTAMENTO CLIMATICO | E30: E72B24000620001 | F30: INSTALLAZIONE SISTEMA DI MONITORAGGIO UMIDITÀ DEL SUOLO (N.30 POSTAZIONI) | G30: 1,200,000.00 | H30: 1,200,000.00 | I30: 0 | J30: 0 | K30: 0 | L30: 800,000.00 | M30: 400,000.00 | N30: 0 | O30: 0 | P30: 0 | Q30: 0 | R30: 0 | S30: 0 | T30: 0 | U30: 0
A31: FSCRI_RI_4203 | B31: REGIONE AUTONOMA DELLA SARDEGNA | C31: 02.DIGITALIZZAZIONE | D31: 02.02 CONNETTIVITÀ DIGITALE | E31: E71C23000790001 | F31: SICUREZZA APPLICATIVA DEL SISTEMA REGIONE | G31: 10,000,000.00 | H31: 10,000,000.00 | I31: 0 | J31: 0 | K31: 0 | L31: 5,000,000.00 | M31: 5,000,000.00 | N31: 0 | O31: 0 | P31: 0 | Q31: 0 | R31: 0 | S31: 0 | T31: 0 | U31: 0
A32: FSCRI_RI_4205 | B32: CONSORZIO INDUSTRIALE PROVINCIALE DI SASSARI | C32: 05.AMBIENTE E RISORSE NATURALI | D32: 05.04 BONIFICHE | E32: G22J22000050001 | F32: COMPLETAMENTO BONIFICA AREE FALLIMENTO VINYLS ITALIA S.P.A. | G32: 14,000,000.00 | H32: 8,100,000.00 | I32: 5,900,000.00 | J32: 0 | K32: 0 | L32: 0 | M32: 210,000.00 | N32: 404,500.00 | O32: 775,550.00 | P32: 1,118,325.00 | Q32: 1,118,325.00 | R32: 1,118,325.00 | S32: 1,118,325.00 | T32: 1,118,325.00 | U32: 1,118,325.00
A33: FSCRI_RI_4208 | B33: CONSORZIO INDUSTRIALE PROVINCIALE ORISTANESE | C33: 05.AMBIENTE E RISORSE NATURALI | D33: 05.03 RIFIUTI | E33: E54E12000570002 | F33: REALIZZAZIONE IMPIANTO PER LA BIODIGESTIONE ANAEROBICA DELLA FORSU | G33: 14,879,579.64 | H33: 3,921,858.45 | I33: 10,957,721.19 | J33: 0 | K33: 2,921,858.45 | L33: 1,000,000.00 | M33: 0 | N33: 0 | O33: 0 | P33: 0 | Q33: 0 | R33: 0 | S33: 0 | T33: 0 | U33: 0
A34: FSCRI_RI_4209 | B34: CONSORZIO INDUSTRIALE PROVINCIALE DI NUORO | C34: 05.AMBIENTE E RISORSE NATURALI | D34: 05.03 RIFIUTI | E34: D67B23000190002 | F34: COMPLETAMENTO IMPIANTO DI COMPOSTAGGIO | G34: 4,800,883.68 | H34: 4,800,883.68 | I34: 0 | J34: 0 | K34: 0 | L34: 3,300,000.00 | M34: 1,500,883.68 | N34: 0 | O34: 0 | P34: 0 | Q34: 0 | R34: 0 | S34: 0 | T34: 0 | U34: 0
A35: FSCRI_RI_4212 | B35: PROVINCIA DI NUORO - ZONA OMOGENEA DELL'OGLIASTRA | C35: 05.AMBIENTE E RISORSE NATURALI | D35: 05.03 RIFIUTI | E35: J68C24000430006 | F35: RISTRUTTURAZIONE E ADEGUAMENTO FUNZIONALE DELL'IMPIANTO DI COMPOSTAGGIO | G35: 2,585,400.00 | H35: 2,585,400.00 | I35: 0 | J35: 0 | K35: 0 | L35: 100,000.00 | M35: 200,000.00 | N35: 500,000.00 | O35: 1,500,000.00 | P35: 285,400.00 | Q35: 0 | R35: 0 | S35: 0 | T35: 0 | U35: 0
A36: FSCRI_RI_4214 | B36: CONSORZIO ZONA INDUSTRIALE DI INTERESSE REGIONALE DI CHILIVANI | C36: 05.AMBIENTE E RISORSE NATURALI | D36: 05.03 RIFIUTI | E36: D55I14000210002 | F36: REALIZZAZIONE DEL TERZO MODULO DELLA DISCARICA DI COLDIANU | G36: 7,200,000.00 | H36: 2,700,000.00 | I36: 4,500,000.00 | J36: 0 | K36: 0 | L36: 1,500,000.00 | M36: 1,200,000.00 | N36: 0 | O36: 0 | P36: 0 | Q36: 0 | R36: 0 | S36: 0 | T36: 0 | U36: 0
A37: FSCRI_RI_4216 | B37: COMUNE DI SASSARI | C37: 05.AMBIENTE E RISORSE NATURALI | D37: 05.03 RIFIUTI | E37: B82F24000460002 | F37: REALIZZAZIONE STAZIONE DI TRASFERENZA A SCALA ERRE | G37: 3,700,000.00 | H37: 3,700,000.00 | I37: 0 | J37: 0 | K37: 50,000.00 | L37: 700,000.00 | M37: 1,475,000.00 | N37: 1,475,000.00 | O37: 0 | P37: 0 | Q37: 0 | R37: 0 | S37: 0 | T37: 0 | U37: 0
A38: FSCRI_RI_4217 | B38: COMUNE DI PULA | C38: 05.AMBIENTE E RISORSE NATURALI | D38: 05.01 RISCHI E ADATTAMENTO CLIMATICO | E38: B78E24000140006 | F38: INTERVENTI PER LA TUTELA DEL SITO ARCHEOLOGICO DI NORA IN COMUNE DI PULA | G38: 10,000,000.00 | H38: 10,000,000.00 | I38: 0 | J38: 0 | K38: 0 | L38: 0 | M38: 1,650,000.00 | N38: 4,350,000.00 | O38: 4,000,000.00 | P38: 0 | Q38: 0 | R38: 0 | S38: 0 | T38: 0 | U38: 0
A39: FSCRI_RI_4219 | B39: CONSORZIO INDUSTRIALE PROVINCIALE NORD EST SARDEGNA GALLURA - CIPNES | C39: 01.RICERCA E INNOVAZIONE | D39: 01.01 RICERCA E SVILUPPO | E39: D97G24000290006 | F39: CIPNES - COMPLETAMENTO PTE CENTRO MULTIFUNZIONALE A SERVIZIO DELLE IMPRESE - 1° LOTTO STRALCIO A | G39: 14,850,000.00 | H39: 14,850,000.00 | I39: 0 | J39: 0 | K39: 200,000.00 | L39: 2,770,000.00 | M39: 5,940,000.00 | N39: 5,940,000.00 | O39: 0 | P39: 0 | Q39: 0 | R39: 0 | S39: 0 | T39: 0 | U39: 0
A40: FSCRI_RI_4220 | B40: UNIONE DEI COMUNI ALTA GALLURA | C40: 05.AMBIENTE E RISORSE NATURALI | D40: 05.03 RIFIUTI | E40: D55I24000220002 | F40: RIFUNZIONALIZZAZIONE SISTEMA DI COMPOSTAGGIO AEROBICO COMPRESO IL SISTEMA DI TRATTAMENTO ARIA | G40: 4,950,000.00 | H40: 4,950,000.00 | I40: 0 | J40: 0 | K40: 1,100,000.00 | L40: 3,850,000.00 | M40: 0 | N40: 0 | O40: 0 | P40: 0 | Q40: 0 | R40: 0 | S40: 0 | T40: 0 | U40: 0
A41: FSCRI_RI_4222 | B41: COMUNE DI ALGHERO | C41: 05.AMBIENTE E RISORSE NATURALI | D41: 05.01 RISCHI E ADATTAMENTO CLIMATICO | E41: G12B24016950002 | F41: OPERE DI DIFESA COSTIERA RADA DI ALGHERO – RICOSTITUZ. SPIAGGIA E SISTEMAZ. SCOGLIERE PUNTA DEL PARU | G41: 6,000,000.00 | H41: 6,000,000.00 | I41: 0 | J41: 0 | K41: 0 | L41: 200,000.00 | M41: 1,800,000.00 | N41: 3,000,000.00 | O41: 1,000,000.00 | P41: 0 | Q41: 0 | R41: 0 | S41: 0 | T41: 0 | U41: 0
A42: FSCRI_RI_4223 | B42: COMUNE DI CASTELSARDO | C42: 05.AMBIENTE E RISORSE NATURALI | D42: 05.01 RISCHI E ADATTAMENTO CLIMATICO | E42: E32B21000080001 | F42: OPERE CONSOLIDAMENTO E MESSA IN SICUREZZA FALESIA - MITIGAZIONE MAREGGIATA NEL GOLFO DELLA CIGNACCIA | G42: 8,000,000.00 | H42: 8,000,000.00 | I42: 0 | J42: 0 | K42: 0 | L42: 200,000.00 | M42: 2,800,000.00 | N42: 3,000,000.00 | O42: 2,000,000.00 | P42: 0 | Q42: 0 | R42: 0 | S42: 0 | T42: 0 | U42: 0
A43: FSCRI_RI_4225 | B43: CONSORZIO INDUSTRIALE PROVINCIALE ORISTANESE | C43: 05.AMBIENTE E RISORSE NATURALI | D43: 05.02 RISORSE IDRICHE | E43: E21E12000050002 | F43: COMPLETAMENTO ACQUEDOTTO POTABILE - POZZO IS MELONIS, PARTITORE. ADEGUAMENTO CONDOTTA COLLEG. CIPOR | G43: 4,503,067.00 | H43: 4,503,067.00 | I43: 0 | J43: 0 | K43: 0 | L43: 540,368.04 | M43: 3,962,698.96 | N43: 0 | O43: 0 | P43: 0 | Q43: 0 | R43: 0 | S43: 0 | T43: 0 | U43: 0
A44: FSCRI_RI_4226 | B44: DIREZIONE GENERALE DELLA PROTEZIONE CIVILE | C44: 05.AMBIENTE E RISORSE NATURALI | D44: 05.01 RISCHI E ADATTAMENTO CLIMATICO | E44: E72H24001040001 | F44: INSTALLAZIONE N. 10 STAZIONI DI VIDEOMONITORAGGIO COSTIERO | G44: 600,000.00 | H44: 600,000.00 | I44: 0 | J44: 0 | K44: 0 | L44: 200,000.00 | M44: 200,000.00 | N44: 200,000.00 | O44: 0 | P44: 0 | Q44: 0 | R44: 0 | S44: 0 | T44: 0 | U44: 0
A45: FSCRI_RI_4231 | B45: DIREZIONE GENERALE PROTEZIONE CIVILE | C45: 05.AMBIENTE E RISORSE NATURALI | D45: 05.01 RISCHI E ADATTAMENTO CLIMATICO | E45: E79I24001080001 | F45: ESTENSIONE SISTEMA INFORMATIVO DI PROTEZIONE CIVILE | G45: 8,000,000.00 | H45: 8,000,000.00 | I45: 0 | J45: 0 | K45: 0 | L45: 3,000,000.00 | M45: 3,000,000.00 | N45: 2,000,000.00 | O45: 0 | P45: 0 | Q45: 0 | R45: 0 | S45: 0 | T45: 0 | U45: 0
A46: FSCRI_RI_4232 | B46: CONSORZIO INDUSTRIALE PROVINCIALE ORISTANESE | C46: 03.COMPETITIVITÀ IMPRESE | D46: 03.01 INDUSTRIA E SERVIZI | E46: E16J24000110001 | F46: BONIFICA RECUPERO RIQUALIFICAZIONE INSED. PROD. EX IPO: REALIZZ. FABBRICATO PER PMI CORPO NORD CIPOR | G46: 6,320,000.00 | H46: 6,320,000.00 | I46: 0 | J46: 0 | K46: 0 | L46: 758,400.00 | M46: 5,561,600.00 | N46: 0 | O46: 0 | P46: 0 | Q46: 0 | R46: 0 | S46: 0 | T46: 0 | U46: 0
A47: FSCRI_RI_4234 | B47: REGIONE AUTONOMA DELLA SARDEGNA | C47: 02.DIGITALIZZAZIONE | D47: 02.01 TECNOLOGIE E SERVIZI DIGITALI | E47: E71C24000220001 | F47: SIBAR-AI | G47: 2,500,000.00 | H47: 2,500,000.00 | I47: 0 | J47: 0 | K47: 0 | L47: 1,250,000.00 | M47: 1,250,000.00 | N47: 0 | O47: 0 | P47: 0 | Q47: 0 | R47: 0 | S47: 0 | T47: 0 | U47: 0
A48: FSCRI_RI_4237 | B48: REGIONE AUTONOMA DELLA SARDEGNA | C48: 02.DIGITALIZZAZIONE | D48: 02.01 TECNOLOGIE E SERVIZI DIGITALI | E48: E71C23000780001 | F48: GIUSTIZIA DIGITALE 3 - DIGITALIZZAZIONE DEI TRIBUNALI DELLA SARDEGNA | G48: 1,500,000.00 | H48: 1,500,000.00 | I48: 0 | J48: 0 | K48: 200,000.00 | L48: 800,000.00 | M48: 500,000.00 | N48: 0 | O48: 0 | P48: 0 | Q48: 0 | R48: 0 | S48: 0 | T48: 0 | U48: 0
A49: FSCRI_RI_4238 | B49: DIREZIONE GENERALE DELLA PROTEZIONE CIVILE | C49: 05.AMBIENTE E RISORSE NATURALI | D49: 05.01 RISCHI E ADATTAMENTO CLIMATICO | E49: E29I24000860001 | F49: NUOVA SEDE DELLA DIREZIONE GENERALE DELLA PROTEZIONE CIVILE, COMPRENDENTE AULE SCUOLA REGIONALE | G49: 5,000,000.00 | H49: 5,000,000.00 | I49: 0 | J49: 0 | K49: 100,000.00 | L49: 1,400,000.00 | M49: 2,000,000.00 | N49: 1,500,000.00 | O49: 0 | P49: 0 | Q49: 0 | R49: 0 | S49: 0 | T49: 0 | U49: 0
A50: FSCRI_RI_4241 | B50: REGIONE AUTONOMA DELLA SARDEGNA | C50: 02.DIGITALIZZAZIONE | D50: 02.01 TECNOLOGIE E SERVIZI DIGITALI | E50: E71C23000800001 | F50: MANUTENZIONE STRAORDINARIA SISTEMI REGIONALI | G50: 5,500,000.00 | H50: 5,500,000.00 | I50: 0 | J50: 0 | K50: 0 | L50: 3,000,000.00 | M50: 2,500,000.00 | N50: 0 | O50: 0 | P50: 0 | Q50: 0 | R50: 0 | S50: 0 | T50: 0 | U50: 0
A51: FSCRI_RI_4242 | B51: DIREZIONE GENERALE DELLA PROTEZIONE CIVILE | C51: 05.AMBIENTE E RISORSE NATURALI | D51: 05.01 RISCHI E ADATTAMENTO CLIMATICO | E51: E29I24000850001 | F51: POTENZIAMENTO FLOTTA VEICOLI COLONNA MOBILE REGIONALE | G51: 19,533,770.50 | H51: 19,533,770.50 | I51: 0 | J51: 0 | K51: 0 | L51: 10,000,000.00 | M51: 9,533,770.50 | N51: 0 | O51: 0 | P51: 0 | Q51: 0 | R51: 0 | S51: 0 | T51: 0 | U51: 0
A52: FSCRI_RI_4244 | B52: CONSORZIO INDUSTRIALE PROVINCIALE CARBONIA IGLESIAS - SICIP | C52: 07.TRASPORTI E MOBILITÀ | D52: 07.01 TRASPORTO STRADALE | E52: G77H24001430001 | F52: OPERE MANUTENZIONE STRAORDINARIA INFRASTRUTTURE STRADALI AGGLOMERATO INDUSTRIALE PORTOVESME SICIP | G52: 9,129,000.00 | H52: 9,129,000.00 | I52: 0 | J52: 0 | K52: 350,000.00 | L52: 1,350,000.00 | M52: 1,800,000.00 | N52: 2,800,000.00 | O52: 2,000,000.00 | P52: 829,000.00 | Q52: 0 | R52: 0 | S52: 0 | T52: 0 | U52: 0
A53: FSCRI_RI_4245 | B53: REGIONE AUTONOMA DELLA SARDEGNA | C53: 02.DIGITALIZZAZIONE | D53: 02.02 CONNETTIVITÀ DIGITALE | E53: E26G24000170001 | F53: DATA CENTER IN CLOUD | G53: 30,000,000.00 | H53: 30,000,000.00 | I53: 0 | J53: 0 | K53: 0 | L53: 10,000,000.00 | M53: 10,000,000.00 | N53: 10,000,000.00 | O53: 0 | P53: 0 | Q53: 0 | R53: 0 | S53: 0 | T53: 0 | U53: 0
A54: FSCRI_RI_4250 | B54: DIREZIONE GENERALE DELLA PROTEZIONE CIVILE | C54: 05.AMBIENTE E RISORSE NATURALI | D54: 05.01 RISCHI E ADATTAMENTO CLIMATICO | E54: E71J24000630001 | F54: RETE DEI PRESIDI LOCALI (CCA E COC) A GARANZIA DELLA OPERATIVITÀ DEL SISTEMA DI PROTEZIONE CIVILE | G54: 14,850,000.00 | H54: 10,000,000.00 | I54: 4,850,000.00 | J54: 0 | K54: 0 | L54: 4,000,000.00 | M54: 4,000,000.00 | N54: 2,000,000.00 | O54: 0 | P54: 0 | Q54: 0 | R54: 0 | S54: 0 | T54: 0 | U54: 0
A55: FSCRI_RI_4251 | B55: CONSORZIO INDUSTRIALE PROVINCIALE DI CAGLIARI | C55: 05.AMBIENTE E RISORSE NATURALI | D55: 05.03 RIFIUTI | E55: F46D12000120002 | F55: REVAMPING DELLE LINEE A E B DEL TERMOVALORIZZATORE DI MACCHIAREDDU | G55: 65,422,884.07 | H55: 14,516,413.07 | I55: 50,906,471.00 | J55: 0 | K55: 6,000,000.00 | L55: 4,000,000.00 | M55: 4,516,413.07 | N55: 0 | O55: 0 | P55: 0 | Q55: 0 | R55: 0 | S55: 0 | T55: 0 | U55: 0
A56: FSCRI_RI_4252 | B56: CONSORZIO INDUSTRIALE PROVINCIALE DI SASSARI CIPSS | C56: 08.RIQUALIFICAZIONE URBANA | D56: 08.01 EDILIZIA E SPAZI PUBBLICI | E56: G23B21000190001 | F56: DECOMMISSIONING DELL’AREA EX CEMENTIR SUL WATER FRONT DEL PORTO INDUSTRIALE DI PORTO TORRES CIPSS | G56: 3,887,342.93 | H56: 3,887,342.93 | I56: 0 | J56: 0 | K56: 9,800.00 | L56: 1,887,542.93 | M56: 1,900,000.00 | N56: 90,000.00 | O56: 0 | P56: 0 | Q56: 0 | R56: 0 | S56: 0 | T56: 0 | U56: 0
A57: FSCRI_RI_4254 | B57: CONSORZIO INDUSTRIALE PROVINCIALE DELL’OGLIASTRA CIPOGL | C57: 03.COMPETITIVITÀ IMPRESE | D57: 03.01 INDUSTRIA E SERVIZI | E57: H53G24000060001 | F57: INFRASTRUTTURAZIONE E COMPLETAMENTO AREE EX CARTIERA-LINEE VARO-TRAVEL LIFT BACINO GALLEGGIAN CIPOGL | G57: 10,000,000.00 | H57: 10,000,000.00 | I57: 0 | J57: 0 | K57: 10,000.00 | L57: 130,000.00 | M57: 1,000,000.00 | N57: 4,000,000.00 | O57: 4,860,000.00 | P57: 0 | Q57: 0 | R57: 0 | S57: 0 | T57: 0 | U57: 0
A58: FSCRI_RI_4255 | B58: DIREZIONE GENERALE DELLA PROTEZIONE CIVILE | C58: 05.AMBIENTE E RISORSE NATURALI | D58: 05.01 RISCHI E ADATTAMENTO CLIMATICO | E58: E79I24001070001 | F58: RETE REGIONALE DI PRESIDI INTEGRATI DI PROTEZIONE CIVILE E SANITARI DEL LITORALI - SISB | G58: 10,070,000.00 | H58: 10,000,000.00 | I58: 70,000.00 | J58: 0 | K58: 0 | L58: 5,000,000.00 | M58: 5,000,000.00 | N58: 0 | O58: 0 | P58: 0 | Q58: 0 | R58: 0 | S58: 0 | T58: 0 | U58: 0
A59: FSCRI_RI_4256 | B59: CONSORZIO INDUSTRIALE PROVINCIALE DI SASSARI CIPSS | C59: 08.RIQUALIFICAZIONE URBANA | D59: 08.01 EDILIZIA E SPAZI PUBBLICI | E59: G23B24000000001 | F59: DECOMMISSIONING DI 46 HA SUL WATER FRONT DEL PORTO INDUSTRIALE DI PORTO TORRES CIPSS | G59: 20,000,000.00 | H59: 20,000,000.00 | I59: 0 | J59: 0 | K59: 0 | L59: 130,000.00 | M59: 220,000.00 | N59: 6,516,666.00 | O59: 6,516,667.00 | P59: 6,516,667.00 | Q59: 100,000.00 | R59: 0 | S59: 0 | T59: 0 | U59: 0
A60: FSCRI_RI_4258 | B60: CONSORZIO INDUSTRIALE PROVINCIALE DI NUORO CIPNU | C60: 08.RIQUALIFICAZIONE URBANA | D60: 08.01 EDILIZIA E SPAZI PUBBLICI | E60: D74H24000360001 | F60: INTERVENTO DI URBANIZZAZIONE PRIMARIA AGGLOMERATO INDUSTRIALE DEL SOLOGO CIPNU | G60: 8,000,000.00 | H60: 8,000,000.00 | I60: 0 | J60: 0 | K60: 0 | L60: 1,000,000.00 | M60: 3,000,000.00 | N60: 4,000,000.00 | O60: 0 | P60: 0 | Q60: 0 | R60: 0 | S60: 0 | T60: 0 | U60: 0
A61: FSCRI_RI_4259 | B61: CONSORZIO INDUSTRIALE PROVINCIALE DI NUORO CIPNU | C61: 07.TRASPORTI E MOBILITÀ | D61: 07.01 TRASPORTO STRADALE | E61: D87H24004470001 | F61: ADEGUAMENTO FUNZIONALE VIABILITÀ PRINCIPALE AGGLOMERATO INDUSTRIALE OTTANA BOLOTANA NORAGUGUME CIPNU | G61: 6,000,000.00 | H61: 6,000,000.00 | I61: 0 | J61: 0 | K61: 0 | L61: 500,000.00 | M61: 1,500,000.00 | N61: 4,000,000.00 | O61: 0 | P61: 0 | Q61: 0 | R61: 0 | S61: 0 | T61: 0 | U61: 0
A62: FSCRI_RI_4260 | B62: CONSORZIO INDUSTRIALE PROVINCIALE MEDIO CAMPIDANO - VILLACIDRO CIPMC | C62: 05.AMBIENTE E RISORSE NATURALI | D62: 05.04 BONIFICHE | E62: D11E24000370001 | F62: LAVORI DI BONIFICA IMMOBILI E AREE CONSORTILI | G62: 5,000,000.00 | H62: 5,000,000.00 | I62: 0 | J62: 0 | K62: 0 | L62: 200,000.00 | M62: 1,750,000.00 | N62: 1,750,000.00 | O62: 1,300,000.00 | P62: 0 | Q62: 0 | R62: 0 | S62: 0 | T62: 0 | U62: 0
A63: FSCRI_RI_4261 | B63: CONSORZIO DI BONIFICA DELLA SARDEGNA MERIDIONALE | C63: 05.AMBIENTE E RISORSE NATURALI | D63: 05.01 RISCHI E ADATTAMENTO CLIMATICO | E63: C82E19000090002 | F63: RAZIONALIZZAZIONE ED EFFICIENTAMENTO IRRIGUO DEL PARTEOLLA – LOTTO 1B | G63: 4,800,000.00 | H63: 4,800,000.00 | I63: 0 | J63: 0 | K63: 1,300,000.00 | L63: 3,500,000.00 | M63: 0 | N63: 0 | O63: 0 | P63: 0 | Q63: 0 | R63: 0 | S63: 0 | T63: 0 | U63: 0
A64: FSCRI_RI_4262 | B64: AREUS | C64: 10.SOCIALE E SALUTE | D64: 10.02 STRUTTURE E ATTREZZATURE SANITARIE | E64: I64H24000520001 | F64: RIQUALIFICAZIONE POSTAZIONI 118 SEDI CON MEZZI DI SOCCORSO AVANZATO | G64: 1,500,000.00 | H64: 1,500,000.00 | I64: 0 | J64: 0 | K64: 50,000.00 | L64: 250,000.00 | M64: 200,000.00 | N64: 200,000.00 | O64: 200,000.00 | P64: 200,000.00 | Q64: 200,000.00 | R64: 200,000.00 | S64: 0 | T64: 0 | U64: 0
A65: FSCRI_RI_4263 | B65: CONSORZIO DI BONIFICA DELLA GALLURA | C65: 05.AMBIENTE E RISORSE NATURALI | D65: 05.01 RISCHI E ADATTAMENTO CLIMATICO | E65: G48B24000380005 | F65: MANUTENZIONE STRAORDINARIA CONDOTTE IN FIBROCEMENTO SETTORE B DISTRETTO IRRIGUO DI ARZACHENA-LOTTO I | G65: 6,000,000.00 | H65: 6,000,000.00 | I65: 0 | J65: 0 | K65: 250,000.00 | L65: 2,400,000.00 | M65: 2,350,000.00 | N65: 1,000,000.00 | O65: 0 | P65: 0 | Q65: 0 | R65: 0 | S65: 0 | T65: 0 | U65: 0
A66: FSCRI_RI_4264 | B66: COMUNE DI LA MADDALENA | C66: 07.TRASPORTI E MOBILITÀ | D66: 07.03 TRASPORTO MARITTIMO E LOGISTICA | E66: C61I24000480002 | F66: ELETTRIFICAZIONE BANCHINE PORTUALI DI LA MADDALENA | G66: 500,000.00 | H66: 500,000.00 | I66: 0 | J66: 0 | K66: 0 | L66: 30,000.00 | M66: 100,000.00 | N66: 100,000.00 | O66: 150,000.00 | P66: 120,000.00 | Q66: 0 | R66: 0 | S66: 0 | T66: 0 | U66: 0
A67: FSCRI_RI_4265 | B67: CONSORZIO BONIFICA SARDEGNA MERIDIONALE | C67: 05.AMBIENTE E RISORSE NATURALI | D67: 05.02 RISORSE IDRICHE | E67: C17J21000040002 | F67: RIPRISTINO FUNZIONALITÀ SISTEMA AUTOMATIZZATO DI MISURA VOLUMI IDRICI USO IRRIGUO ZONA 1 E ZONA 2 | G67: 9,180,000.00 | H67: 9,180,000.00 | I67: 0 | J67: 0 | K67: 100,000.00 | L67: 2,000,000.00 | M67: 4,000,000.00 | N67: 3,080,000.00 | O67: 0 | P67: 0 | Q67: 0 | R67: 0 | S67: 0 | T67: 0 | U67: 0
A68: FSCRI_RI_4266 | B68: CONSORZIO INDUSTRIALE PROVINCIALE MEDIO CAMPIDANO - VILLACIDRO CIPMC | C68: 05.AMBIENTE E RISORSE NATURALI | D68: 05.02 RISORSE IDRICHE | E68: D18B24000260001 | F68: MANUTENZIONE STRAORDINARIA SISTEMA POTABILIZ E RETE DISTRIBUZ IDRICA POTABILE E IND CONSORTILE CIPMC | G68: 5,000,000.00 | H68: 5,000,000.00 | I68: 0 | J68: 0 | K68: 0 | L68: 200,000.00 | M68: 2,000,000.00 | N68: 1,000,000.00 | O68: 1,500,000.00 | P68: 300,000.00 | Q68: 0 | R68: 0 | S68: 0 | T68: 0 | U68: 0
A69: FSCRI_RI_4267 | B69: CONSORZIO DI BONIFICA DEL NORD SARDEGNA | C69: 05.AMBIENTE E RISORSE NATURALI | D69: 05.01 RISCHI E ADATTAMENTO CLIMATICO | E69: B98B20000420006 | F69: IMPERMEABILIZZAZIONE E MESSA IN SICUREZZA DEL CANALE DEL DISTRETTO DI PERFUGAS E MANUTENZIONE OPERE | G69: 4,500,000.00 | H69: 4,500,000.00 | I69: 0 | J69: 0 | K69: 0 | L69: 900,000.00 | M69: 2,600,000.00 | N69: 1,000,000.00 | O69: 0 | P69: 0 | Q69: 0 | R69: 0 | S69: 0 | T69: 0 | U69: 0
A70: FSCRI_RI_4268 | B70: CONSORZIO DI BONIFICA DEL NORD SARDEGNA | C70: 05.AMBIENTE E RISORSE NATURALI | D70: 05.01 RISCHI E ADATTAMENTO CLIMATICO | E70: B56I22000230002 | F70: RAZIONALIZZAZIONE DEI SISTEMI DI DISTRIBUZIONE IRRIGUA - SETTORE MUDDIZZA - BASSA VALLE DEL COGHINAS | G70: 1,762,500.00 | H70: 1,762,500.00 | I70: 0 | J70: 0 | K70: 0 | L70: 676,250.00 | M70: 1,086,250.00 | N70: 0 | O70: 0 | P70: 0 | Q70: 0 | R70: 0 | S70: 0 | T70: 0 | U70: 0
A71: FSCRI_RI_4269 | B71: CONSORZIO DI BONIFICA DELLA NURRA | C71: 05.AMBIENTE E RISORSE NATURALI | D71: 05.01 RISCHI E ADATTAMENTO CLIMATICO | E71: D88B22000970001 | F71: INTERVENTO DI RIFACIMENTO DELLA CONDOTTA ADDUTTRICE PRINCIPALE 2 NORD | G71: 8,676,057.80 | H71: 8,676,057.80 | I71: 0 | J71: 0 | K71: 300,000.00 | L71: 5,567,605.78 | M71: 2,808,452.02 | N71: 0 | O71: 0 | P71: 0 | Q71: 0 | R71: 0 | S71: 0 | T71: 0 | U71: 0
A72: FSCRI_RI_4270 | B72: AOU CAGLIARI | C72: 10.SOCIALE E SALUTE | D72: 10.02 STRUTTURE E ATTREZZATURE SANITARIE | E72: G38I24001590001 | F72: BLOCCO R PRESSO IL POLICLINICO UNIVERSITARIO - INTERVENTI DI COMPLETAMENTO | G72: 30,000,000.00 | H72: 30,000,000.00 | I72: 0 | J72: 0 | K72: 0 | L72: 0 | M72: 500,000.00 | N72: 6,000,000.00 | O72: 7,000,000.00 | P72: 7,500,000.00 | Q72: 5,500,000.00 | R72: 3,500,000.00 | S72: 0 | T72: 0 | U72: 0
A73: FSCRI_RI_4271 | B73: CONSORZIO DI BONIFICA DELLA SARDEGNA MERIDIONALE | C73: 05.AMBIENTE E RISORSE NATURALI | D73: 05.01 RISCHI E ADATTAMENTO CLIMATICO | E73: C68B22000220002 | F73: RISANAMENTO DELLA CONDOTTA DISTRETTUALE DISTRETTO IRRIGUO SAN SPERATE | G73: 7,700,000.00 | H73: 7,700,000.00 | I73: 0 | J73: 0 | K73: 350,000.00 | L73: 2,000,000.00 | M73: 2,000,000.00 | N73: 2,000,000.00 | O73: 1,350,000.00 | P73: 0 | Q73: 0 | R73: 0 | S73: 0 | T73: 0 | U73: 0
A74: FSCRI_RI_4272 | B74: CONSORZIO DI BONIFICA DELLA NURRA | C74: 05.AMBIENTE E RISORSE NATURALI | D74: 05.01 RISCHI E ADATTAMENTO CLIMATICO | E74: D88B24000440002 | F74: INTERVENTO DI RIFACIMENTO DELLA CONDOTTA ADDUTTRICE PRINCIPALE 2 SUD - LOTTO 1 | G74: 14,000,000.00 | H74: 14,000,000.00 | I74: 0 | J74: 0 | K74: 300,000.00 | L74: 5,450,000.00 | M74: 4,750,000.00 | N74: 3,500,000.00 | O74: 0 | P74: 0 | Q74: 0 | R74: 0 | S74: 0 | T74: 0 | U74: 0
A75: FSCRI_RI_4273 | B75: COMUNE DI CARLOFORTE | C75: 07.TRASPORTI E MOBILITÀ | D75: 07.03 TRASPORTO MARITTIMO E LOGISTICA | E75: H57F24000020009 | F75: ELETTRIFICAZIONE BANCHINE PORTUALI DI CARLOFORTE | G75: 500,000.00 | H75: 500,000.00 | I75: 0 | J75: 0 | K75: 0 | L75: 62,000.00 | M75: 407,000.00 | N75: 31,000.00 | O75: 0 | P75: 0 | Q75: 0 | R75: 0 | S75: 0 | T75: 0 | U75: 0
A76: FSCRI_RI_4274 | B76: AOU CAGLIARI | C76: 10.SOCIALE E SALUTE | D76: 10.02 STRUTTURE E ATTREZZATURE SANITARIE | E76: G52C24000090001 | F76: ACCORPAMENTO DEI SERVIZI SANITARI E AMMINISTRATIVI ATTUALMENTE DISLOCATI NEL TERRITORIO DI CAGLIARI | G76: 31,300,000.00 | H76: 31,300,000.00 | I76: 0 | J76: 0 | K76: 400,000.00 | L76: 800,000.00 | M76: 2,000,000.00 | N76: 4,000,000.00 | O76: 4,500,000.00 | P76: 5,300,000.00 | Q76: 5,300,000.00 | R76: 4,200,000.00 | S76: 2,400,000.00 | T76: 1,800,000.00 | U76: 600,000.00
A77: FSCRI_RI_4275 | B77: CONSORZIO BONIFICA SARDEGNA MERIDIONALE | C77: 05.AMBIENTE E RISORSE NATURALI | D77: 05.02 RISORSE IDRICHE | E77: C78B22000270002 | F77: RIF.COND.PRINC. 1°COMPR.IRRI. II LOTTO - SOSTIT. COND. COMIZI 9-11, MANUT.STRAOR. VASCA COMP. BAREGA | G77: 4,500,000.00 | H77: 4,500,000.00 | I77: 0 | J77: 0 | K77: 50,000.00 | L77: 1,950,000.00 | M77: 2,500,000.00 | N77: 0 | O77: 0 | P77: 0 | Q77: 0 | R77: 0 | S77: 0 | T77: 0 | U77: 0
A78: FSCRI_RI_4276 | B78: CONSORZIO INDUSTRIALE PROVINCIALE MEDIO CAMPIDANO - VILLACIDRO CIPMC | C78: 08.RIQUALIFICAZIONE URBANA | D78: 08.01 EDILIZIA E SPAZI PUBBLICI | E78: D13F24000020001 | F78: LAVORI DI MANUTENZIONE STRAORDINARIA E RIQUALIFICAZIONE DEGLI EDIFICI CONSORTILI CIPMC | G78: 4,500,000.00 | H78: 4,500,000.00 | I78: 0 | J78: 0 | K78: 0 | L78: 200,000.00 | M78: 1,375,000.00 | N78: 1,375,000.00 | O78: 375,000.00 | P78: 1,175,000.00 | Q78: 0 | R78: 0 | S78: 0 | T78: 0 | U78: 0
A79: FSCRI_RI_4277 | B79: CONSORZIO DI BONIFICA DELLA NURRA | C79: 05.AMBIENTE E RISORSE NATURALI | D79: 05.01 RISCHI E ADATTAMENTO CLIMATICO | E79: D18B20004300001 | F79: MANUTENZIONE STRAORDINARIA E ADEGUAMENTO SISTEMA MISURAZ RISORSA IRRIGUA ALLA DISTRIBUZIONE LOTTO 2 | G79: 4,123,089.00 | H79: 4,123,089.00 | I79: 0 | J79: 0 | K79: 70,000.00 | L79: 3,653,089.00 | M79: 400,000.00 | N79: 0 | O79: 0 | P79: 0 | Q79: 0 | R79: 0 | S79: 0 | T79: 0 | U79: 0
A80: FSCRI_RI_4278 | B80: ARST S.P.A. | C80: 07.TRASPORTI E MOBILITÀ | D80: 07.05 MOBILITÀ URBANA | E80: F61B24000390001 | F80: TRASPORTO RAPIDO DI MASSA - INFRASTRUTTURAZIONE LINEA EXPRESS TPL AUTOMOBILISTICO ABBASANTA - NUORO | G80: 10,000,000.00 | H80: 10,000,000.00 | I80: 0 | J80: 0 | K80: 0 | L80: 250,000.00 | M80: 500,000.00 | N80: 4,000,000.00 | O80: 3,000,000.00 | P80: 2,250,000.00 | Q80: 0 | R80: 0 | S80: 0 | T80: 0 | U80: 0
A81: FSCRI_RI_4279 | B81: CONSORZIO DI BONIFICA D'OGLIASTRA | C81: 05.AMBIENTE E RISORSE NATURALI | D81: 05.02 RISORSE IDRICHE | E81: C68B24000250006 | F81: SOSTITUZIONE RETI IRRIGUE IN CEMENTO AMIANTO | G81: 4,500,000.00 | H81: 4,500,000.00 | I81: 0 | J81: 0 | K81: 50,000.00 | L81: 750,000.00 | M81: 1,000,000.00 | N81: 1,200,000.00 | O81: 1,200,000.00 | P81: 300,000.00 | Q81: 0 | R81: 0 | S81: 0 | T81: 0 | U81: 0
A82: FSCRI_RI_4280 | B82: CONSORZIO INDUSTRIALE PROVINCIALE DI NUORO CIPNU | C82: 05.AMBIENTE E RISORSE NATURALI | D82: 05.01 RISCHI E ADATTAMENTO CLIMATICO | E82: D71D24000120001 | F82: REALIZZAZIONE ELISUPERFICIE AGGLOMERATO IND.LE OTTANA BOLOTANA E NORAGUGUME COMUNE OTTANA CIPNU | G82: 4,500,000.00 | H82: 4,500,000.00 | I82: 0 | J82: 0 | K82: 0 | L82: 500,000.00 | M82: 1,000,000.00 | N82: 3,000,000.00 | O82: 0 | P82: 0 | Q82: 0 | R82: 0 | S82: 0 | T82: 0 | U82: 0
A83: FSCRI_RI_4281 | B83: ASL 5 ORISTANO | C83: 10.SOCIALE E SALUTE | D83: 10.02 STRUTTURE E ATTREZZATURE SANITARIE | E83: J15F24000550001 | F83: CASA DELLA SALUTE DI TERRALBA | G83: 6,250,000.00 | H83: 6,250,000.00 | I83: 0 | J83: 0 | K83: 0 | L83: 0 | M83: 1,000,000.00 | N83: 550,000.00 | O83: 550,000.00 | P83: 550,000.00 | Q83: 550,000.00 | R83: 550,000.00 | S83: 550,000.00 | T83: 1,550,000.00 | U83: 400,000.00
A84: FSCRI_RI_4282 | B84: CONSORZIO DI BONIFICA DELLA SARDEGNA MERIDIONALE | C84: 05.AMBIENTE E RISORSE NATURALI | D84: 05.01 RISCHI E ADATTAMENTO CLIMATICO | E84: C48B21000070002 | F84: RISTRUTTURAZIONE DISTRETTO IRRIGUO DI SARDARA A-B-C | G84: 4,000,000.00 | H84: 4,000,000.00 | I84: 0 | J84: 0 | K84: 60,000.00 | L84: 1,000,000.00 | M84: 1,600,000.00 | N84: 1,340,000.00 | O84: 0 | P84: 0 | Q84: 0 | R84: 0 | S84: 0 | T84: 0 | U84: 0
A85: FSCRI_RI_4283 | B85: ASL 3 NUORO | C85: 10.SOCIALE E SALUTE | D85: 10.02 STRUTTURE E ATTREZZATURE SANITARIE | E85: B65F24000550001 | F85: AREA DAY HOSPITAL | G85: 7,000,000.00 | H85: 7,000,000.00 | I85: 0 | J85: 0 | K85: 0 | L85: 700,000.00 | M85: 1,400,000.00 | N85: 1,400,000.00 | O85: 1,400,000.00 | P85: 1,400,000.00 | Q85: 700,000.00 | R85: 0 | S85: 0 | T85: 0 | U85: 0
A86: FSCRI_RI_4286 | B86: ARST SPA | C86: 07.TRASPORTI E MOBILITÀ | D86: 07.02 TRASPORTO FERROVIARIO | E86: F73I24000080001 | F86: RIQUALIFICAZIONE E POTENZIAMENTO ACCESSIBILITÀ STAZIONI RETE TPL A SCARTAMENTO RIDOTTO E DEPOSITI | G86: 18,000,000.00 | H86: 18,000,000.00 | I86: 0 | J86: 0 | K86: 0 | L86: 350,000.00 | M86: 2,800,000.00 | N86: 3,000,000.00 | O86: 3,000,000.00 | P86: 3,000,000.00 | Q86: 3,000,000.00 | R86: 2,850,000.00 | S86: 0 | T86: 0 | U86: 0
A87: FSCRI_RI_4287 | B87: ARNAS "G. BROTZU" | C87: 10.SOCIALE E SALUTE | D87: 10.02 STRUTTURE E ATTREZZATURE SANITARIE | E87: C25F24000260003 | F87: P.O SAN MICHELE PIASTRA TECNOLOGICA PER L'EMERGENZA - URGENZA | G87: 123,000,000.00 | H87: 58,000,000.00 | I87: 65,000,000.00 | J87: 0 | K87: 0 | L87: 0 | M87: 7,000,000.00 | N87: 7,000,000.00 | O87: 9,000,000.00 | P87: 26,000,000.00 | Q87: 9,000,000.00 | R87: 0 | S87: 0 | T87: 0 | U87: 0
A88: FSCRI_RI_4288 | B88: CONSORZIO DI BONIFICA DEL NORD SARDEGNA | C88: 05.AMBIENTE E RISORSE NATURALI | D88: 05.01 RISCHI E ADATTAMENTO CLIMATICO | E88: B52E23055530006 | F88: SISTEMA DI DERIVAZIONE ACQUE DEL RIO MANNU DI OZIERI AL SERVIZIO DISTRETTO IRRIGUO PIANA CHILIVANI | G88: 13,450,000.00 | H88: 13,450,000.00 | I88: 0 | J88: 0 | K88: 0 | L88: 500,000.00 | M88: 500,000.00 | N88: 2,450,000.00 | O88: 5,000,000.00 | P88: 5,000,000.00 | Q88: 0 | R88: 0 | S88: 0 | T88: 0 | U88: 0
A89: FSCRI_RI_4289 | B89: CONSORZIO DI BONIFICA DELL'ORISTANESE | C89: 05.AMBIENTE E RISORSE NATURALI | D89: 05.01 RISCHI E ADATTAMENTO CLIMATICO | E89: G41D21000300001 | F89: AMMODERNAMENTO, ADEGUAMENTO NORMATIVO E POTENZIAMENTO DELLA CENTRALE DEL SINIS - CAT P0121 | G89: 8,294,209.91 | H89: 8,294,209.91 | I89: 0 | J89: 0 | K89: 0 | L89: 350,000.00 | M89: 3,972,104.95 | N89: 3,972,104.96 | O89: 0 | P89: 0 | Q89: 0 | R89: 0 | S89: 0 | T89: 0 | U89: 0
A90: FSCRI_RI_4293 | B90: CONSORZIO DI BONIFICA DELLA SARDEGNA CENTRALE | C90: 05.AMBIENTE E RISORSE NATURALI | D90: 05.01 RISCHI E ADATTAMENTO CLIMATICO | E90: I98B24000260001 | F90: SUB-COMPRENSORIO CEDRINO - MANUTENZIONE STRAORDINARIA DI CONDOTTE COMUNE DI OROSEI CON RELINING | G90: 1,750,000.00 | H90: 1,750,000.00 | I90: 0 | J90: 0 | K90: 0 | L90: 350,000.00 | M90: 700,000.00 | N90: 700,000.00 | O90: 0 | P90: 0 | Q90: 0 | R90: 0 | S90: 0 | T90: 0 | U90: 0
A91: FSCRI_RI_4294 | B91: CIPOGL CONSORZIO INDUSTRIALE PROVINCIALE DELL’OGLIASTRA | C91: 03.COMPETITIVITÀ IMPRESE | D91: 03.01 INDUSTRIA E SERVIZI | E91: H54G24000040001 | F91: CIPOGL RISTRUTTURAZIONE VOLUME CARTIERA DI ARBATAX - CENTRO DI RICERCA NAUTICA E AEROSPAZIO | G91: 6,300,000.00 | H91: 6,300,000.00 | I91: 0 | J91: 0 | K91: 10,000.00 | L91: 100,000.00 | M91: 1,000,000.00 | N91: 5,190,000.00 | O91: 0 | P91: 0 | Q91: 0 | R91: 0 | S91: 0 | T91: 0 | U91: 0
A92: FSCRI_RI_4296 | B92: CONSORZIO DI BONIFICA DELL'ORISTANESE | C92: 05.AMBIENTE E RISORSE NATURALI | D92: 05.01 RISCHI E ADATTAMENTO CLIMATICO | E92: G61D21000380001 | F92: AMMODERNAMENTO IMPIANTI E REALIZZAZIONE OPERE COMPLEMENTARI CENTRALI DI SOLLEVAMENTO SASSU 1,2,3,4,5 | G92: 11,844,840.00 | H92: 11,844,840.00 | I92: 0 | J92: 0 | K92: 0 | L92: 350,000.00 | M92: 6,000,000.00 | N92: 5,494,840.00 | O92: 0 | P92: 0 | Q92: 0 | R92: 0 | S92: 0 | T92: 0 | U92: 0
A93: FSCRI_RI_4297 | B93: ARNAS "G. BROTZU" | C93: 10.SOCIALE E SALUTE | D93: 10.02 STRUTTURE E ATTREZZATURE SANITARIE | E93: C24E24000340001 | F93: P.O. ONCOLOGICO BUSINCO | G93: 3,000,000.00 | H93: 3,000,000.00 | I93: 0 | J93: 0 | K93: 0 | L93: 3,000,000.00 | M93: 0 | N93: 0 | O93: 0 | P93: 0 | Q93: 0 | R93: 0 | S93: 0 | T93: 0 | U93: 0
A94: FSCRI_RI_4298 | B94: CONSORZIO BONIFICA DELLA SARDEGNA CENTRALE | C94: 05.AMBIENTE E RISORSE NATURALI | D94: 05.01 RISCHI E ADATTAMENTO CLIMATICO | E94: I58B23000440001 | F94: DISTRETTO IRR. POSADA. MANUTENZIONE STRAORDINARIA VASCHE DI COMPENSO CONSORTILI A OVERÌ E SAS MURTAS | G94: 1,650,000.00 | H94: 1,650,000.00 | I94: 0 | J94: 0 | K94: 165,000.00 | L94: 330,000.00 | M94: 660,000.00 | N94: 495,000.00 | O94: 0 | P94: 0 | Q94: 0 | R94: 0 | S94: 0 | T94: 0 | U94: 0
A95: FSCRI_RI_4300 | B95: ARST S.P.A. | C95: 07.TRASPORTI E MOBILITÀ | D95: 07.05 MOBILITÀ URBANA | E95: F61B24000400001 | F95: TRASPORTO RAPIDO DI MASSA - INFRASTRUTTURAZIONE LINEA EXPRESS TPL AUTOMOBILISTICO NUORO - OLBIA | G95: 20,000,000.00 | H95: 20,000,000.00 | I95: 0 | J95: 0 | K95: 0 | L95: 500,000.00 | M95: 1,000,000.00 | N95: 5,000,000.00 | O95: 4,000,000.00 | P95: 4,000,000.00 | Q95: 3,000,000.00 | R95: 2,500,000.00 | S95: 0 | T95: 0 | U95: 0
A96: FSCRI_RI_4301 | B96: CONSORZIO INDUSTRIALE PROVINCIALE DELL’OGLIASTRA CIPOGL | C96: 05.AMBIENTE E RISORSE NATURALI | D96: 05.02 RISORSE IDRICHE | E96: H52E24000200001 | F96: RIUTILIZZO ACQUE REFLUE AFFINATE | G96: 5,000,000.00 | H96: 5,000,000.00 | I96: 0 | J96: 0 | K96: 10,000.00 | L96: 100,000.00 | M96: 1,000,000.00 | N96: 3,890,000.00 | O96: 0 | P96: 0 | Q96: 0 | R96: 0 | S96: 0 | T96: 0 | U96: 0
A97: FSCRI_RI_4303 | B97: CONSORZIO DI BONIFICA DELLA SARDEGNA CENTRALE | C97: 05.AMBIENTE E RISORSE NATURALI | D97: 05.01 RISCHI E ADATTAMENTO CLIMATICO | E97: I88B24000160001 | F97: MANUTENZIONE STRAORD DIGA SARUXI-SEDILO(OR) E RIPRISTINO CANALE ADD TRA LAGO BENZONE E DIGA SARUXI | G97: 750,000.00 | H97: 750,000.00 | I97: 0 | J97: 0 | K97: 0 | L97: 0 | M97: 750,000.00 | N97: 0 | O97: 0 | P97: 0 | Q97: 0 | R97: 0 | S97: 0 | T97: 0 | U97: 0
A98: FSCRI_RI_4304 | B98: ASL 8 CAGLIARI | C98: 10.SOCIALE E SALUTE | D98: 10.02 STRUTTURE E ATTREZZATURE SANITARIE | E98: D78I24000190001 | F98: CASA DELLA SALUTE SENORBÌ | G98: 2,500,000.00 | H98: 2,500,000.00 | I98: 0 | J98: 0 | K98: 0 | L98: 700,000.00 | M98: 900,000.00 | N98: 900,000.00 | O98: 0 | P98: 0 | Q98: 0 | R98: 0 | S98: 0 | T98: 0 | U98: 0
A99: FSCRI_RI_4305 | B99: ASL 8 CAGLIARI | C99: 10.SOCIALE E SALUTE | D99: 10.02 STRUTTURE E ATTREZZATURE SANITARIE | E99: D28I24000230001 | F99: ADEGUAMENTO ANTINCENDIO POLIAMBULATORI (SUP.>1000MQ) (SS_SAN_046) | G99: 2,800,000.00 | H99: 2,800,000.00 | I99: 0 | J99: 0 | K99: 150,000.00 | L99: 750,000.00 | M99: 950,000.00 | N99: 950,000.00 | O99: 0 | P99: 0 | Q99: 0 | R99: 0 | S99: 0 | T99: 0 | U99: 0
A100: FSCRI_RI_4308 | B100: ARST SPA | C100: 07.TRASPORTI E MOBILITÀ | D100: 07.05 MOBILITÀ URBANA | E100: F90I22000000001 | F100: METROPOLITANA AREA VASTA DI CAGLIARI - LINEA CAGLIARI MONSERRATO SESTU: FORNITURA 4 TRAM | G100: 20,880,000.00 | H100: 20,880,000.00 | I100: 0 | J100: 0 | K100: 0 | L100: 4,176,000.00 | M100: 6,264,000.00 | N100: 6,264,000.00 | O100: 4,176,000.00 | P100: 0 | Q100: 0 | R100: 0 | S100: 0 | T100: 0 | U100: 0
A101: FSCRI_RI_4310 | B101: CONSORZIO BONIFICA DELLA SARDEGNA CENTRALE | C101: 05.AMBIENTE E RISORSE NATURALI | D101: 05.01 RISCHI E ADATTAMENTO CLIMATICO | E101: I48B24000380001 | F101: AMMODERNAM. MIGLIORAMENTO E MESSA IN SICUREZZA SOLLEVAMENTI LOLLOTTI E FRUNCU E OCHE II STR. FUNZ. | G101: 2,080,000.00 | H101: 2,080,000.00 | I101: 0 | J101: 0 | K101: 0 | L101: 416,000.00 | M101: 416,000.00 | N101: 1,248,000.00 | O101: 0 | P101: 0 | Q101: 0 | R101: 0 | S101: 0 | T101: 0 | U101: 0
A102: FSCRI_RI_4311 | B102: CONSORZIO DI BONIFICA DEL NORD SARDEGNA | C102: 05.AMBIENTE E RISORSE NATURALI | D102: 05.01 RISCHI E ADATTAMENTO CLIMATICO | E102: B56I23000060006 | F102: VARIANTE ANELLO RETE IRRIGUA COMPRENSORIO DI CHILIVANI A SAN NICOLA | G102: 3,100,000.00 | H102: 3,100,000.00 | I102: 0 | J102: 0 | K102: 0 | L102: 310,000.00 | M102: 1,860,000.00 | N102: 930,000.00 | O102: 0 | P102: 0 | Q102: 0 | R102: 0 | S102: 0 | T102: 0 | U102: 0
A103: FSCRI_RI_4312 | B103: ASL 2 GALLURA | C103: 10.SOCIALE E SALUTE | D103: 10.02 STRUTTURE E ATTREZZATURE SANITARIE | E103: I95F24000560006 | F103: LAVORI REALIZZAZIONE DI UN EDIFICIO DA DESTINARE A FORESTERIA DELL'OSPEDALE "G. PAOLO II" DI OLBIA | G103: 5,000,000.00 | H103: 5,000,000.00 | I103: 0 | J103: 0 | K103: 0 | L103: 250,000.00 | M103: 2,500,000.00 | N103: 2,250,000.00 | O103: 0 | P103: 0 | Q103: 0 | R103: 0 | S103: 0 | T103: 0 | U103: 0
A104: FSCRI_RI_4313 | B104: CONSORZIO INDUSTRIALE PROVINCIALE ORISTANESE | C104: 05.AMBIENTE E RISORSE NATURALI | D104: 05.02 RISORSE IDRICHE | E104: E12E22000380005 | F104: REALIZZAZIONE BACINO DI LAMINAZIONE DELLE PORTATE DI PIOGGIA IN INGRESSO ALL'IMPIANTO DI DEPURAZIONE | G104: 7,320,000.00 | H104: 7,320,000.00 | I104: 0 | J104: 0 | K104: 0 | L104: 878,400.00 | M104: 6,441,600.00 | N104: 0 | O104: 0 | P104: 0 | Q104: 0 | R104: 0 | S104: 0 | T104: 0 | U104: 0
A105: FSCRI_RI_4314 | B105: ARST S.P.A. | C105: 07.TRASPORTI E MOBILITÀ | D105: 07.05 MOBILITÀ URBANA | E105: F81J24000860001 | F105: "METROTRANVIA DI SASSARI LINEA 1 - STRALCIO FUNZIONALE SANT'ORSOLA - LI PUNTI (LOTTO II)" | G105: 55,000,000.00 | H105: 55,000,000.00 | I105: 0 | J105: 0 | K105: 0 | L105: 600,000.00 | M105: 8,400,000.00 | N105: 9,500,000.00 | O105: 13,300,000.00 | P105: 13,800,000.00 | Q105: 9,400,000.00 | R105: 0 | S105: 0 | T105: 0 | U105: 0
A106: FSCRI_RI_4315 | B106: ASL 8 CAGLIARI | C106: 10.SOCIALE E SALUTE | D106: 10.02 STRUTTURE E ATTREZZATURE SANITARIE | E106: D28I24000220001 | F106: ADEGUAMENTO ANTINCENDIO - (SS_SAN_045) | G106: 3,000,000.00 | H106: 3,000,000.00 | I106: 0 | J106: 0 | K106: 0 | L106: 60,000.00 | M106: 90,000.00 | N106: 150,000.00 | O106: 300,000.00 | P106: 1,200,000.00 | Q106: 1,200,000.00 | R106: 0 | S106: 0 | T106: 0 | U106: 0
A107: FSCRI_RI_4316 | B107: CONSORZIO DI BONIFICA DELLA SARDEGNA CENTRALE | C107: 05.AMBIENTE E RISORSE NATURALI | D107: 05.01 RISCHI E ADATTAMENTO CLIMATICO | E107: I64E21026330002 | F107: RIUTILIZZO AI FINI IRRIGUI REFLUI DEPURATI DI NUORO A VALLE DELL'IMPIANTO DI DEPURAZIONE SU TUVU | G107: 18,500,000.00 | H107: 12,500,000.00 | I107: 6,000,000.00 | J107: 0 | K107: 0 | L107: 0 | M107: 4,000,000.00 | N107: 4,500,000.00 | O107: 4,000,000.00 | P107: 0 | Q107: 0 | R107: 0 | S107: 0 | T107: 0 | U107: 0
A108: FSCRI_RI_4317 | B108: CONSORZIO DI BONIFICA DELLA GALLURA | C108: 05.AMBIENTE E RISORSE NATURALI | D108: 05.01 RISCHI E ADATTAMENTO CLIMATICO | E108: G48B21002840005 | F108: MANUTENZIONE STRAORDINARIA DEL SISTEMA DI IMPERMEABILIZZAZIONE DELLE VASCHE DI COMPENSO DI ARZACHENA | G108: 3,622,900.00 | H108: 3,622,900.00 | I108: 0 | J108: 0 | K108: 150,000.00 | L108: 1,800,000.00 | M108: 1,672,900.00 | N108: 0 | O108: 0 | P108: 0 | Q108: 0 | R108: 0 | S108: 0 | T108: 0 | U108: 0
A109: FSCRI_RI_4318 | B109: PROVINCIA DEL SUD SARDEGNA | C109: 07.TRASPORTI E MOBILITÀ | D109: 07.01 TRASPORTO STRADALE | E109: J91B24000490006 | F109: GREENLINE. LE GREENWAYS COME NUOVA POSSIBILITÀ DI SVILUPPO DEL SULCIS IGLESIENTE - PROVINCIA SU | G109: 13,000,000.00 | H109: 13,000,000.00 | I109: 0 | J109: 0 | K109: 150,000.00 | L109: 2,000,000.00 | M109: 4,000,000.00 | N109: 4,000,000.00 | O109: 2,850,000.00 | P109: 0 | Q109: 0 | R109: 0 | S109: 0 | T109: 0 | U109: 0
A110: FSCRI_RI_4319 | B110: CONSORZIO DI BONIFICA DELLA GALLURA | C110: 05.AMBIENTE E RISORSE NATURALI | D110: 05.01 RISCHI E ADATTAMENTO CLIMATICO | E110: G97H21030890005 | F110: MANUTENZIONE STRAORDINARIA SISTEMA DI IMPERMEABILIZZAZIONE VASCHE COMPENSO OLBIA | G110: 8,240,000.00 | H110: 8,240,000.00 | I110: 0 | J110: 0 | K110: 350,000.00 | L110: 3,200,000.00 | M110: 3,690,000.00 | N110: 1,000,000.00 | O110: 0 | P110: 0 | Q110: 0 | R110: 0 | S110: 0 | T110: 0 | U110: 0
A111: FSCRI_RI_4320 | B111: CONSORZIO DI BONIFICA DELL'ORISTANESE | C111: 05.AMBIENTE E RISORSE NATURALI | D111: 05.01 RISCHI E ADATTAMENTO CLIMATICO | E111: G88H23001160002 | F111: MESSA IN SICUREZZA SBARRAMENTO COLLINARE IN LOCALITA' "MURA CABONIS" IN AGRO DI MILIS - III LOTTO | G111: 2,912,798.40 | H111: 967,159.43 | I111: 1,945,638.97 | J111: 0 | K111: 0 | L111: 48,357.97 | M111: 725,369.57 | N111: 193,431.89 | O111: 0 | P111: 0 | Q111: 0 | R111: 0 | S111: 0 | T111: 0 | U111: 0
A112: FSCRI_RI_4321 | B112: DIREZIONE GENERALE DEI TRASPORTI | C112: 02.DIGITALIZZAZIONE | D112: 02.01 TECNOLOGIE E SERVIZI DIGITALI | E112: E79B24000130001 | F112: OSSERVATORIO DEI TRASPORTI | G112: 1,000,000.00 | H112: 1,000,000.00 | I112: 0 | J112: 0 | K112: 0 | L112: 100,000.00 | M112: 300,000.00 | N112: 400,000.00 | O112: 200,000.00 | P112: 0 | Q112: 0 | R112: 0 | S112: 0 | T112: 0 | U112: 0
A113: FSCRI_RI_4322 | B113: AUTORITÀ DI SISTEMA PORTUALE DEL MARE DI SARDEGNA | C113: 07.TRASPORTI E MOBILITÀ | D113: 07.03 TRASPORTO MARITTIMO E LOGISTICA | E113: B21I24000400002 | F113: ELETTRIFICAZIONE BANCHINE PORTUALI DI PORTO TORRES (COLLEGAMENTO CON L'ASINARA) | G113: 800,000.00 | H113: 800,000.00 | I113: 0 | J113: 0 | K113: 0 | L113: 200,000.00 | M113: 500,000.00 | N113: 100,000.00 | O113: 0 | P113: 0 | Q113: 0 | R113: 0 | S113: 0 | T113: 0 | U113: 0
A114: FSCRI_RI_4323 | B114: ASL 8 CAGLIARI | C114: 10.SOCIALE E SALUTE | D114: 10.02 STRUTTURE E ATTREZZATURE SANITARIE | E114: D38I24000180001 | F114: CASA DELLA SALUTE MONSERRATO | G114: 4,000,000.00 | H114: 4,000,000.00 | I114: 0 | J114: 0 | K114: 0 | L114: 1,000,000.00 | M114: 1,500,000.00 | N114: 1,500,000.00 | O114: 0 | P114: 0 | Q114: 0 | R114: 0 | S114: 0 | T114: 0 | U114: 0
A115: FSCRI_RI_4324 | B115: SICIP CONSORZIO INDUSTRIALE PROVINCIALE CARBONIA IGLESIAS | C115: 05.AMBIENTE E RISORSE NATURALI | D115: 05.04 BONIFICHE | E115: G74G24000070002 | F115: INTERVENTI DI BONIFICA E RECUPERO DELLA EX STAZIONE DI POTABILIZZAZIONE | G115: 2,600,000.00 | H115: 2,600,000.00 | I115: 0 | J115: 0 | K115: 600,000.00 | L115: 1,000,000.00 | M115: 500,000.00 | N115: 500,000.00 | O115: 0 | P115: 0 | Q115: 0 | R115: 0 | S115: 0 | T115: 0 | U115: 0
A116: FSCRI_RI_4325 | B116: ASL 8 CAGLIARI | C116: 10.SOCIALE E SALUTE | D116: 10.02 STRUTTURE E ATTREZZATURE SANITARIE | E116: D88I24000210001 | F116: CASA DELLA SALUTE QUARTU SANT'ELENA | G116: 3,250,000.00 | H116: 3,250,000.00 | I116: 0 | J116: 0 | K116: 0 | L116: 750,000.00 | M116: 1,250,000.00 | N116: 1,250,000.00 | O116: 0 | P116: 0 | Q116: 0 | R116: 0 | S116: 0 | T116: 0 | U116: 0
A117: FSCRI_RI_4326 | B117: CTM S.P.A. | C117: 07.TRASPORTI E MOBILITÀ | D117: 07.05 MOBILITÀ URBANA | E117: J29I24001110002 | F117: TRASPORTO RAPIDO DI MASSA-INFRASTRUTTURAZIONE LINEA EXPRESS TPL AUTOMOB. CAGLIARI QUARTU S. ELENA | G117: 10,000,000.00 | H117: 10,000,000.00 | I117: 0 | J117: 0 | K117: 0 | L117: 1,200,000.00 | M117: 2,400,000.00 | N117: 2,400,000.00 | O117: 4,000,000.00 | P117: 0 | Q117: 0 | R117: 0 | S117: 0 | T117: 0 | U117: 0
A118: FSCRI_RI_4327 | B118: CIPOR CONSORZIO INDUSTRIALE PROVINCIALE ORISTANESE | C118: 04.ENERGIA | D118: 04.02 ENERGIA RINNOVABILE | E118: E13D24000690002 | F118: CIPOR REALIZ CENTRALE PRODUZ IDROGENO DA ENERGIA RINNOV AL SERVIZIO IMPRESE AGGL IND.LEIALE ORISTANO | G118: 7,765,691.28 | H118: 7,765,691.28 | I118: 0 | J118: 0 | K118: 0 | L118: 931,882.95 | M118: 6,833,808.33 | N118: 0 | O118: 0 | P118: 0 | Q118: 0 | R118: 0 | S118: 0 | T118: 0 | U118: 0
A119: FSCRI_RI_4328 | B119: ASL 4 OGLIASTRA | C119: 10.SOCIALE E SALUTE | D119: 10.02 STRUTTURE E ATTREZZATURE SANITARIE | E119: B54E24000960001 | F119: COMPLETAMENTO INTERVENTO DI MESSA A NORMA ANTINCENDIO CASA DELLA SALUTE DI TORTOLI' | G119: 650,000.00 | H119: 650,000.00 | I119: 0 | J119: 0 | K119: 0 | L119: 150,000.00 | M119: 500,000.00 | N119: 0 | O119: 0 | P119: 0 | Q119: 0 | R119: 0 | S119: 0 | T119: 0 | U119: 0
A120: FSCRI_RI_4329 | B120: AOU SASSARI | C120: 10.SOCIALE E SALUTE | D120: 10.02 STRUTTURE E ATTREZZATURE SANITARIE | E120: H88I24001400001 | F120: AMPLIAMENTO COMPLESSO OSPEDALIERO UNIVERSITARIO SS, CON ADEGUAM. FUNZIONALE E COLLEGAMENTO ESISTENTE | G120: 20,000,000.00 | H120: 20,000,000.00 | I120: 0 | J120: 0 | K120: 0 | L120: 1,100,000.00 | M120: 4,500,000.00 | N120: 4,500,000.00 | O120: 4,500,000.00 | P120: 4,500,000.00 | Q120: 900,000.00 | R120: 0 | S120: 0 | T120: 0 | U120: 0
A121: FSCRI_RI_4330 | B121: CIPSS CONSORZIO INDUSTRIALE PROVINCIALE DI SASSARI | C121: 07.TRASPORTI E MOBILITÀ | D121: 07.01 TRASPORTO STRADALE | E121: G27H24001720001 | F121: CIPSS MANUTENZIONE STRAORDINARIA VIABILITÀ CONSORTILE | G121: 4,620,772.00 | H121: 4,620,772.00 | I121: 0 | J121: 0 | K121: 0 | L121: 180,000.00 | M121: 1,240,772.00 | N121: 1,200,000.00 | O121: 1,500,000.00 | P121: 500,000.00 | Q121: 0 | R121: 0 | S121: 0 | T121: 0 | U121: 0
A122: FSCRI_RI_4331 | B122: ASL 4 OGLIASTRA | C122: 10.SOCIALE E SALUTE | D122: 10.02 STRUTTURE E ATTREZZATURE SANITARIE | E122: B14E24001270001 | F122: COMPLETAMENTO INTERVENTO RISTRUTTURAZIONE DEL REP. DI MEDICINA DEL PRESIDIO OSPEDALIERO DI LANUSEI | G122: 650,000.00 | H122: 650,000.00 | I122: 0 | J122: 0 | K122: 0 | L122: 150,000.00 | M122: 500,000.00 | N122: 0 | O122: 0 | P122: 0 | Q122: 0 | R122: 0 | S122: 0 | T122: 0 | U122: 0
A123: FSCRI_RI_4332 | B123: ASL 7 SULCIS | C123: 10.SOCIALE E SALUTE | D123: 10.02 STRUTTURE E ATTREZZATURE SANITARIE | E123: B48I24005000001 | F123: LAVORI DI ADEGUAMENTO ALLA NORMATIVA DI PREVENZIONE INCENDI DI CUI AL DM 19 MARZO 2015 - SIRAI | G123: 3,000,000.00 | H123: 3,000,000.00 | I123: 0 | J123: 0 | K123: 0 | L123: 0 | M123: 300,000.00 | N123: 700,000.00 | O123: 700,000.00 | P123: 1,300,000.00 | Q123: 0 | R123: 0 | S123: 0 | T123: 0 | U123: 0
A124: FSCRI_RI_4333 | B124: ASL 4 OGLIASTRA | C124: 10.SOCIALE E SALUTE | D124: 10.02 STRUTTURE E ATTREZZATURE SANITARIE | E124: B14E24001260001 | F124: COMPLETAMENTO MESSA A NORMA ANTINCENDIO DEL P.O. N.S. DELLA MERCEDE DI LANUSEI | G124: 800,000.00 | H124: 800,000.00 | I124: 0 | J124: 0 | K124: 0 | L124: 200,000.00 | M124: 400,000.00 | N124: 200,000.00 | O124: 0 | P124: 0 | Q124: 0 | R124: 0 | S124: 0 | T124: 0 | U124: 0
A125: FSCRI_RI_4334 | B125: ASSESSORATO DEGLI ENTI LOCALI, FINANZE E URBANISTICA - DIREZIONE GENERALE DELLA PIANIFICAZIONE URBANISTICA TERRITORIALE E DELLA VIGILANZA EDILIZIA | C125: 02.DIGITALIZZAZIONE | D125: 02.01 TECNOLOGIE E SERVIZI DIGITALI | E125: E71C24000260001 | F125: AGGIORNAMENTO DEL SISTEMA INFORMATIVO TERRITORIALE REGIONALE (SITR) | G125: 10,000,000.00 | H125: 10,000,000.00 | I125: 0 | J125: 0 | K125: 0 | L125: 1,050,000.00 | M125: 1,850,000.00 | N125: 1,600,000.00 | O125: 1,890,000.00 | P125: 2,410,000.00 | Q125: 1,200,000.00 | R125: 0 | S125: 0 | T125: 0 | U125: 0
A126: FSCRI_RI_4335 | B126: ASL 6 MEDIO CAMPIDANO | C126: 10.SOCIALE E SALUTE | D126: 10.02 STRUTTURE E ATTREZZATURE SANITARIE | E126: D38I24000170001 | F126: MESSA A NORMA ANTINCENDIO DEL PO NS DI BONARIA | G126: 2,000,000.00 | H126: 2,000,000.00 | I126: 0 | J126: 0 | K126: 0 | L126: 120,000.00 | M126: 280,000.00 | N126: 928,000.00 | O126: 448,000.00 | P126: 224,000.00 | Q126: 0 | R126: 0 | S126: 0 | T126: 0 | U126: 0
A127: FSCRI_RI_4337 | B127: REGIONE SARDEGNA/ ASSESSORATO DEL TURISMO, ARTIGIANATO E COMMERCIO | C127: 08.RIQUALIFICAZIONE URBANA | D127: 08.01 EDILIZIA E SPAZI PUBBLICI | E127: LINEA DI AZIONE | F127: ITINERARIO DELLE SETTE CITTÀ REGIE DELLA SARDEGNA MIS. 2.1 / MIS. 4.5 | G127: 30,000,000.00 | H127: 30,000,000.00 | I127: 0 | J127: 0 | K127: 0 | L127: 3,000,000.00 | M127: 6,000,000.00 | N127: 7,500,000.00 | O127: 7,500,000.00 | P127: 6,000,000.00 | Q127: 0 | R127: 0 | S127: 0 | T127: 0 | U127: 0
A128: FSCRI_RI_4338 | B128: REGIONE SARDEGNA / ASSESSORATO AL TURISMO, ARTIGIANATO E COMMERCIO | C128: 08.RIQUALIFICAZIONE URBANA | D128: 08.01 EDILIZIA E SPAZI PUBBLICI | E128: LINEA DI AZIONE | F128: LE PORTE DELLA SARDEGNA / PROGRAMMA A REGIA REGIONALE | G128: 12,000,000.00 | H128: 12,000,000.00 | I128: 0 | J128: 0 | K128: 0 | L128: 1,200,000.00 | M128: 2,400,000.00 | N128: 3,000,000.00 | O128: 3,000,000.00 | P128: 2,400,000.00 | Q128: 0 | R128: 0 | S128: 0 | T128: 0 | U128: 0
A129: FSCRI_RI_4339 | B129: ASL 1 SASSARI | C129: 10.SOCIALE E SALUTE | D129: 10.02 STRUTTURE E ATTREZZATURE SANITARIE | E129: J13D24000080002 | F129: P.O. CIVILE DI ALGHERO - PREVENZIONE INCENDI - CERTIFICAZIONE | G129: 4,942,000.00 | H129: 4,942,000.00 | I129: 0 | J129: 0 | K129: 0 | L129: 988,400.00 | M129: 1,200,000.00 | N129: 1,500,000.00 | O129: 1,253,600.00 | P129: 0 | Q129: 0 | R129: 0 | S129: 0 | T129: 0 | U129: 0
A130: FSCRI_RI_4340 | B130: REGIONE SARDEGNA/ ASSESSORATO DEL TURISMO, ARTIGIANATO E COMMERCIO | C130: 08.RIQUALIFICAZIONE URBANA | D130: 08.01 EDILIZIA E SPAZI PUBBLICI | E130: LINEA DI AZIONE | F130: TURISMO NEI BORGHI / REGIA REGIONALE | G130: 38,000,000.00 | H130: 38,000,000.00 | I130: 0 | J130: 0 | K130: 0 | L130: 3,800,000.00 | M130: 7,600,000.00 | N130: 9,500,000.00 | O130: 9,500,000.00 | P130: 7,600,000.00 | Q130: 0 | R130: 0 | S130: 0 | T130: 0 | U130: 0
A131: FSCRI_RI_4341 | B131: ASL 1 SASSARI | C131: 10.SOCIALE E SALUTE | D131: 10.02 STRUTTURE E ATTREZZATURE SANITARIE | E131: J83D24000090002 | F131: PRESIDIO SANITARIO SAN CAMILLO | G131: 3,231,000.00 | H131: 3,231,000.00 | I131: 0 | J131: 0 | K131: 0 | L131: 250,000.00 | M131: 1,400,000.00 | N131: 1,200,000.00 | O131: 381,000.00 | P131: 0 | Q131: 0 | R131: 0 | S131: 0 | T131: 0 | U131: 0
A132: FSCRI_RI_4344 | B132: AOU SASSARI | C132: 10.SOCIALE E SALUTE | D132: 10.02 STRUTTURE E ATTREZZATURE SANITARIE | E132: H88I16000010001 | F132: COMPLETAMENTO DEGLI INTERVENTI COMPLESSO OSPEDALIERO DELLA AOU SS | G132: 78,500,000.00 | H132: 78,500,000.00 | I132: 0 | J132: 0 | K132: 0 | L132: 1,000,000.00 | M132: 5,000,000.00 | N132: 5,000,000.00 | O132: 6,000,000.00 | P132: 12,000,000.00 | Q132: 15,000,000.00 | R132: 15,000,000.00 | S132: 15,000,000.00 | T132: 4,500,000.00 | U132: 0
A133: FSCRI_RI_4345 | B133: ASL 7 SULCIS | C133: 10.SOCIALE E SALUTE | D133: 10.02 STRUTTURE E ATTREZZATURE SANITARIE | E133: B38I24003970001 | F133: LAVORI DI ADEGUAMENTO ALLA NORMATIVA DI PREVENZIONE INCENDI DI CUI AL DM 19 MARZO 2015 - CTO | G133: 1,500,000.00 | H133: 1,500,000.00 | I133: 0 | J133: 0 | K133: 0 | L133: 0 | M133: 150,000.00 | N133: 350,000.00 | O133: 350,000.00 | P133: 650,000.00 | Q133: 0 | R133: 0 | S133: 0 | T133: 0 | U133: 0
A134: FSCRI_RI_4346 | B134: ASL 7 SULCIS | C134: 10.SOCIALE E SALUTE | D134: 10.02 STRUTTURE E ATTREZZATURE SANITARIE | E134: B38I24003960001 | F134: LAVORI DI ADEGUAMENTO ALLA NORMATIVA DI PREVENZIONE INCENDI DI CUI AL DM 19 MARZO 2015 - S. BARBARA | G134: 3,000,000.00 | H134: 3,000,000.00 | I134: 0 | J134: 0 | K134: 0 | L134: 0 | M134: 300,000.00 | N134: 700,000.00 | O134: 700,000.00 | P134: 1,300,000.00 | Q134: 0 | R134: 0 | S134: 0 | T134: 0 | U134: 0
A135: FSCRI_RI_4348 | B135: EGAS | C135: 05.AMBIENTE E RISORSE NATURALI | D135: 05.01 RISCHI E ADATTAMENTO CLIMATICO | E135: E18B23001470001 | F135: RIASSETTO FUNZIONALE DELL’ADDUTTRICE IDRICA DI JANNA 'E FERRU TRA NUORO E MAMOIADA | G135: 18,030,000.00 | H135: 18,030,000.00 | I135: 0 | J135: 0 | K135: 0 | L135: 50,000.00 | M135: 200,000.00 | N135: 1,200,000.00 | O135: 4,000,000.00 | P135: 6,000,000.00 | Q135: 6,580,000.00 | R135: 0 | S135: 0 | T135: 0 | U135: 0
A136: FSCRI_RI_4349 | B136: ENTE DI GOVERNO DELL'AMBITO DELLA SARDEGNA | C136: 05.AMBIENTE E RISORSE NATURALI | D136: 05.02 RISORSE IDRICHE | E136: E14E13000800006 | F136: REALIZZAZIONE COLLETTORI FOGNARI DEI REFLUI DI OLMEDO ALL’IMPIANTO DI DEPURAZIONE DI ALGHERO | G136: 3,200,000.00 | H136: 1,200,000.00 | I136: 2,000,000.00 | J136: 0 | K136: 0 | L136: 0 | M136: 300,000.00 | N136: 300,000.00 | O136: 300,000.00 | P136: 300,000.00 | Q136: 0 | R136: 0 | S136: 0 | T136: 0 | U136: 0
A137: FSCRI_RI_4350 | B137: ENTE DI GOVERNO DELL'AMBITO DELLA SARDEGNA | C137: 05.AMBIENTE E RISORSE NATURALI | D137: 05.01 RISCHI E ADATTAMENTO CLIMATICO | E137: E16B11000020005 | F137: POTENZIAMENTO DELL'IMPIANTO DI POTABILIZZAZIONE DI SILÌ - ORISTANO | G137: 19,000,000.00 | H137: 6,000,000.00 | I137: 13,000,000.00 | J137: 0 | K137: 0 | L137: 0 | M137: 2,000,000.00 | N137: 2,000,000.00 | O137: 2,000,000.00 | P137: 0 | Q137: 0 | R137: 0 | S137: 0 | T137: 0 | U137: 0
A138: FSCRI_RI_4351 | B138: ENTE DI GOVERNO DELL'AMBITO DELLA SARDEGNA | C138: 05.AMBIENTE E RISORSE NATURALI | D138: 05.01 RISCHI E ADATTAMENTO CLIMATICO | E138: E62B18001910002 | F138: DIGA GOVOSSAI - CONSOLIDAMENTO STRUTTURALE E ADEGUAMENTO STRUMENTAZIONE CONTROLLO | G138: 21,500,000.00 | H138: 7,250,000.00 | I138: 14,250,000.00 | J138: 0 | K138: 0 | L138: 0 | M138: 500,000.00 | N138: 500,000.00 | O138: 1,750,000.00 | P138: 2,500,000.00 | Q138: 2,000,000.00 | R138: 0 | S138: 0 | T138: 0 | U138: 0
A139: FSCRI_RI_4352 | B139: OPERE E INFRASTRUTTURE DELLA SARDEGNA S.R.L. | C139: 05.AMBIENTE E RISORSE NATURALI | D139: 05.01 RISCHI E ADATTAMENTO CLIMATICO | E139: E19E06000100002 | F139: EMERGENZA GALLURA: RIASSETTO FUNZIONALE RETI IDRICHE DI PITTULONGU E DI GOLFO ARANCI | G139: 5,476,000.00 | H139: 3,000,000.00 | I139: 2,476,000.00 | J139: 0 | K139: 0 | L139: 0 | M139: 0 | N139: 1,200,000.00 | O139: 1,200,000.00 | P139: 600,000.00 | Q139: 0 | R139: 0 | S139: 0 | T139: 0 | U139: 0
A140: FSCRI_RI_4353 | B140: OPERE E INFRASTRUTTURE DELLA SARDEGNA S.R.L. | C140: 05.AMBIENTE E RISORSE NATURALI | D140: 05.01 RISCHI E ADATTAMENTO CLIMATICO | E140: F76G04000500006 | F140: "SCHEMA N. 31 - TIRSO" - CONDOTTA DI ALIMENTAZIONE DELLE ZONE COSTIERE DEL SINIS | G140: 27,129,137.00 | H140: 16,800,000.00 | I140: 10,329,137.00 | J140: 0 | K140: 0 | L140: 0 | M140: 0 | N140: 600,000.00 | O140: 1,200,000.00 | P140: 6,000,000.00 | Q140: 6,000,000.00 | R140: 3,000,000.00 | S140: 0 | T140: 0 | U140: 0
A141: FSCRI_RI_4354 | B141: ENTE DI GOVERNO DELL'AMBITO DELLA SARDEGNA | C141: 05.AMBIENTE E RISORSE NATURALI | D141: 05.02 RISORSE IDRICHE | E141: E44H15001580002 | F141: ADEGUAMENTO IMPIANTO DI DEPURAZIONE DI TORPÈ E DELLE FRAZIONI | G141: 5,129,000.00 | H141: 4,750,000.00 | I141: 379,000.00 | J141: 0 | K141: 0 | L141: 0 | M141: 0 | N141: 200,000.00 | O141: 550,000.00 | P141: 3,000,000.00 | Q141: 1,000,000.00 | R141: 0 | S141: 0 | T141: 0 | U141: 0
A142: FSCRI_RI_4355 | B142: ENTE DI GOVERNO DELL'AMBITO DELLA SARDEGNA | C142: 05.AMBIENTE E RISORSE NATURALI | D142: 05.01 RISCHI E ADATTAMENTO CLIMATICO | E142: E47B14000360005 | F142: RIASSETTO LAVORI DI INTERCONNESSIONE CON IL POTABILIZZATORE DI TORPÈ- REALIZZAZIONE DORSALE CENTRALE | G142: 20,100,000.00 | H142: 8,000,000.00 | I142: 12,100,000.00 | J142: 0 | K142: 0 | L142: 0 | M142: 0 | N142: 500,000.00 | O142: 1,500,000.00 | P142: 2,000,000.00 | Q142: 2,000,000.00 | R142: 2,000,000.00 | S142: 0 | T142: 0 | U142: 0
A143: FSCRI_RI_4356 | B143: ENTE DI GOVERNO DELL'AMBITO DELLA SARDEGNA | C143: 05.AMBIENTE E RISORSE NATURALI | D143: 05.01 RISCHI E ADATTAMENTO CLIMATICO | E143: F56G04000280006 | F143: OPERE COMPLEMENTARI POTABILIZZATORE DI TORPÈ | G143: 2,200,000.00 | H143: 450,000.00 | I143: 1,750,000.00 | J143: 0 | K143: 0 | L143: 250,000.00 | M143: 100,000.00 | N143: 100,000.00 | O143: 0 | P143: 0 | Q143: 0 | R143: 0 | S143: 0 | T143: 0 | U143: 0
A144: FSCRI_RI_4358 | B144: ENTE DI GOVERNO DELL'AMBITO DELLA SARDEGNA | C144: 05.AMBIENTE E RISORSE NATURALI | D144: 05.02 RISORSE IDRICHE | E144: E93J05000010006 | F144: LAVORI DI COSTRUZIONE IN SOTTERRANEO DELL'IMPIANTO DI DEPURAZIONE DEL COMUNE DI CARLOFORTE | G144: 13,000,000.00 | H144: 7,700,000.00 | I144: 5,300,000.00 | J144: 0 | K144: 0 | L144: 0 | M144: 0 | N144: 1,870,000.00 | O144: 2,500,000.00 | P144: 2,000,000.00 | Q144: 1,330,000.00 | R144: 0 | S144: 0 | T144: 0 | U144: 0
A145: FSCRI_RI_4359 | B145: ENTE DI GOVERNO DELL'AMBITO DELLA SARDEGNA | C145: 05.AMBIENTE E RISORSE NATURALI | D145: 05.02 RISORSE IDRICHE | E145: E69G05000050006 | F145: MANUTENZIONE STRAORDINARIA ED ESTENDIMENTO RETE FOGNARIA -TEMPIO PAUSANIA (TEMPIO E BASSACUTENA) | G145: 1,800,000.00 | H145: 1,170,000.00 | I145: 630,000.00 | J145: 0 | K145: 0 | L145: 55,000.00 | M145: 300,000.00 | N145: 400,000.00 | O145: 415,000.00 | P145: 0 | Q145: 0 | R145: 0 | S145: 0 | T145: 0 | U145: 0
A146: FSCRI_RI_4360 | B146: ENTE DI GOVERNO DELL'AMBITO DELLA SARDEGNA | C146: 05.AMBIENTE E RISORSE NATURALI | D146: 05.01 RISCHI E ADATTAMENTO CLIMATICO | E146: E64D18000040002 | F146: INTERCONNESSIONE BACINI OLAI E GOVOSSAI | G146: 1,800,000.00 | H146: 1,800,000.00 | I146: 0 | J146: 0 | K146: 100,000.00 | L146: 1,000,000.00 | M146: 400,000.00 | N146: 300,000.00 | O146: 0 | P146: 0 | Q146: 0 | R146: 0 | S146: 0 | T146: 0 | U146: 0
A147: FSCRI_RI_4361 | B147: OPERE E INFRASTRUTTURE DELLA SARDEGNA S.R.L. | C147: 05.AMBIENTE E RISORSE NATURALI | D147: 05.01 RISCHI E ADATTAMENTO CLIMATICO | E147: E32G06000060002 | F147: SCHEMA N.2 "LISCIA" RETE COSTA SMERALDA-BAIA SARDINIA-RETE EST DELL'ACQUEDOTTO DEL LISCIA | G147: 13,440,000.00 | H147: 8,040,000.00 | I147: 5,400,000.00 | J147: 0 | K147: 0 | L147: 0 | M147: 600,000.00 | N147: 1,800,000.00 | O147: 3,000,000.00 | P147: 1,800,000.00 | Q147: 840,000.00 | R147: 0 | S147: 0 | T147: 0 | U147: 0
A148: FSCRI_RI_4362 | B148: ENTE DI GOVERNO DELL'AMBITO DELLA SARDEGNA | C148: 05.AMBIENTE E RISORSE NATURALI | D148: 05.02 RISORSE IDRICHE | E148: E74H12000190001 | F148: MANUTENZIONE SOLLEVAMENTI FOGNARI PER ADEGUAMENTO E RIPRISTINO PIENA FUNZIONALITÀ (SCHEMA N.62 PTA) | G148: 790,000.00 | H148: 190,000.00 | I148: 600,000.00 | J148: 0 | K148: 0 | L148: 100,000.00 | M148: 90,000.00 | N148: 0 | O148: 0 | P148: 0 | Q148: 0 | R148: 0 | S148: 0 | T148: 0 | U148: 0
A149: FSCRI_RI_4363 | B149: ENTE DI GOVERNO DELL'AMBITO DELLA SARDEGNA | C149: 05.AMBIENTE E RISORSE NATURALI | D149: 05.02 RISORSE IDRICHE | E149: E88F04000020006 | F149: COMPLETAMENTO DEL RIORDINO E RAZIONALIZZAZIONE RETE FOGNARIA: ESTENSIONE RETE FOGNARIA VIA AUTONOMIA | G149: 3,050,000.00 | H149: 750,000.00 | I149: 2,300,000.00 | J149: 0 | K149: 0 | L149: 50,000.00 | M149: 200,000.00 | N149: 400,000.00 | O149: 100,000.00 | P149: 0 | Q149: 0 | R149: 0 | S149: 0 | T149: 0 | U149: 0
A150: FSCRI_RI_4364 | B150: ENTE DI GOVERNO DELL'AMBITO DELLA SARDEGNA | C150: 05.AMBIENTE E RISORSE NATURALI | D150: 05.02 RISORSE IDRICHE | E150: E64H12000100001 | F150: ADEGUAMENTO SCHEMA FOGNARIO DEPURATIVO N. 77 “TEMPIO PAUSANIA” | G150: 3,000,000.00 | H150: 1,400,000.00 | I150: 1,600,000.00 | J150: 0 | K150: 0 | L150: 0 | M150: 0 | N150: 200,000.00 | O150: 400,000.00 | P150: 400,000.00 | Q150: 400,000.00 | R150: 0 | S150: 0 | T150: 0 | U150: 0
A151: FSCRI_RI_4365 | B151: ENTE DI GOVERNO DELL'AMBITO DELLA SARDEGNA | C151: 05.AMBIENTE E RISORSE NATURALI | D151: 05.02 RISORSE IDRICHE | E151: E93C05000110006 | F151: COMPLETAMENTO COLLETTORI FOGNARI DI MARACALAGONIS, SINNAI E SETTIMO AL DEPURATORE DI IS ARENAS | G151: 2,465,000.00 | H151: 765,000.00 | I151: 1,700,000.00 | J151: 0 | K151: 0 | L151: 25,000.00 | M151: 150,000.00 | N151: 200,000.00 | O151: 230,000.00 | P151: 160,000.00 | Q151: 0 | R151: 0 | S151: 0 | T151: 0 | U151: 0
A152: FSCRI_RI_4366 | B152: ENTE DI GOVERNO DELL'AMBITO DELLA SARDEGNA | C152: 05.AMBIENTE E RISORSE NATURALI | D152: 05.02 RISORSE IDRICHE | E152: E31B14000480002 | F152: LAVORI DI COMPLETAMENTO DELLO SCHEMA FOGNARIO-DEPURATIVO N. 45 PTA - MONTRESTA | G152: 550,000.00 | H152: 200,000.00 | I152: 350,000.00 | J152: 0 | K152: 0 | L152: 50,000.00 | M152: 100,000.00 | N152: 50,000.00 | O152: 0 | P152: 0 | Q152: 0 | R152: 0 | S152: 0 | T152: 0 | U152: 0
A153: FSCRI_RI_4367 | B153: ENTE DI GOVERNO DELL'AMBITO DELLA SARDEGNA | C153: 05.AMBIENTE E RISORSE NATURALI | D153: 05.01 RISCHI E ADATTAMENTO CLIMATICO | E153: LINEA DI AZIONE | F153: LINEA D'AZIONE EFFICIENTAMENTO RETI IDRICHE COMUNALI DELLA SARDEGNA CON ELEVATA DISPERSIONE IDRICA | G153: 50,000,000.00 | H153: 50,000,000.00 | I153: 0 | J153: 0 | K153: 0 | L153: 200,000.00 | M153: 1,800,000.00 | N153: 10,000,000.00 | O153: 10,000,000.00 | P153: 10,000,000.00 | Q153: 10,000,000.00 | R153: 8,000,000.00 | S153: 0 | T153: 0 | U153: 0
A154: FSCRI_RI_4368 | B154: ENTE DI GOVERNO DELL'AMBITO DELLA SARDEGNA | C154: 05.AMBIENTE E RISORSE NATURALI | D154: 05.02 RISORSE IDRICHE | E154: E16J12000540001 | F154: ADEGUAMENTO SCHEMA FOGNARIO DEPURATIVO N. 253 VILLASALTO | G154: 1,740,000.00 | H154: 740,000.00 | I154: 1,000,000.00 | J154: 0 | K154: 0 | L154: 500,000.00 | M154: 200,000.00 | N154: 40,000.00 | O154: 0 | P154: 0 | Q154: 0 | R154: 0 | S154: 0 | T154: 0 | U154: 0
A155: FSCRI_RI_4369 | B155: ENTE DI GOVERNO DELL'AMBITO DELLA SARDEGNA | C155: 05.AMBIENTE E RISORSE NATURALI | D155: 05.01 RISCHI E ADATTAMENTO CLIMATICO | E155: E15J06000080001 | F155: SCHEMA N 1 VIGNOLA-CASTELDORIA-PERFUGAS N 5 BIDIGHINZU-FLORINAS. DIRAMAZIONE CHIARAMONTI-LAERRU | G155: 700,000.00 | H155: 380,000.00 | I155: 320,000.00 | J155: 0 | K155: 0 | L155: 150,000.00 | M155: 200,000.00 | N155: 30,000.00 | O155: 0 | P155: 0 | Q155: 0 | R155: 0 | S155: 0 | T155: 0 | U155: 0
A156: FSCRI_RI_4370 | B156: ENTE DI GOVERNO DELL'AMBITO DELLA SARDEGNA | C156: 05.AMBIENTE E RISORSE NATURALI | D156: 05.01 RISCHI E ADATTAMENTO CLIMATICO | E156: E87B14000370005 | F156: RIASSETTO LAVORI DI INTERCONNESSIONE CON IL POTABILIZZATORE DI TORPÈ-REALIZZAZIONE DORSALE NORD-SUD | G156: 15,900,000.00 | H156: 6,000,000.00 | I156: 9,900,000.00 | J156: 0 | K156: 0 | L156: 0 | M156: 100,000.00 | N156: 900,000.00 | O156: 2,000,000.00 | P156: 2,000,000.00 | Q156: 1,000,000.00 | R156: 0 | S156: 0 | T156: 0 | U156: 0
A157: FSCRI_RI_4371 | B157: ENTE DI GOVERNO DELL'AMBITO DELLA SARDEGNA | C157: 05.AMBIENTE E RISORSE NATURALI | D157: 05.01 RISCHI E ADATTAMENTO CLIMATICO | E157: E49E08000190002 | F157: MANUTENZIONE STRAORDINARIA DELLA CONDOTTA DI COLLEGAMENTO SERBATOIO E POZZI ARTESIANI DI PUTIFIGARI | G157: 1,555,000.00 | H157: 815,000.00 | I157: 740,000.00 | J157: 0 | K157: 0 | L157: 515,000.00 | M157: 300,000.00 | N157: 0 | O157: 0 | P157: 0 | Q157: 0 | R157: 0 | S157: 0 | T157: 0 | U157: 0
A158: FSCRI_RI_4372 | B158: ENTE DI GOVERNO DELL'AMBITO DELLA SARDEGNA | C158: 05.AMBIENTE E RISORSE NATURALI | D158: 05.01 RISCHI E ADATTAMENTO CLIMATICO | E158: E12E22000720001 | F158: SCHEMA NPRGA N.14 GOVOSSAI. NUOVA CONDOTTA ADDUTTRICE SARULE, ORANI, ONIFERI, OROTELLI E PIÙ | G158: 16,393,765.41 | H158: 16,216,765.41 | I158: 177,000.00 | J158: 0 | K158: 0 | L158: 0 | M158: 0 | N158: 0 | O158: 500,000.00 | P158: 500,000.00 | Q158: 8,000,000.00 | R158: 7,216,765.41 | S158: 0 | T158: 0 | U158: 0
A159: FSCRI_RI_4373 | B159: ENTE DI GOVERNO DELL'AMBITO DELLA SARDEGNA | C159: 05.AMBIENTE E RISORSE NATURALI | D159: 05.02 RISORSE IDRICHE | E159: E29G04000060006 | F159: ADEGUAMENTO SCHEMA FOGNARIO DEPURATIVO N° 179 - MEANA SARDO | G159: 5,875,000.00 | H159: 4,450,000.00 | I159: 1,425,000.00 | J159: 0 | K159: 0 | L159: 200,000.00 | M159: 2,100,000.00 | N159: 1,500,000.00 | O159: 500,000.00 | P159: 150,000.00 | Q159: 0 | R159: 0 | S159: 0 | T159: 0 | U159: 0
A160: FSCRI_RI_4374 | B160: ENTE DI GOVERNO DELL'AMBITO DELLA SARDEGNA | C160: 05.AMBIENTE E RISORSE NATURALI | D160: 05.02 RISORSE IDRICHE | E160: E13J04000010006 | F160: REALIZZAZIONE RETE FOGNARIA FASCIA COSTIERA - COMUNE DI MAGOMADAS | G160: 1,200,000.00 | H160: 510,000.00 | I160: 690,000.00 | J160: 0 | K160: 0 | L160: 60,000.00 | M160: 200,000.00 | N160: 200,000.00 | O160: 50,000.00 | P160: 0 | Q160: 0 | R160: 0 | S160: 0 | T160: 0 | U160: 0
A161: FSCRI_RI_4375 | B161: ENTE DI GOVERNO DELL'AMBITO DELLA SARDEGNA | C161: 05.AMBIENTE E RISORSE NATURALI | D161: 05.01 RISCHI E ADATTAMENTO CLIMATICO | E161: E18B24001420002 | F161: SCHEMA N. 2 LISCIA - MANUTENZIONE STRAORDINARIA RAMO DI INETRCONNESSIONE CON LO SCHEMA 11 SINISCOLA | G161: 8,000,000.00 | H161: 8,000,000.00 | I161: 0 | J161: 0 | K161: 0 | L161: 100,000.00 | M161: 200,000.00 | N161: 1,700,000.00 | O161: 3,000,000.00 | P161: 3,000,000.00 | Q161: 0 | R161: 0 | S161: 0 | T161: 0 | U161: 0
A162: FSCRI_RI_4376 | B162: ENTE DI GOVERNO DELL'AMBITO DELLA SARDEGNA | C162: 05.AMBIENTE E RISORSE NATURALI | D162: 05.01 RISCHI E ADATTAMENTO CLIMATICO | E162: E43H08000030002 | F162: SCHEMA N° 3 CASTELDORIA - CONDOTTE PER SEDINI, BULZI, PERFUGAS E LAERRU | G162: 9,700,000.00 | H162: 5,700,000.00 | I162: 4,000,000.00 | J162: 0 | K162: 0 | L162: 2,500,000.00 | M162: 2,500,000.00 | N162: 700,000.00 | O162: 0 | P162: 0 | Q162: 0 | R162: 0 | S162: 0 | T162: 0 | U162: 0
A163: FSCRI_RI_4377 | B163: ENTE DI GOVERNO DELL'AMBITO DELLA SARDEGNA | C163: 05.AMBIENTE E RISORSE NATURALI | D163: 05.02 RISORSE IDRICHE | E163: E63J06000060001 | F163: DELOCALIZZAZIONE DEPURATORE BALLAO | G163: 3,350,000.00 | H163: 2,150,000.00 | I163: 1,200,000.00 | J163: 0 | K163: 0 | L163: 0 | M163: 500,000.00 | N163: 700,000.00 | O163: 700,000.00 | P163: 250,000.00 | Q163: 0 | R163: 0 | S163: 0 | T163: 0 | U163: 0
A164: FSCRI_RI_4378 | B164: ENTE DI GOVERNO DELL'AMBITO DELLA SARDEGNA | C164: 05.AMBIENTE E RISORSE NATURALI | D164: 05.01 RISCHI E ADATTAMENTO CLIMATICO | E164: E66G05000080011 | F164: SCHEMA 17 "OGLIASTRA": RAMO EST DORSALE PRINCIPALE - 2° LOTTO - RAMO EST | G164: 8,700,000.00 | H164: 5,500,000.00 | I164: 3,200,000.00 | J164: 0 | K164: 0 | L164: 0 | M164: 1,500,000.00 | N164: 2,000,000.00 | O164: 2,000,000.00 | P164: 0 | Q164: 0 | R164: 0 | S164: 0 | T164: 0 | U164: 0
A165: FSCRI_RI_4379 | B165: ENTE DI GOVERNO DELL'AMBITO DELLA SARDEGNA | C165: 05.AMBIENTE E RISORSE NATURALI | D165: 05.02 RISORSE IDRICHE | E165: E53H06000010006 | F165: ADEGUAMENTO SCHEMA FOGNARIO DEPURATIVO N. 180 ATZARA-SORGONO - AMPLIAMENTO IMPIANTO DI DEPURAZIONE | G165: 2,946,545.11 | H165: 1,500,000.00 | I165: 1,446,545.11 | J165: 0 | K165: 0 | L165: 100,000.00 | M165: 100,000.00 | N165: 400,000.00 | O165: 450,000.00 | P165: 450,000.00 | Q165: 0 | R165: 0 | S165: 0 | T165: 0 | U165: 0
A166: FSCRI_RI_4381 | B166: OPERE E INFRASTRUTTURE DELLA SARDEGNA S.R.L. | C166: 05.AMBIENTE E RISORSE NATURALI | D166: 05.02 RISORSE IDRICHE | E166: C21D24000070006 | F166: RISANAMENTO E RIORDINO SISTEMA FOGNARIO DI CAGLIARI PER RIUTILIZZO REFLUI. INDAGINI E PROGETTAZIONE | G166: 3,000,000.00 | H166: 3,000,000.00 | I166: 0 | J166: 0 | K166: 0 | L166: 50,000.00 | M166: 1,400,000.00 | N166: 850,000.00 | O166: 700,000.00 | P166: 0 | Q166: 0 | R166: 0 | S166: 0 | T166: 0 | U166: 0
A167: FSCRI_RI_4382 | B167: ENTE DI GOVERNO DELL'AMBITO DELLA SARDEGNA | C167: 05.AMBIENTE E RISORSE NATURALI | D167: 05.02 RISORSE IDRICHE | E167: E78B16000050002 | F167: MANUTENZIONE STRAORDINARIA SISTEMA FOGNARIO OLBIA AL FINE DI CONSENTIRE IL RIUTILIZZO DEI REFLUI | G167: 3,640,000.00 | H167: 3,000,000.00 | I167: 640,000.00 | J167: 0 | K167: 0 | L167: 0 | M167: 500,000.00 | N167: 500,000.00 | O167: 1,000,000.00 | P167: 1,000,000.00 | Q167: 0 | R167: 0 | S167: 0 | T167: 0 | U167: 0
A168: FSCRI_RI_4383 | B168: ENTE DI GOVERNO DELL'AMBITO DELLA SARDEGNA | C168: 05.AMBIENTE E RISORSE NATURALI | D168: 05.02 RISORSE IDRICHE | E168: F72C04000020006 | F168: COMPLETAMENTO SCHEMA FOGNARIO DEPURATIVO S. G. SUERGIU (N.310 PRRA)-COLLETTAMENTO TRATALIAS E PALMAS | G168: 2,004,942.49 | H168: 1,500,000.00 | I168: 504,942.49 | J168: 0 | K168: 0 | L168: 400,000.00 | M168: 450,000.00 | N168: 450,000.00 | O168: 200,000.00 | P168: 0 | Q168: 0 | R168: 0 | S168: 0 | T168: 0 | U168: 0
A169: FSCRI_RI_4384 | B169: ENTE DI GOVERNO DELL'AMBITO DELLA SARDEGNA | C169: 05.AMBIENTE E RISORSE NATURALI | D169: 05.02 RISORSE IDRICHE | E169: E15C11000830001 | F169: APQ. COMPLETAMENTO IMPIANTO DEPURAZIONE ALGHERO SAN MARCO, REALIZZAZIONE DEL 4° SEDIMENTATORE | G169: 1,378,250.64 | H169: 528,250.64 | I169: 850,000.00 | J169: 0 | K169: 0 | L169: 100,000.00 | M169: 250,000.00 | N169: 100,000.00 | O169: 78,250.64 | P169: 0 | Q169: 0 | R169: 0 | S169: 0 | T169: 0 | U169: 0
A170: FSCRI_RI_4385 | B170: ENTE DI GOVERNO DELL'AMBITO DELLA SARDEGNA | C170: 05.AMBIENTE E RISORSE NATURALI | D170: 05.02 RISORSE IDRICHE | E170: E12E24000680002 | F170: ADEGUAMENTO DELLO SCHEMA FOGNARIO DEPURATIVO N. 267 DEL PTA - BURCEI | G170: 5,200,000.00 | H170: 5,200,000.00 | I170: 0 | J170: 0 | K170: 0 | L170: 300,000.00 | M170: 300,000.00 | N170: 1,500,000.00 | O170: 1,500,000.00 | P170: 1,000,000.00 | Q170: 600,000.00 | R170: 0 | S170: 0 | T170: 0 | U170: 0
A171: FSCRI_RI_4386 | B171: ENTE DI GOVERNO DELL'AMBITO DELLA SARDEGNA | C171: 05.AMBIENTE E RISORSE NATURALI | D171: 05.02 RISORSE IDRICHE | E171: E94H12000040001 | F171: DELOCALIZZAZIONE DEL SOLLEVAMENTO FOGNARIO LOC. S'ARCHITTU E REALIZZAZIONE COLLEGAMENTI IDRAULICI | G171: 800,000.00 | H171: 250,000.00 | I171: 550,000.00 | J171: 0 | K171: 0 | L171: 130,000.00 | M171: 100,000.00 | N171: 20,000.00 | O171: 0 | P171: 0 | Q171: 0 | R171: 0 | S171: 0 | T171: 0 | U171: 0
A172: FSCRI_RI_4387 | B172: ENTE DI GOVERNO DELL'AMBITO DELLA SARDEGNA | C172: 05.AMBIENTE E RISORSE NATURALI | D172: 05.01 RISCHI E ADATTAMENTO CLIMATICO | E172: F52C04000050006 | F172: LAVORI DI INTERCONNESSIONE CON IL POTABILIZZATORE DI TORPÈ - SCHEMA N. 8 SINISCOLA | G172: 5,078,183.76 | H172: 3,000,000.00 | I172: 2,078,183.76 | J172: 0 | K172: 0 | L172: 0 | M172: 500,000.00 | N172: 500,000.00 | O172: 1,000,000.00 | P172: 1,000,000.00 | Q172: 0 | R172: 0 | S172: 0 | T172: 0 | U172: 0
A173: FSCRI_RI_4388 | B173: ENTE DI GOVERNO DELL'AMBITO DELLA SARDEGNA | C173: 05.AMBIENTE E RISORSE NATURALI | D173: 05.02 RISORSE IDRICHE | E173: E34H12000120001 | F173: ADEGUAMENTO SCHEMA FOGNARIO DEPURATIVO N. 316 “GIBA” | G173: 1,950,000.00 | H173: 900,000.00 | I173: 1,050,000.00 | J173: 0 | K173: 0 | L173: 0 | M173: 300,000.00 | N173: 400,000.00 | O173: 200,000.00 | P173: 0 | Q173: 0 | R173: 0 | S173: 0 | T173: 0 | U173: 0
A174: FSCRI_RI_4392 | B174: CITTÀ METROPOLITANA DI CAGLIARI | C174: 07.TRASPORTI E MOBILITÀ | D174: 07.01 TRASPORTO STRADALE | E174: J97H24001110002 | F174: ADEGUAMENTO FUNZIONALE E GEOMETRICO DELLA STRADA ASSEMINI – SESTU | G174: 9,500,000.00 | H174: 9,500,000.00 | I174: 0 | J174: 0 | K174: 0 | L174: 669,624.00 | M174: 260,000.00 | N174: 5,713,584.00 | O174: 2,856,792.00 | P174: 0 | Q174: 0 | R174: 0 | S174: 0 | T174: 0 | U174: 0
A175: FSCRI_RI_4394 | B175: CITTÀ METROPOLITANA DI CAGLIARI | C175: 02.DIGITALIZZAZIONE | D175: 02.01 TECNOLOGIE E SERVIZI DIGITALI | E175: J21C24000050002 | F175: MIGRAZIONE IN CLOUD DEL SISTEMA INFORMATIVO DELL’ENTE IN COERENZA CON IL PIANO TRIENNALE DELLA PA | G175: 1,500,000.00 | H175: 1,500,000.00 | I175: 0 | J175: 0 | K175: 0 | L175: 600,000.00 | M175: 100,000.00 | N175: 100,000.00 | O175: 100,000.00 | P175: 100,000.00 | Q175: 100,000.00 | R175: 100,000.00 | S175: 100,000.00 | T175: 100,000.00 | U175: 100,000.00
A176: FSCRI_RI_4405 | B176: COMUNE DI QUARTU S. ELENA | C176: 01.RICERCA E INNOVAZIONE | D176: 01.02 STRUTTURE DL RICERCA | E176: E88C22000400004 | F176: "FARM-LA FABBRICA DELL'INNOVAZIONE PER AMBIENTE, ENERGIA, BENESSERE E MOBILITÀ" EX DISTILLERIE CAPRA | G176: 6,000,000.00 | H176: 6,000,000.00 | I176: 0 | J176: 0 | K176: 0 | L176: 500,000.00 | M176: 1,000,000.00 | N176: 1,000,000.00 | O176: 1,000,000.00 | P176: 1,000,000.00 | Q176: 1,000,000.00 | R176: 500,000.00 | S176: 0 | T176: 0 | U176: 0
A177: FSCRI_RI_4409 | B177: CITTÀ METROPOLITANA DI CAGLIARI | C177: 08.RIQUALIFICAZIONE URBANA | D177: 08.01 EDILIZIA E SPAZI PUBBLICI | E177: J25I24000210001 | F177: URBANISMO TATTICO. PROGETTI DI MITIGAZIONE ONDATE DI CALORE E AREE PLAYGROUND | G177: 2,400,000.00 | H177: 2,400,000.00 | I177: 0 | J177: 0 | K177: 0 | L177: 200,000.00 | M177: 800,000.00 | N177: 500,000.00 | O177: 500,000.00 | P177: 400,000.00 | Q177: 0 | R177: 0 | S177: 0 | T177: 0 | U177: 0
A178: FSCRI_RI_4422 | B178: COMUNE DI CAGLIARI | C178: 10.SOCIALE E SALUTE | D178: 10.01 STRUTTURE SOCIALI | E178: G25B22000120001 | F178: NUOVO PALAZZETTO DELLO SPORT | G178: 48,500,000.00 | H178: 35,450,000.00 | I178: 13,050,000.00 | J178: 0 | K178: 0 | L178: 10,000,000.00 | M178: 25,450,000.00 | N178: 0 | O178: 0 | P178: 0 | Q178: 0 | R178: 0 | S178: 0 | T178: 0 | U178: 0
A179: FSCRI_RI_4427 | B179: COMUNE DI CAGLIARI | C179: 10.SOCIALE E SALUTE | D179: 10.03 SERVIZI SOCIO-ASSISTENZIALI | E179: G27I16000010007 | F179: RIQUALIFICAZIONE URBANA DEL COMPLESSO ERP DI PIAZZA GRANATIERI DI SARDEGNA A CAGLIARI | G179: 29,000,000.00 | H179: 8,000,000.00 | I179: 21,000,000.00 | J179: 0 | K179: 0 | L179: 2,000,000.00 | M179: 2,000,000.00 | N179: 2,000,000.00 | O179: 2,000,000.00 | P179: 0 | Q179: 0 | R179: 0 | S179: 0 | T179: 0 | U179: 0
A180: FSCRI_RI_4430 | B180: CITTÀ METROPOLITANA DI CAGLIARI | C180: 02.DIGITALIZZAZIONE | D180: 02.01 TECNOLOGIE E SERVIZI DIGITALI | E180: J26G24000130002 | F180: AMMODERNAMENTO INFRASTRUTTURA INFORMATICA | G180: 671,000.00 | H180: 671,000.00 | I180: 0 | J180: 0 | K180: 0 | L180: 400,000.00 | M180: 271,000.00 | N180: 0 | O180: 0 | P180: 0 | Q180: 0 | R180: 0 | S180: 0 | T180: 0 | U180: 0
A181: FSCRI_RI_4440 | B181: CITTÀ METROPOLITANA DI CAGLIARI - CONSORZIO DI BONIFICA DELLA SARDEGNA MERIDIONALE | C181: 05.AMBIENTE E RISORSE NATURALI | D181: 05.01 RISCHI E ADATTAMENTO CLIMATICO | E181: C85H24006370002 | F181: COMPLETAMENTO DELL’INFRASTRUTTURAZIONE IRRIGUA DELLE ZONE RURALI DEI COMUNI DI CM CAGLIARI | G181: 2,000,000.00 | H181: 2,000,000.00 | I181: 0 | J181: 0 | K181: 0 | L181: 150,000.00 | M181: 500,000.00 | N181: 600,000.00 | O181: 500,000.00 | P181: 250,000.00 | Q181: 0 | R181: 0 | S181: 0 | T181: 0 | U181: 0
A182: FSCRI_RI_4471 | B182: UNIONE DEI COMUNI VALLE DEL CEDRINO | C182: 07.TRASPORTI E MOBILITÀ | D182: 07.01 TRASPORTO STRADALE | E182: J91B20001020001 | F182: CIRCONVALLAZIONE DI COLLEGAMENTO TRA LA S.S. 129 CON LA SP 25 NEL COMUNE DI GALTELLÌ | G182: 7,600,000.00 | H182: 7,600,000.00 | I182: 0 | J182: 0 | K182: 0 | L182: 100,000.00 | M182: 1,900,000.00 | N182: 1,400,000.00 | O182: 1,400,000.00 | P182: 1,400,000.00 | Q182: 1,400,000.00 | R182: 0 | S182: 0 | T182: 0 | U182: 0
A183: FSCRI_RI_4472 | B183: ARST S.P.A. | C183: 07.TRASPORTI E MOBILITÀ | D183: 07.01 TRASPORTO STRADALE | E183: F71B17000270006 | F183: PROGETTAZIONE E REALIZZAZIONE RETE CICLABILE REGIONALE | G183: 5,900,000.00 | H183: 5,310,000.00 | I183: 590,000.00 | J183: 0 | K183: 0 | L183: 1,500,000.00 | M183: 2,500,000.00 | N183: 1,310,000.00 | O183: 0 | P183: 0 | Q183: 0 | R183: 0 | S183: 0 | T183: 0 | U183: 0
A184: FSCRI_RI_4481 | B184: COMUNE DI CABRAS | C184: 07.TRASPORTI E MOBILITÀ | D184: 07.01 TRASPORTO STRADALE | E184: C81B18000620002 | F184: MIGLIORAMENTO DELLA VIABILITÀ DI ORISTANO – CABRAS – SAN GIOVANNI DI SINIS | G184: 4,000,000.00 | H184: 2,333,888.88 | I184: 1,666,111.12 | J184: 0 | K184: 150,000.00 | L184: 550,000.00 | M184: 1,633,888.88 | N184: 0 | O184: 0 | P184: 0 | Q184: 0 | R184: 0 | S184: 0 | T184: 0 | U184: 0
A185: FSCRI_RI_4482 | B185: ENTI LOCALI DA INDIVIDUARE | C185: 07.TRASPORTI E MOBILITÀ | D185: 07.05 MOBILITÀ URBANA | E185: E79B24000190001 | F185: PROGETTO TEMATICO REGIONALE DI INTERCONNESSIONE SOSTENIBILE DEI TERRITORI DELLA SARDEGNA | G185: 25,000,000.00 | H185: 25,000,000.00 | I185: 0 | J185: 0 | K185: 0 | L185: 2,500,000.00 | M185: 2,500,000.00 | N185: 8,000,000.00 | O185: 8,000,000.00 | P185: 3,000,000.00 | Q185: 1,000,000.00 | R185: 0 | S185: 0 | T185: 0 | U185: 0
A186: FSCRI_RI_4484 | B186: PROVINCIA DELL'OGLIASTRA | C186: 07.TRASPORTI E MOBILITÀ | D186: 07.01 TRASPORTO STRADALE | E186: J61B15000560002 | F186: SP 27 TORTOLÌ – VILLAGRANDE. LAVORI DI ADEGUAMENTO 2° STRALCIO | G186: 7,000,000.00 | H186: 3,050,000.00 | I186: 3,950,000.00 | J186: 0 | K186: 0 | L186: 1,500,000.00 | M186: 1,000,000.00 | N186: 550,000.00 | O186: 0 | P186: 0 | Q186: 0 | R186: 0 | S186: 0 | T186: 0 | U186: 0
A187: FSCRI_RI_4485 | B187: COMUNE DI SETTIMO SAN PIETRO | C187: 07.TRASPORTI E MOBILITÀ | D187: 07.01 TRASPORTO STRADALE | E187: I51B15000620002 | F187: CIRCONVALLAZIONE DI SETTIMO SAN PIETRO | G187: 7,000,000.00 | H187: 5,500,000.00 | I187: 1,500,000.00 | J187: 0 | K187: 0 | L187: 1,000,000.00 | M187: 2,000,000.00 | N187: 2,500,000.00 | O187: 0 | P187: 0 | Q187: 0 | R187: 0 | S187: 0 | T187: 0 | U187: 0
A188: FSCRI_RI_4486 | B188: CITTÀ METROPOLITANA DI CAGLIARI | C188: 07.TRASPORTI E MOBILITÀ | D188: 07.01 TRASPORTO STRADALE | E188: LINEA DI AZIONE | F188: MANUTENZIONE E MESSA IN SICUREZZA DELLE STRADE DELLA CITTA' METROPOLITANA DI CAGLIARI | G188: 2,240,000.00 | H188: 2,240,000.00 | I188: 0 | J188: 0 | K188: 0 | L188: 400,000.00 | M188: 830,000.00 | N188: 830,000.00 | O188: 180,000.00 | P188: 0 | Q188: 0 | R188: 0 | S188: 0 | T188: 0 | U188: 0
A189: FSCRI_RI_4487 | B189: REGIONE AUTONOMA DELLA SARDEGNA | C189: 07.TRASPORTI E MOBILITÀ | D189: 07.03 TRASPORTO MARITTIMO E LOGISTICA | E189: LINEA DI AZIONE | F189: PREDISPOSIZIONE DOCFAP E PROGETTAZIONI NUOVE INFRASTRUTTURE PORTUALI PREVISTE DAL PRRPT | G189: 12,000,000.00 | H189: 9,100,000.00 | I189: 2,900,000.00 | J189: 0 | K189: 30,000.00 | L189: 600,000.00 | M189: 1,800,000.00 | N189: 2,770,000.00 | O189: 2,400,000.00 | P189: 1,500,000.00 | Q189: 0 | R189: 0 | S189: 0 | T189: 0 | U189: 0
A190: FSCRI_RI_4488 | B190: COMUNE DI SARDARA | C190: 07.TRASPORTI E MOBILITÀ | D190: 07.01 TRASPORTO STRADALE | E190: E17H18001240001 | F190: MESSA IN SICUREZZA DELLA EX SS 131 | G190: 2,500,000.00 | H190: 2,500,000.00 | I190: 0 | J190: 0 | K190: 0 | L190: 150,000.00 | M190: 1,000,000.00 | N190: 1,350,000.00 | O190: 0 | P190: 0 | Q190: 0 | R190: 0 | S190: 0 | T190: 0 | U190: 0
A191: FSCRI_RI_4489 | B191: OPERE E INFRASTRUTTURE DELLA SARDEGNA S.R.L. | C191: 07.TRASPORTI E MOBILITÀ | D191: 07.01 TRASPORTO STRADALE | E191: C71B20000700002 | F191: ITINERARIO TRASVERSALE SARDO - 1° LOTTO FUNZIONALE | G191: 48,580,000.00 | H191: 25,000,000.00 | I191: 23,580,000.00 | J191: 0 | K191: 0 | L191: 300,000.00 | M191: 2,000,000.00 | N191: 5,000,000.00 | O191: 5,000,000.00 | P191: 5,000,000.00 | Q191: 5,000,000.00 | R191: 2,700,000.00 | S191: 0 | T191: 0 | U191: 0
A192: FSCRI_RI_4490 | B192: ARST S.P.A. | C192: 07.TRASPORTI E MOBILITÀ | D192: 07.02 TRASPORTO FERROVIARIO | E192: F11B21007070001 | F192: COLLEGAMENTO FERROVIARIO ALGHERO CENTRO - ALGHERO AEROPORTO | G192: 247,990,360.00 | H192: 25,500,000.00 | I192: 222,490,360.00 | J192: 0 | K192: 0 | L192: 0 | M192: 13,500,000.00 | N192: 12,000,000.00 | O192: 0 | P192: 0 | Q192: 0 | R192: 0 | S192: 0 | T192: 0 | U192: 0
A193: FSCRI_RI_4491 | B193: COMUNE DI SAN VITO (SU) | C193: 07.TRASPORTI E MOBILITÀ | D193: 07.01 TRASPORTO STRADALE | E193: F75F24000570003 | F193: MESSA IN SICUREZZA PONTE SUL RIO URI — COMUNE DI SAN VITO | G193: 500,000.00 | H193: 449,756.78 | I193: 50,243.22 | J193: 0 | K193: 0 | L193: 50,000.00 | M193: 150,000.00 | N193: 150,000.00 | O193: 99,756.78 | P193: 0 | Q193: 0 | R193: 0 | S193: 0 | T193: 0 | U193: 0
A194: FSCRI_RI_4493 | B194: PROVINCIA DI ORISTANO | C194: 07.TRASPORTI E MOBILITÀ | D194: 07.01 TRASPORTO STRADALE | E194: F51B13000550003 | F194: COMPLETAMENTO CIRCONVALLAZIONE DI BONARCADO | G194: 6,000,000.00 | H194: 6,000,000.00 | I194: 0 | J194: 0 | K194: 0 | L194: 2,000,000.00 | M194: 4,000,000.00 | N194: 0 | O194: 0 | P194: 0 | Q194: 0 | R194: 0 | S194: 0 | T194: 0 | U194: 0
A195: FSCRI_RI_4495 | B195: PROVINCIA DEL MEDIO CAMPIDANO | C195: 07.TRASPORTI E MOBILITÀ | D195: 07.01 TRASPORTO STRADALE | E195: J97H21037570002 | F195: MESSA IN SICUREZZA E RIQUALIFICAZIONE VIABILITÀ PROV.LE NEL COMPARTO SERRAMANNA -SAMASSI-SERRENTI | G195: 2,000,000.00 | H195: 2,000,000.00 | I195: 0 | J195: 0 | K195: 1,500,000.00 | L195: 500,000.00 | M195: 0 | N195: 0 | O195: 0 | P195: 0 | Q195: 0 | R195: 0 | S195: 0 | T195: 0 | U195: 0
A196: FSCRI_RI_4497 | B196: COMUNE DI TEMPIO PAUSANIA | C196: 07.TRASPORTI E MOBILITÀ | D196: 07.01 TRASPORTO STRADALE | E196: C51B24000230003 | F196: COMPLETAMENTO SP 133 TEMPIO- SP 5 AGLIENTU | G196: 27,606,000.00 | H196: 22,000,000.00 | I196: 5,606,000.00 | J196: 0 | K196: 500,000.00 | L196: 4,000,000.00 | M196: 4,000,000.00 | N196: 4,000,000.00 | O196: 4,000,000.00 | P196: 4,000,000.00 | Q196: 1,500,000.00 | R196: 0 | S196: 0 | T196: 0 | U196: 0
A197: FSCRI_RI_4498 | B197: ASSESSORATO DEGLI ENTI LOCALI, FINANZE E URBANISTICA - DIREZIONE GENERALE DELLA PIANIFICAZIONE URBANISTICA TERRITORIALE E DELLA VIGILANZA EDILIZIA | C197: 08.RIQUALIFICAZIONE URBANA | D197: 08.01 EDILIZIA E SPAZI PUBBLICI | E197: LINEA DI AZIONE | F197: AZIONI ED INTERVENTI DI RIGENERAZIONE URBANA | G197: 25,000,000.00 | H197: 25,000,000.00 | I197: 0 | J197: 0 | K197: 3,000,000.00 | L197: 6,000,000.00 | M197: 8,000,000.00 | N197: 5,000,000.00 | O197: 3,000,000.00 | P197: 0 | Q197: 0 | R197: 0 | S197: 0 | T197: 0 | U197: 0
A198: FSCRI_RI_4499 | B198: PROVINCIA DELLA GALLURA NORD EST SARDEGNA | C198: 07.TRASPORTI E MOBILITÀ | D198: 07.01 TRASPORTO STRADALE | E198: I21B03000190005 | F198: COLLEGAMENTO PROVINCIALE “ABBASANTA-BUDDUSÒ-OLBIA” DELLA SS 389 TRATTO “ALÀ DEI SARDI-BIVIO PADRU” | G198: 26,600,000.00 | H198: 14,500,000.00 | I198: 12,100,000.00 | J198: 0 | K198: 0 | L198: 1,500,000.00 | M198: 4,000,000.00 | N198: 4,000,000.00 | O198: 3,000,000.00 | P198: 2,000,000.00 | Q198: 0 | R198: 0 | S198: 0 | T198: 0 | U198: 0
A199: FSCRI_RI_4501 | B199: COMUNE DI ORISTANO | C199: 07.TRASPORTI E MOBILITÀ | D199: 07.01 TRASPORTO STRADALE | E199: H11B24000710001 | F199: REALIZZAZIONE DI INTERVENTI DI COMPLETAMENTO DI INFRASTRUTTURE VIARIE CIRCONVALLAZIONE NORD ORISTANO | G199: 2,000,000.00 | H199: 2,000,000.00 | I199: 0 | J199: 0 | K199: 50,000.00 | L199: 700,000.00 | M199: 1,000,000.00 | N199: 250,000.00 | O199: 0 | P199: 0 | Q199: 0 | R199: 0 | S199: 0 | T199: 0 | U199: 0
A200: FSCRI_RI_4502 | B200: COMUNE DI LODE' | C200: 07.TRASPORTI E MOBILITÀ | D200: 07.01 TRASPORTO STRADALE | E200: C57H24001580002 | F200: VIABILITÀ DI ACCESSO AL PARCO DI TEPILORA | G200: 500,000.00 | H200: 476,167.81 | I200: 23,832.19 | J200: 0 | K200: 0 | L200: 400,000.00 | M200: 76,167.81 | N200: 0 | O200: 0 | P200: 0 | Q200: 0 | R200: 0 | S200: 0 | T200: 0 | U200: 0
... 27 more rows

Sheet Alleg B3_Piano fin F.do Rotaz
A1: Accordo per la Coesione Governo - Regione Autonoma della Sardegna Allegato B3 - Programma di interventi con cronoprogramma finanziario - valori in euro (quota Fondo di Rotazione ex lege 183/1987)
A2: ID | B2: AMMINISTRAZIONE | C2: AREATEMATICA | D2: LINEA DI INTERVENTO | E2: CUP | F2: TITOLO INTERVENTO | G2: COSTO COMPLESSIVO | H2: FDR Legge 183/87 | I2: COFINANZIAMENTO CON ALTRE RISORSE | J2: 2024 | K2: 2025 | L2: 2026 | M2: 2027 | N2: 2028 | O2: 2029
A3: FSCRI_RI_4622 | B3: AZIENDA REGIONALE PER L'EDILIZIA ABITATIVA | C3: 08.RIQUALIFICAZIONE URBANA | D3: 08.01 EDILIZIA E SPAZI PUBBLICI | E3: LINEA DI AZIONE | F3: POC_INTERVENTI DI MANUTENZIONE DEGLI IMMOBILE ERP DI PROPRIETÀ DI AREA | G3: 230,000,000.00 | H3: 230,000,000.00 | I3: 0 | J3: 0 | K3: 9,000,000.00 | L3: 52,500,000.00 | M3: 52,500,000.00 | N3: 63,500,000.00 | O3: 52,500,000.00
A4: FSCRI_RI_4623 | B4: CITTÀ METROPOLITANA DI SASSARI | C4: 07.TRASPORTI E MOBILITÀ | D4: 07.01 TRASPORTO STRADALE | E4: LINEA DI AZIONE | F4: POC_MANUTENZIONE E MESSA IN SICUREZZA STRADE DELLA CITTA' METROPOLITANA DI SASSARI | G4: 13,400,000.00 | H4: 13,400,000.00 | I4: 0 | J4: 0 | K4: 800,000.00 | L4: 4,000,000.00 | M4: 4,000,000.00 | N4: 4,600,000.00 | O4: 0
A5: FSCRI_RI_4624 | B5: DA IDENTIFICARSI A SEGUITO DI BANDO | C5: 05.AMBIENTE E RISORSE NATURALI | D5: 05.01 RISCHI E ADATTAMENTO CLIMATICO | E5: LINEA DI AZIONE | F5: POC_REALIZZAZIONE DI INTERVENTI DI MITIGAZIONE DEL RISCHIO IDROGEOLOGICO IN AREE PERIMETRATE DEL PAI | G5: 60,000,000.00 | H5: 60,000,000.00 | I5: 0 | J5: 0 | K5: 6,000,000.00 | L5: 9,500,000.00 | M5: 11,500,000.00 | N5: 16,500,000.00 | O5: 16,500,000.00
A6: FSCRI_RI_4625 | B6: PROVINCIA DELLA GALLURA NORD EST SARDEGNA | C6: 07.TRASPORTI E MOBILITÀ | D6: 07.01 TRASPORTO STRADALE | E6: LINEA DI AZIONE | F6: POC_MANUTENZIONE E MESSA IN SICUREZZA STRADE DELLA PROVINCIA DELLA GALLURA NORD EST SARDEGNA | G6: 6,700,000.00 | H6: 6,700,000.00 | I6: 0 | J6: 0 | K6: 1,400,000.00 | L6: 4,000,000.00 | M6: 1,300,000.00 | N6: 0 | O6: 0
A7: FSCRI_RI_4626 | B7: REGIONE AUTONOMA DELLA SARDEGNA | C7: 07.TRASPORTI E MOBILITÀ | D7: 07.01 TRASPORTO STRADALE | E7: LINEA DI AZIONE | F7: POC_MANUTENZIONE E MESSA IN SICUREZZA STRADE DELLA PROVINCIA DEL SUD SARDEGNA | G7: 10,850,000.00 | H7: 10,850,000.00 | I7: 0 | J7: 0 | K7: 60,000.00 | L7: 900,000.00 | M7: 6,000,000.00 | N7: 3,890,000.00 | O7: 0
A8: FSCRI_RI_4627 | B8: REGIONA AUTONOMA DELLA SARDEGNA | C8: 07.TRASPORTI E MOBILITÀ | D8: 07.03 TRASPORTO MARITTIMO E LOGISTICA | E8: D42J21000020001 | F8: POC_ADEGUAMENTO DEL PORTO TURISTICO LA CALETTA | G8: 3,500,000.00 | H8: 3,050,000.00 | I8: 450,000.00 | J8: 0 | K8: 100,000.00 | L8: 400,000.00 | M8: 1,150,000.00 | N8: 750,000.00 | O8: 650,000.00
A9: FSCRI_RI_4628 | B9: ENTE ACQUE DELLA SARDEGNA | C9: 05.AMBIENTE E RISORSE NATURALI | D9: 05.01 RISCHI E ADATTAMENTO CLIMATICO | E9: I88B24000170001 | F9: POC_INT. MAN. STRAORD. CON SOST. RISAN. STRUTT. DIVERSI TRATTI ACQUEDOTTI "COGHINAS I" E "COGHINAS I | G9: 26,840,000.00 | H9: 22,000,000.00 | I9: 4,840,000.00 | J9: 0 | K9: 0 | L9: 7,000,000.00 | M9: 7,000,000.00 | N9: 8,000,000.00 | O9: 0
A10: FSCRI_RI_4629 | B10: REGIONE AUTONOMA DELLA SARDEGNA | C10: 07.TRASPORTI E MOBILITÀ | D10: 07.03 TRASPORTO MARITTIMO E LOGISTICA | E10: H16G13002320002 | F10: POC_COMPLETAMENTO E RAZIONALIZZAZIONE PORTO TURISTICO DI TORREGRANDE | G10: 18,000,000.00 | H10: 6,500,000.00 | I10: 11,500,000.00 | J10: 0 | K10: 160,000.00 | L10: 320,000.00 | M10: 1,000,000.00 | N10: 2,500,000.00 | O10: 2,520,000.00
A11: FSCRI_RI_4630 | B11: ABBANOA SPA | C11: 05.AMBIENTE E RISORSE NATURALI | D11: 05.01 RISCHI E ADATTAMENTO CLIMATICO | E11: E52E23000410003 | F11: POC_SCHEMA 17 OGLIASTRA: NUOVO IMPIANTO DI POTABILIZZAZIONE, OPERA DI PRESA E DORSALE - LOTTO | G11: 44,493,077.67 | H11: 11,000,000.00 | I11: 33,493,077.67 | J11: 0 | K11: 0 | L11: 0 | M11: 0 | N11: 2,000,000.00 | O11: 9,000,000.00
A12: FSCRI_RI_4631 | B12: CITTÀ METROPOLITANA DI SASSARI | C12: 07.TRASPORTI E MOBILITÀ | D12: 07.01 TRASPORTO STRADALE | E12: LINEA DI AZIONE | F12: POC_INTERVENTI DI COMPLETAMENTO,MESSA IN SICUREZZA E ADEGUAMENTO FUNZIONALE VIARIO E DI OPERE D'ARTE | G12: 30,800,000.00 | H12: 30,800,000.00 | I12: 0 | J12: 0 | K12: 2,300,000.00 | L12: 7,000,000.00 | M12: 8,500,000.00 | N12: 7,000,000.00 | O12: 6,000,000.00
A13: FSCRI_RI_4632 | B13: COMUNE DI PORTO TORRES | C13: 07.TRASPORTI E MOBILITÀ | D13: 07.01 TRASPORTO STRADALE | E13: I25F21001570001 | F13: POC_LAVORI MESSA IN SICUREZZA E RIQUALIFICAZIONE VIABILITÀ DI ACCESSO AL NUOVO CIMITERO COMUNALE | G13: 2,500,000.00 | H13: 2,500,000.00 | I13: 0 | J13: 0 | K13: 300,000.00 | L13: 1,100,000.00 | M13: 1,100,000.00 | N13: 0 | O13: 0
A14: FSCRI_RI_4633 | B14: PROVINCIA DI ORISTANO | C14: 07.TRASPORTI E MOBILITÀ | D14: 07.01 TRASPORTO STRADALE | E14: LINEA DI AZIONE | F14: POC_MANUTENZIONE E MESSA IN SICUREZZA STRADE DELLA PROVINCIA DI ORISTANO | G14: 8,650,000.00 | H14: 8,650,000.00 | I14: 0 | J14: 0 | K14: 140,000.00 | L14: 5,300,000.00 | M14: 3,210,000.00 | N14: 0 | O14: 0
A15: FSCRI_RI_4634 | B15: REGIONE AUTONOMA DELLA SARDEGNA | C15: 07.TRASPORTI E MOBILITÀ | D15: 07.01 TRASPORTO STRADALE | E15: LINEA DI AZIONE | F15: POC_MANUTENZIONI E MESSA IN SICUREZZA STRADE PROVINCIALI DI NUORO E OGLIASTRA | G15: 10,400,000.00 | H15: 10,400,000.00 | I15: 0 | J15: 0 | K15: 200,000.00 | L15: 3,400,000.00 | M15: 3,400,000.00 | N15: 3,400,000.00 | O15: 0
A16: FSCRI_RI_5132 | B16: OPERE E INFRASTRUTTURE DELLA SARDEGNA S.R.L. | C16: 07.TRASPORTI E MOBILITÀ | D16: 07.01 TRASPORTO STRADALE | E16: C65F23000490002 | F16: POC_MESSA IN SICUREZZA DELLA GALLERIA DI “MUGHINA” NEL COMUNE DI NUORO | G16: 20,000,000.00 | H16: 10,000,000.00 | I16: 10,000,000.00 | J16: 0 | K16: 0 | L16: 0 | M16: 4,700,000.00 | N16: 5,300,000.00 | O16: 0
